TRANSACTION No,Service Area Categorisation,Service Division Categorisation,Responsible Unit,Unit Code,Expenses Type,Expenses Sub Type,Expense Code,Narrative,Amount,Invoice Date,Capital/Revenue,Supplier Name
522,CS -Oth Operating Inc & Expend,T/A Vehicle Maintenance etc,Transport-Contract Hire                 ,J01374,Transport Related Expenditure ,Contract Hire and Op Leasing  ,CC67,HIRING TRANSPORT H&SS CAB ADULTS        ,"1,152.00",31/08/2013,R,A STAR TRANSPORT LIMITED      
1268,Adult Social Care,MH u65 Residentl Care Placemnt,MH ResidentialCare Ext-Morden           ,W2HB55,Third Party Payments          ,Private Contractors           ,EH01,Miscellaneous Agency Services           ,500,01/09/2013,R,ABBEY HOUSE RESIDENTIAL HOMES 
1272,Adult Social Care,MH u65 Residentl Care Placemnt,MH ResidentialCare Ext-Morden           ,W2HB55,Third Party Payments          ,Private Contractors           ,EH01,Miscellaneous Agency Services           ,500,01/09/2013,R,ABBEY HOUSE RESIDENTIAL HOMES 
1277,Adult Social Care,MH u65 Residentl Care Placemnt,MH ResidentialCare Ext-Morden           ,W2HB55,Third Party Payments          ,Private Contractors           ,EH01,Miscellaneous Agency Services           ,600,01/09/2013,R,ABBEY HOUSE RESIDENTIAL HOMES 
1279,Adult Social Care,MH u65 Residentl Care Placemnt,MH ResidentialCare Ext-Morden           ,W2HB55,Third Party Payments          ,Private Contractors           ,EH01,Miscellaneous Agency Services           ,500,01/09/2013,R,ABBEY HOUSE RESIDENTIAL HOMES 
1280,Adult Social Care,MH u65 Residentl Care Placemnt,MH ResidentialCare Ext-Morden           ,W2HB55,Third Party Payments          ,Private Contractors           ,EH01,Miscellaneous Agency Services           ,500,01/09/2013,R,ABBEY HOUSE RESIDENTIAL HOMES 
1282,Adult Social Care,MH u65 Residentl Care Placemnt,MH ResidentialCare Ext-Morden           ,W2HB55,Third Party Payments          ,Private Contractors           ,EH01,Miscellaneous Agency Services           ,600,01/09/2013,R,ABBEY HOUSE RESIDENTIAL HOMES 
1286,Adult Social Care,MH u65 Residentl Care Placemnt,MH ResidentialCare Ext-Morden           ,W2HB55,Third Party Payments          ,Private Contractors           ,EH01,Miscellaneous Agency Services           ,500,01/09/2013,R,ABBEY HOUSE RESIDENTIAL HOMES 
1290,Adult Social Care,MH u65 Residentl Care Placemnt,MH ResidentialCare Ext-Morden           ,W2HB55,Third Party Payments          ,Private Contractors           ,EH01,Miscellaneous Agency Services           ,600,01/09/2013,R,ABBEY HOUSE RESIDENTIAL HOMES 
1291,Adult Social Care,MH u65 Residentl Care Placemnt,MH ResidentialCare Ext-Morden           ,W2HB55,Third Party Payments          ,Private Contractors           ,EH01,Miscellaneous Agency Services           ,600,01/09/2013,R,ABBEY HOUSE RESIDENTIAL HOMES 
1292,Adult Social Care,MH u65 Residentl Care Placemnt,MH ResidentialCare Ext-Morden           ,W2HB55,Third Party Payments          ,Private Contractors           ,EH01,Miscellaneous Agency Services           ,600,01/09/2013,R,ABBEY HOUSE RESIDENTIAL HOMES 
1300,Adult Social Care,MH u65 Residentl Care Placemnt,MH ResidentialCare Ext - Wim            ,W2HC55,Third Party Payments          ,Private Contractors           ,EH01,Miscellaneous Agency Services           ,500.05,01/09/2013,R,ABBEY HOUSE RESIDENTIAL HOMES 
1312,Adult Social Care,MH u65 Residentl Care Placemnt,MH ResidentialCare Ext - Wim            ,W2HC55,Third Party Payments          ,Private Contractors           ,EH01,Miscellaneous Agency Services           ,500.05,01/09/2013,R,ABBEY HOUSE RESIDENTIAL HOMES 
1329,Adult Social Care,MH u65 Residentl Care Placemnt,MH ResidentialCare Ext - Wim            ,W2HC55,Third Party Payments          ,Private Contractors           ,EH01,Miscellaneous Agency Services           ,500.05,01/09/2013,R,ABBEY HOUSE RESIDENTIAL HOMES 
1330,Adult Social Care,MH u65 Residentl Care Placemnt,MH ResidentialCare Ext - Wim            ,W2HC55,Third Party Payments          ,Private Contractors           ,EH01,Miscellaneous Agency Services           ,500.05,01/09/2013,R,ABBEY HOUSE RESIDENTIAL HOMES 
1336,Adult Social Care,MH u65 Residentl Care Placemnt,MH ResidentialCare Ext - Wim            ,W2HC55,Third Party Payments          ,Private Contractors           ,EH01,Miscellaneous Agency Services           ,500.05,01/09/2013,R,ABBEY HOUSE RESIDENTIAL HOMES 
2931,Adult Social Care,OP 65&Over Resi Care Placement,OP Hosp - Residential Care Ext          ,W2LF55,Third Party Payments          ,Private Contractors           ,EH01,Miscellaneous Agency Services           ,550,01/09/2013,R,ABBEY HOUSE RESIDENTIAL HOMES 
2932,Adult Social Care,OP 65&Over Resi Care Placement,OP Hosp - Residential Care Ext          ,W2LF55,Third Party Payments          ,Private Contractors           ,EH01,Miscellaneous Agency Services           ,550,01/09/2013,R,ABBEY HOUSE RESIDENTIAL HOMES 
2933,Adult Social Care,OP 65&Over Resi Care Placement,OP Hosp - Residential Care Ext          ,W2LF55,Third Party Payments          ,Private Contractors           ,EH01,Miscellaneous Agency Services           ,550,01/09/2013,R,ABBEY HOUSE RESIDENTIAL HOMES 
2962,Adult Social Care,OP 65&Over Resi Care Placement,OP Hosp - Residential Care Ext          ,W2LF55,Third Party Payments          ,Private Contractors           ,EH01,Miscellaneous Agency Services           ,550,01/09/2013,R,ABBEY HOUSE RESIDENTIAL HOMES 
2963,Adult Social Care,OP 65&Over Resi Care Placement,OP Hosp - Residential Care Ext          ,W2LF55,Third Party Payments          ,Private Contractors           ,EH01,Miscellaneous Agency Services           ,550,01/09/2013,R,ABBEY HOUSE RESIDENTIAL HOMES 
2998,Adult Social Care,OP 65&Over Resi Care Placement,OP Hosp - Residential Care Ext          ,W2LF55,Third Party Payments          ,Private Contractors           ,EH01,Miscellaneous Agency Services           ,550,01/09/2013,R,ABBEY HOUSE RESIDENTIAL HOMES 
2999,Adult Social Care,OP 65&Over Resi Care Placement,OP Hosp - Residential Care Ext          ,W2LF55,Third Party Payments          ,Private Contractors           ,EH01,Miscellaneous Agency Services           ,550,01/09/2013,R,ABBEY HOUSE RESIDENTIAL HOMES 
3000,Adult Social Care,OP 65&Over Resi Care Placement,OP Hosp - Residential Care Ext          ,W2LF55,Third Party Payments          ,Private Contractors           ,EH01,Miscellaneous Agency Services           ,550,01/09/2013,R,ABBEY HOUSE RESIDENTIAL HOMES 
3001,Adult Social Care,OP 65&Over Resi Care Placement,OP Hosp - Residential Care Ext          ,W2LF55,Third Party Payments          ,Private Contractors           ,EH01,Miscellaneous Agency Services           ,550,01/09/2013,R,ABBEY HOUSE RESIDENTIAL HOMES 
3040,Adult Social Care,OP 65&Over Resi Care Placement,OP Hosp - Residential Care Ext          ,W2LF55,Third Party Payments          ,Private Contractors           ,EH01,Miscellaneous Agency Services           ,550,01/09/2013,R,ABBEY HOUSE RESIDENTIAL HOMES 
2914,Adult Social Care,OP 65&Over Resi Care Placement,OP Hosp - Residential Care Ext          ,W2LF55,Third Party Payments          ,Private Contractors           ,EH01,Miscellaneous Agency Services           ,523.6,30/08/2013,R,ABBEYFIELD PEABODY S.LOND.LTD 
2942,Adult Social Care,OP 65&Over Resi Care Placement,OP Hosp - Residential Care Ext          ,W2LF55,Third Party Payments          ,Private Contractors           ,EH01,Miscellaneous Agency Services           ,523.6,30/08/2013,R,ABBEYFIELD PEABODY S.LOND.LTD 
3017,Adult Social Care,OP 65&Over Resi Care Placement,OP Hosp - Residential Care Ext          ,W2LF55,Third Party Payments          ,Private Contractors           ,EH01,Miscellaneous Agency Services           ,523.6,30/08/2013,R,ABBEYFIELD PEABODY S.LOND.LTD 
3018,Adult Social Care,OP 65&Over Resi Care Placement,OP Hosp - Residential Care Ext          ,W2LF55,Third Party Payments          ,Private Contractors           ,EH01,Miscellaneous Agency Services           ,523.6,30/08/2013,R,ABBEYFIELD PEABODY S.LOND.LTD 
2353,Adult Social Care,LD u65 Home Care,LD Comm -Home Care-Campus Hm            ,W2KS49,Premises Related Expenditure  ,Rents                         ,BC01,Miscellaneous Rents                     ,"1,066.14",31/07/2013,R,ABILITY HOUSING ASSOCIATION   
2354,Adult Social Care,LD u65 Home Care,LD Comm -Home Care-Campus Hm            ,W2KS49,Premises Related Expenditure  ,Rents                         ,BC01,Miscellaneous Rents                     ,"1,066.14",31/07/2013,R,ABILITY HOUSING ASSOCIATION   
4279,Adult Social Care,Other - Other Adult Services,Fixed & Variable Client Paymen          ,W6AA65,Third Party Payments          ,Private Contractors           ,EH01,Miscellaneous Agency Services           ,"8,264.94",28/08/2013,R,ABILITY HOUSING ASSOCIATION   
4281,Adult Social Care,Other - Other Adult Services,Fixed & Variable Client Paymen          ,W6AA65,Third Party Payments          ,Private Contractors           ,EH01,Miscellaneous Agency Services           ,"27,543.10",28/08/2013,R,ABILITY HOUSING ASSOCIATION   
4324,Adult Social Care,Other - Other Adult Services,Fixed & Variable Client Paymen          ,W6AA65,Third Party Payments          ,Private Contractors           ,EH01,Miscellaneous Agency Services           ,"1,098.00",28/08/2013,R,ABILITY HOUSING ASSOCIATION   
109,,,Disabled Facilities Grant DCLG          ,CE004RA,Other Capital Expenditure,,E1,Grants                                  ,750.7,12/09/2013,C,ABLE 2 OCCUP.THERAPY SERV.LTD 
1710,Adult Social Care,LD u65 Home Care,LD Home Care External                   ,W2KB49,Third Party Payments          ,Private Contractors           ,EH01,Miscellaneous Agency Services           ,689.25,19/09/2013,R,ABLE COMMUNITY CARE LTD       
1717,Adult Social Care,LD u65 Home Care,LD Home Care External                   ,W2KB49,Third Party Payments          ,Private Contractors           ,EH01,Miscellaneous Agency Services           ,521.25,05/09/2013,R,ABLE COMMUNITY CARE LTD       
1718,Adult Social Care,LD u65 Home Care,LD Home Care External                   ,W2KB49,Third Party Payments          ,Private Contractors           ,EH01,Miscellaneous Agency Services           ,528,05/09/2013,R,ABLE COMMUNITY CARE LTD       
1729,Adult Social Care,LD u65 Home Care,LD Home Care External                   ,W2KB49,Third Party Payments          ,Private Contractors           ,EH01,Miscellaneous Agency Services           ,689.25,19/09/2013,R,ABLE COMMUNITY CARE LTD       
1730,Adult Social Care,LD u65 Home Care,LD Home Care External                   ,W2KB49,Third Party Payments          ,Private Contractors           ,EH01,Miscellaneous Agency Services           ,700,19/09/2013,R,ABLE COMMUNITY CARE LTD       
1750,Adult Social Care,LD u65 Home Care,LD Home Care External                   ,W2KB49,Third Party Payments          ,Private Contractors           ,EH01,Miscellaneous Agency Services           ,700,05/09/2013,R,ABLE COMMUNITY CARE LTD       
1751,Adult Social Care,LD u65 Home Care,LD Home Care External                   ,W2KB49,Third Party Payments          ,Private Contractors           ,EH01,Miscellaneous Agency Services           ,700,19/09/2013,R,ABLE COMMUNITY CARE LTD       
1771,Adult Social Care,LD u65 Home Care,LD Home Care External                   ,W2KB49,Third Party Payments          ,Private Contractors           ,EH01,Miscellaneous Agency Services           ,689.25,05/09/2013,R,ABLE COMMUNITY CARE LTD       
1520,Adult Social Care,PS u65 Home Care,PD WEST TEAM-Homecare                   ,W2JK49,Third Party Payments          ,Private Contractors           ,EH01,Miscellaneous Agency Services           ,522,08/09/2013,R,ACCESS CARE LTD               
1524,Adult Social Care,PS u65 Home Care,PD WEST TEAM-Homecare                   ,W2JK49,Third Party Payments          ,Private Contractors           ,EH01,Miscellaneous Agency Services           ,749,16/06/2013,R,ACCESS CARE LTD               
1525,Adult Social Care,PS u65 Home Care,PD WEST TEAM-Homecare                   ,W2JK49,Third Party Payments          ,Private Contractors           ,EH01,Miscellaneous Agency Services           ,749,08/09/2013,R,ACCESS CARE LTD               
1526,Adult Social Care,PS u65 Home Care,PD WEST TEAM-Homecare                   ,W2JK49,Third Party Payments          ,Private Contractors           ,EH01,Miscellaneous Agency Services           ,522.04,16/06/2013,R,ACCESS CARE LTD               
1527,Adult Social Care,PS u65 Home Care,PD WEST TEAM-Homecare                   ,W2JK49,Third Party Payments          ,Private Contractors           ,EH01,Miscellaneous Agency Services           ,749,16/06/2013,R,ACCESS CARE LTD               
1528,Adult Social Care,PS u65 Home Care,PD WEST TEAM-Homecare                   ,W2JK49,Third Party Payments          ,Private Contractors           ,EH01,Miscellaneous Agency Services           ,749,08/09/2013,R,ACCESS CARE LTD               
1530,Adult Social Care,PS u65 Home Care,PD WEST TEAM-Homecare                   ,W2JK49,Third Party Payments          ,Private Contractors           ,EH01,Miscellaneous Agency Services           ,749,16/06/2013,R,ACCESS CARE LTD               
1531,Adult Social Care,PS u65 Home Care,PD WEST TEAM-Homecare                   ,W2JK49,Third Party Payments          ,Private Contractors           ,EH01,Miscellaneous Agency Services           ,749,08/09/2013,R,ACCESS CARE LTD               
520,CS -Oth Operating Inc & Expend,T/A Vehicle Maintenance etc,Transport-Contract Hire                 ,J01374,Transport Related Expenditure ,Contract Hire and Op Leasing  ,CC67,HIRING TRANSPORT H&SS CAB ADULTS        ,"1,064.00",30/08/2013,R,ACCESS MOBILITY TRANSPORT LTD 
533,CS -Oth Operating Inc & Expend,T/A Vehicle Maintenance etc,Transport-Contract Hire                 ,J01374,Transport Related Expenditure ,Contract Hire and Op Leasing  ,CC67,HIRING TRANSPORT H&SS CAB ADULTS        ,572,30/08/2013,R,ACCESS MOBILITY TRANSPORT LTD 
685,Childrens & Education Services,Nursery schools,EARLY YEARS NURSERY GRANTS           ,K90042,Supplies & Services           ,Grants and Subscriptions      ,DJ57,Nursery Grant Payment-4yr olds          ,625.24,02/09/2013,R,ACORN NURSERY                 
580,Childrens & Education Services,Oth U5s Provn Not Prim or Spec,GSSG Workforce Development              ,K05111,Employees                     ,Indirect Employee Expenses    ,AB56,Internal Training Costs                 ,880,29/08/2013,R,ACTUAL FIRST AID LTD          
584,Childrens & Education Services,GENERATED ACCOUNT,EY Family Support Team                  ,K05411,Supplies & Services           ,Services                      ,DF09,Miscellaneous Fees                      ,557.05,29/08/2013,R,ADMINLAND LTD                 
750,Housing Services,Bed / breakfast accommodation,Bed & Breakfast - accomm                ,N47160,Third Party Payments          ,Private Contractors           ,EH01,Miscellaneous Agency Services           ,"73,187.80",31/07/2013,R,ADMINLAND LTD                 
834,Childrens & Education Services,Family - Other Services,CS Discretionary Payments               ,W1CB41,Third Party Payments          ,Private Contractors           ,EH04,Accommodation Based Support             ,685.6,12/09/2013,R,ADMINLAND LTD                 
836,Childrens & Education Services,Family - Other Services,CS Discretionary Payments               ,W1CB41,Third Party Payments          ,Private Contractors           ,EH04,Accommodation Based Support             ,"1,328.35",12/09/2013,R,ADMINLAND LTD                 
1248,Childrens & Education Services,Family - Other Services,CL Travel E-Parent Visiting T1          ,W1DG41,Third Party Payments          ,Private Contractors           ,EH04,Accommodation Based Support             ,771.3,12/09/2013,R,ADMINLAND LTD                 
1249,Childrens & Education Services,Family - Other Services,CL Travel E-Parent Visiting T1          ,W1DG41,Third Party Payments          ,Private Contractors           ,EH04,Accommodation Based Support             ,"1,328.35",12/09/2013,R,ADMINLAND LTD                 
1250,Childrens & Education Services,Family - Other Services,CL Travel E-Parent Visiting T1          ,W1DG41,Third Party Payments          ,Private Contractors           ,EH04,Accommodation Based Support             ,"1,328.35",12/09/2013,R,ADMINLAND LTD                 
1251,Childrens & Education Services,Family - Other Services,CL Travel E-Parent Visiting T1          ,W1DG41,Third Party Payments          ,Private Contractors           ,EH04,Accommodation Based Support             ,"1,328.66",12/09/2013,R,ADMINLAND LTD                 
1252,Childrens & Education Services,Family - Other Services,CL Travel E-Parent Visiting T1          ,W1DG41,Third Party Payments          ,Private Contractors           ,EH04,Accommodation Based Support             ,"1,328.35",12/09/2013,R,ADMINLAND LTD                 
1253,Childrens & Education Services,Family - Other Services,CL Travel E-Parent Visiting T1          ,W1DG41,Third Party Payments          ,Private Contractors           ,EH04,Accommodation Based Support             ,"1,328.35",12/09/2013,R,ADMINLAND LTD                 
840,Childrens & Education Services,Family - Other Services,CS Referral & Assessment Sec17          ,W1CE38,Transfer Payments             ,Adult Soc Servs Clients       ,FD02,Childr Act 1989 S17                     ,"1,080.07",09/09/2013,R,ADMINLAND LTD                 
841,Childrens & Education Services,Family - Other Services,CS Referral & Assessment Sec17          ,W1CE38,Transfer Payments             ,Adult Soc Servs Clients       ,FD02,Childr Act 1989 S17                     ,"1,328.35",13/09/2013,R,ADMINLAND LTD                 
842,Childrens & Education Services,Family - Other Services,CS Referral & Assessment Sec17          ,W1CE38,Transfer Payments             ,Adult Soc Servs Clients       ,FD02,Childr Act 1989 S17                     ,"1,328.35",13/09/2013,R,ADMINLAND LTD                 
843,Childrens & Education Services,Family - Other Services,CS Referral & Assessment Sec17          ,W1CE38,Transfer Payments             ,Adult Soc Servs Clients       ,FD02,Childr Act 1989 S17                     ,"1,328.35",13/09/2013,R,ADMINLAND LTD                 
844,Childrens & Education Services,Family - Other Services,CS Referral & Assessment Sec17          ,W1CE38,Transfer Payments             ,Adult Soc Servs Clients       ,FD02,Childr Act 1989 S17                     ,"1,328.35",13/09/2013,R,ADMINLAND LTD                 
785,Highways & Transport Services,Saf mtc prin/oth rds not split,Highways GM Contract                    ,P04006,Third Party Payments          ,Private Contractors           ,EH02,Miscellaneous Hired Services            ,"9,158.00",27/08/2013,R,ADVANCED TREE SERVICES LTD    
523,CS -Oth Operating Inc & Expend,T/A Vehicle Maintenance etc,Transport-Contract Hire                 ,J01374,Transport Related Expenditure ,Contract Hire and Op Leasing  ,CC67,HIRING TRANSPORT H&SS CAB ADULTS        ,840,02/09/2013,R,AERIAL CAR SERVICES LTD       
469,Cultural Env Reg&Plan Services,DC Advice Apps & Reg not split,Development Control                     ,H01130,Supplies & Services           ,Services                      ,DF03,Consultants                             ,"1,147.50",30/04/2013,R,AFFORDABLE 106                
462,Cultural Env Reg&Plan Services,Public Health,Merton Winter Warmer Programme          ,G00696,Supplies & Services           ,Equip Furniture/Materials     ,DA02,Op. Leasing Equipment                   ,"13,045.00",31/03/2013,R,AGE UK MERTON LIMITED         
2058,Adult Social Care,LD u65 Residentl Care Placemnt,LD Residential Care External            ,W2KB55,Third Party Payments          ,Private Contractors           ,EH01,Miscellaneous Agency Services           ,"2,748.92",20/09/2013,R,AIMS CARE PARTNERSHIP         
2059,Adult Social Care,LD u65 Residentl Care Placemnt,LD Residential Care External            ,W2KB55,Third Party Payments          ,Private Contractors           ,EH01,Miscellaneous Agency Services           ,"2,748.92",20/09/2013,R,AIMS CARE PARTNERSHIP         
2060,Adult Social Care,LD u65 Residentl Care Placemnt,LD Residential Care External            ,W2KB55,Third Party Payments          ,Private Contractors           ,EH01,Miscellaneous Agency Services           ,"2,748.92",20/09/2013,R,AIMS CARE PARTNERSHIP         
2194,Adult Social Care,LD u65 Residentl Care Placemnt,LD Residential Care External            ,W2KB55,Third Party Payments          ,Private Contractors           ,EH01,Miscellaneous Agency Services           ,"2,748.92",20/09/2013,R,AIMS CARE PARTNERSHIP         
4181,Adult Social Care,SS Management & Administration,Transformation Project                  ,W3XB00,Supplies & Services           ,Services                      ,DF03,Consultants                             ,"10,500.00",26/07/2013,R,ALDER                         
108,,,Disabled Facilities Grant DCLG          ,CE004RA,Other Capital Expenditure,,E1,Grants                                  ,"4,945.00",26/09/2013,C,AMWELL CONSTRUCTION           
564,Childrens & Education Services,Statutory & Regulatory Duties,Head of Special Educatn Needs           ,K04017,Supplies & Services           ,Services                      ,DF03,Consultants                             ,"1,275.00",16/09/2013,R,ANAIRO SOLUTIONS LIMITED      
565,Childrens & Education Services,Statutory & Regulatory Duties,Head of Special Educatn Needs           ,K04017,Supplies & Services           ,Services                      ,DF03,Consultants                             ,850,19/08/2013,R,ANAIRO SOLUTIONS LIMITED      
566,Childrens & Education Services,Statutory & Regulatory Duties,Head of Special Educatn Needs           ,K04017,Supplies & Services           ,Services                      ,DF03,Consultants                             ,"1,700.00",02/09/2013,R,ANAIRO SOLUTIONS LIMITED      
567,Childrens & Education Services,Statutory & Regulatory Duties,Head of Special Educatn Needs           ,K04017,Supplies & Services           ,Services                      ,DF03,Consultants                             ,"1,700.00",12/08/2013,R,ANAIRO SOLUTIONS LIMITED      
568,Childrens & Education Services,Statutory & Regulatory Duties,Head of Special Educatn Needs           ,K04017,Supplies & Services           ,Services                      ,DF03,Consultants                             ,"1,700.00",16/09/2013,R,ANAIRO SOLUTIONS LIMITED      
767,Housing Services,Bed / breakfast accommodation,Homelessness Prevention                 ,N47171,Transfer Payments             ,Housing Benefits              ,FA12,Rent Deposits                           ,"3,288.38",03/09/2013,R,AOB ESTATES                   
1661,Adult Social Care,LD u65 Day Care,LD Day Care Agency                      ,W2KB33,Third Party Payments          ,Private Contractors           ,EH01,Miscellaneous Agency Services           ,606.25,16/09/2013,R,APASENTH                      
1662,Adult Social Care,LD u65 Day Care,LD Day Care Agency                      ,W2KB33,Third Party Payments          ,Private Contractors           ,EH01,Miscellaneous Agency Services           ,606.25,16/09/2013,R,APASENTH                      
1663,Adult Social Care,LD u65 Day Care,LD Day Care Agency                      ,W2KB33,Third Party Payments          ,Private Contractors           ,EH01,Miscellaneous Agency Services           ,-519.66,16/09/2013,R,APASENTH                      
1664,Adult Social Care,LD u65 Day Care,LD Day Care Agency                      ,W2KB33,Third Party Payments          ,Private Contractors           ,EH01,Miscellaneous Agency Services           ,519.66,16/09/2013,R,APASENTH                      
1665,Adult Social Care,LD u65 Day Care,LD Day Care Agency                      ,W2KB33,Third Party Payments          ,Private Contractors           ,EH01,Miscellaneous Agency Services           ,606.25,16/09/2013,R,APASENTH                      
1666,Adult Social Care,LD u65 Day Care,LD Day Care Agency                      ,W2KB33,Third Party Payments          ,Private Contractors           ,EH01,Miscellaneous Agency Services           ,606.25,16/09/2013,R,APASENTH                      
302,Central Services,Officer support time,Corporately Funded Items                ,E04065,Supplies & Services           ,Services                      ,DF03,Consultants                             ,"37,900.00",17/09/2013,R,APPERCEPTION                  
126,,,Colliers Wd- Regeneration Fund          ,CE006FB,New Construction Conversion and Renovation,,B4,Contractor - Site works                 ,"1,791.00",23/08/2013,C,AQUARIUS BLINDS               
215,,,St Ann's Primary Phase                  ,CS032AA,New Construction Conversion and Renovation,,B4,Contractor - Site works                 ,"2,450.00",22/08/2013,C,ARCHITECTURAL METAL FIXING SER
662,Childrens & Education Services,Nursery schools,EARLY YEARS NURSERY GRANTS           ,K90042,Supplies & Services           ,Grants and Subscriptions      ,DJ01,Grants                                  ,"22,680.00",16/09/2013,R,ARK AT SHERWOOD LTD           
686,Childrens & Education Services,Nursery schools,EARLY YEARS NURSERY GRANTS           ,K90042,Supplies & Services           ,Grants and Subscriptions      ,DJ57,Nursery Grant Payment-4yr olds          ,"3,234.00",02/09/2013,R,ARK AT SHERWOOD LTD           
107,,,Disabled Facilities Grant DCLG          ,CE004RA,Other Capital Expenditure,,E1,Grants                                  ,895,20/09/2013,C,ASCENDIT LIFTS LTD            
113,,,Disabled Facilities Grant DCLG          ,CE004RA,Other Capital Expenditure,,E1,Grants                                  ,"4,530.00",13/09/2013,C,ASCENDIT LIFTS LTD            
1876,Adult Social Care,LD u65 Residentl Care Placemnt,LD Residential Care External            ,W2KB55,Third Party Payments          ,Private Contractors           ,EH01,Miscellaneous Agency Services           ,"1,248.13",26/08/2013,R,ASHBROOK HOUSE                
1877,Adult Social Care,LD u65 Residentl Care Placemnt,LD Residential Care External            ,W2KB55,Third Party Payments          ,Private Contractors           ,EH01,Miscellaneous Agency Services           ,"1,248.13",27/09/2013,R,ASHBROOK HOUSE                
1995,Adult Social Care,LD u65 Residentl Care Placemnt,LD Residential Care External            ,W2KB55,Third Party Payments          ,Private Contractors           ,EH01,Miscellaneous Agency Services           ,"1,248.13",27/09/2013,R,ASHBROOK HOUSE                
1996,Adult Social Care,LD u65 Residentl Care Placemnt,LD Residential Care External            ,W2KB55,Third Party Payments          ,Private Contractors           ,EH01,Miscellaneous Agency Services           ,"1,248.13",27/09/2013,R,ASHBROOK HOUSE                
2147,Adult Social Care,LD u65 Residentl Care Placemnt,LD Residential Care External            ,W2KB55,Third Party Payments          ,Private Contractors           ,EH01,Miscellaneous Agency Services           ,"1,248.13",26/08/2013,R,ASHBROOK HOUSE                
2148,Adult Social Care,LD u65 Residentl Care Placemnt,LD Residential Care External            ,W2KB55,Third Party Payments          ,Private Contractors           ,EH01,Miscellaneous Agency Services           ,"1,248.13",26/08/2013,R,ASHBROOK HOUSE                
2259,Adult Social Care,LD u65 Residentl Care Placemnt,LD Residential Care External            ,W2KB55,Third Party Payments          ,Private Contractors           ,EH01,Miscellaneous Agency Services           ,"1,248.13",26/08/2013,R,ASHBROOK HOUSE                
2260,Adult Social Care,LD u65 Residentl Care Placemnt,LD Residential Care External            ,W2KB55,Third Party Payments          ,Private Contractors           ,EH01,Miscellaneous Agency Services           ,"1,248.13",27/09/2013,R,ASHBROOK HOUSE                
1848,Adult Social Care,LD u65 Residentl Care Placemnt,LD Residential Care External            ,W2KB55,Third Party Payments          ,Private Contractors           ,EH01,Miscellaneous Agency Services           ,"1,074.97",01/09/2013,R,ASHCROFT CARE SERVICES        
2012,Adult Social Care,LD u65 Residentl Care Placemnt,LD Residential Care External            ,W2KB55,Third Party Payments          ,Private Contractors           ,EH01,Miscellaneous Agency Services           ,"1,343.73",01/09/2013,R,ASHCROFT CARE SERVICES        
2115,Adult Social Care,LD u65 Residentl Care Placemnt,LD Residential Care External            ,W2KB55,Third Party Payments          ,Private Contractors           ,EH01,Miscellaneous Agency Services           ,"1,074.97",01/09/2013,R,ASHCROFT CARE SERVICES        
2157,Adult Social Care,LD u65 Residentl Care Placemnt,LD Residential Care External            ,W2KB55,Third Party Payments          ,Private Contractors           ,EH01,Miscellaneous Agency Services           ,"1,343.73",01/09/2013,R,ASHCROFT CARE SERVICES        
2158,Adult Social Care,LD u65 Residentl Care Placemnt,LD Residential Care External            ,W2KB55,Third Party Payments          ,Private Contractors           ,EH01,Miscellaneous Agency Services           ,"1,343.73",01/09/2013,R,ASHCROFT CARE SERVICES        
2238,Adult Social Care,LD u65 Residentl Care Placemnt,LD Residential Care External            ,W2KB55,Third Party Payments          ,Private Contractors           ,EH01,Miscellaneous Agency Services           ,"1,074.97",01/09/2013,R,ASHCROFT CARE SERVICES        
2239,Adult Social Care,LD u65 Residentl Care Placemnt,LD Residential Care External            ,W2KB55,Third Party Payments          ,Private Contractors           ,EH01,Miscellaneous Agency Services           ,"1,074.97",01/09/2013,R,ASHCROFT CARE SERVICES        
2277,Adult Social Care,LD u65 Residentl Care Placemnt,LD Residential Care External            ,W2KB55,Third Party Payments          ,Private Contractors           ,EH01,Miscellaneous Agency Services           ,"1,343.73",01/09/2013,R,ASHCROFT CARE SERVICES        
1845,Adult Social Care,LD u65 Residentl Care Placemnt,LD Residential Care External            ,W2KB55,Third Party Payments          ,Private Contractors           ,EH01,Miscellaneous Agency Services           ,"1,016.47",26/08/2013,R,ASHINGTON HOUSE               
1846,Adult Social Care,LD u65 Residentl Care Placemnt,LD Residential Care External            ,W2KB55,Third Party Payments          ,Private Contractors           ,EH01,Miscellaneous Agency Services           ,"1,016.47",27/09/2013,R,ASHINGTON HOUSE               
1963,Adult Social Care,LD u65 Residentl Care Placemnt,LD Residential Care External            ,W2KB55,Third Party Payments          ,Private Contractors           ,EH01,Miscellaneous Agency Services           ,"1,016.47",26/08/2013,R,ASHINGTON HOUSE               
1964,Adult Social Care,LD u65 Residentl Care Placemnt,LD Residential Care External            ,W2KB55,Third Party Payments          ,Private Contractors           ,EH01,Miscellaneous Agency Services           ,"1,016.47",27/09/2013,R,ASHINGTON HOUSE               
2111,Adult Social Care,LD u65 Residentl Care Placemnt,LD Residential Care External            ,W2KB55,Third Party Payments          ,Private Contractors           ,EH01,Miscellaneous Agency Services           ,"1,016.47",26/08/2013,R,ASHINGTON HOUSE               
2112,Adult Social Care,LD u65 Residentl Care Placemnt,LD Residential Care External            ,W2KB55,Third Party Payments          ,Private Contractors           ,EH01,Miscellaneous Agency Services           ,"1,016.47",26/08/2013,R,ASHINGTON HOUSE               
2113,Adult Social Care,LD u65 Residentl Care Placemnt,LD Residential Care External            ,W2KB55,Third Party Payments          ,Private Contractors           ,EH01,Miscellaneous Agency Services           ,"1,016.47",27/09/2013,R,ASHINGTON HOUSE               
2235,Adult Social Care,LD u65 Residentl Care Placemnt,LD Residential Care External            ,W2KB55,Third Party Payments          ,Private Contractors           ,EH01,Miscellaneous Agency Services           ,"1,016.47",27/09/2013,R,ASHINGTON HOUSE               
1863,Adult Social Care,LD u65 Residentl Care Placemnt,LD Residential Care External            ,W2KB55,Third Party Payments          ,Private Contractors           ,EH01,Miscellaneous Agency Services           ,"1,154.79",26/08/2013,R,ASHTEAD HOUSE LIMITED         
1864,Adult Social Care,LD u65 Residentl Care Placemnt,LD Residential Care External            ,W2KB55,Third Party Payments          ,Private Contractors           ,EH01,Miscellaneous Agency Services           ,"1,154.79",27/05/2013,R,ASHTEAD HOUSE LIMITED         
1865,Adult Social Care,LD u65 Residentl Care Placemnt,LD Residential Care External            ,W2KB55,Third Party Payments          ,Private Contractors           ,EH01,Miscellaneous Agency Services           ,"1,154.79",27/09/2013,R,ASHTEAD HOUSE LIMITED         
1976,Adult Social Care,LD u65 Residentl Care Placemnt,LD Residential Care External            ,W2KB55,Third Party Payments          ,Private Contractors           ,EH01,Miscellaneous Agency Services           ,"1,154.79",27/05/2013,R,ASHTEAD HOUSE LIMITED         
1977,Adult Social Care,LD u65 Residentl Care Placemnt,LD Residential Care External            ,W2KB55,Third Party Payments          ,Private Contractors           ,EH01,Miscellaneous Agency Services           ,"1,154.79",27/09/2013,R,ASHTEAD HOUSE LIMITED         
1978,Adult Social Care,LD u65 Residentl Care Placemnt,LD Residential Care External            ,W2KB55,Third Party Payments          ,Private Contractors           ,EH01,Miscellaneous Agency Services           ,"1,154.79",27/09/2013,R,ASHTEAD HOUSE LIMITED         
2130,Adult Social Care,LD u65 Residentl Care Placemnt,LD Residential Care External            ,W2KB55,Third Party Payments          ,Private Contractors           ,EH01,Miscellaneous Agency Services           ,"1,154.79",26/08/2013,R,ASHTEAD HOUSE LIMITED         
2131,Adult Social Care,LD u65 Residentl Care Placemnt,LD Residential Care External            ,W2KB55,Third Party Payments          ,Private Contractors           ,EH01,Miscellaneous Agency Services           ,"1,154.79",26/08/2013,R,ASHTEAD HOUSE LIMITED         
2132,Adult Social Care,LD u65 Residentl Care Placemnt,LD Residential Care External            ,W2KB55,Third Party Payments          ,Private Contractors           ,EH01,Miscellaneous Agency Services           ,"1,154.79",27/05/2013,R,ASHTEAD HOUSE LIMITED         
2133,Adult Social Care,LD u65 Residentl Care Placemnt,LD Residential Care External            ,W2KB55,Third Party Payments          ,Private Contractors           ,EH01,Miscellaneous Agency Services           ,"1,154.79",27/09/2013,R,ASHTEAD HOUSE LIMITED         
2249,Adult Social Care,LD u65 Residentl Care Placemnt,LD Residential Care External            ,W2KB55,Third Party Payments          ,Private Contractors           ,EH01,Miscellaneous Agency Services           ,"1,154.79",26/08/2013,R,ASHTEAD HOUSE LIMITED         
2250,Adult Social Care,LD u65 Residentl Care Placemnt,LD Residential Care External            ,W2KB55,Third Party Payments          ,Private Contractors           ,EH01,Miscellaneous Agency Services           ,"1,154.79",27/05/2013,R,ASHTEAD HOUSE LIMITED         
2578,Adult Social Care,OP 65&Over NursingCarePlacemts,OP Hosp - Nursing Care                  ,W2LF53,Third Party Payments          ,Private Contractors           ,EH01,Miscellaneous Agency Services           ,610.9,03/09/2013,R,ASHTON LODGE CARE HOME        
2676,Adult Social Care,OP 65&Over NursingCarePlacemts,OP Hosp - Nursing Care                  ,W2LF53,Third Party Payments          ,Private Contractors           ,EH01,Miscellaneous Agency Services           ,610.9,03/09/2013,R,ASHTON LODGE CARE HOME        
2860,Adult Social Care,OP 65&Over NursingCarePlacemts,OP Hosp - Nursing Care                  ,W2LF53,Third Party Payments          ,Private Contractors           ,EH01,Miscellaneous Agency Services           ,610.9,03/09/2013,R,ASHTON LODGE CARE HOME        
2861,Adult Social Care,OP 65&Over NursingCarePlacemts,OP Hosp - Nursing Care                  ,W2LF53,Third Party Payments          ,Private Contractors           ,EH01,Miscellaneous Agency Services           ,610.9,03/09/2013,R,ASHTON LODGE CARE HOME        
4325,Adult Social Care,Other - Other Adult Services,Fixed & Variable Client Paymen          ,W6AA65,Third Party Payments          ,Private Contractors           ,EH01,Miscellaneous Agency Services           ,"1,522.50",28/08/2013,R,ASIAN ELDERLY GROUP OF MERTON 
218,,,St Ann's Primary Phase                  ,CS032AA,Vehicles Plant Equipment and Machinery,,D3,Equipment                               ,589,10/09/2013,C,ATOMWIDE LTD                  
817,Cultural Env Reg&Plan Services,Theatre & Entertainment,Attic Theatre                           ,P18301,Supplies & Services           ,Grants and Subscriptions      ,DJ01,Grants                                  ,"16,500.00",10/09/2013,R,ATTIC THEATRE COMPANY         
1898,Adult Social Care,LD u65 Residentl Care Placemnt,LD Residential Care External            ,W2KB55,Third Party Payments          ,Private Contractors           ,EH01,Miscellaneous Agency Services           ,"1,419.55",10/09/2013,R,AUTISM SUSSEX LTD             
1899,Adult Social Care,LD u65 Residentl Care Placemnt,LD Residential Care External            ,W2KB55,Third Party Payments          ,Private Contractors           ,EH01,Miscellaneous Agency Services           ,"1,419.55",10/09/2013,R,AUTISM SUSSEX LTD             
1900,Adult Social Care,LD u65 Residentl Care Placemnt,LD Residential Care External            ,W2KB55,Third Party Payments          ,Private Contractors           ,EH01,Miscellaneous Agency Services           ,"1,419.55",10/09/2013,R,AUTISM SUSSEX LTD             
2031,Adult Social Care,LD u65 Residentl Care Placemnt,LD Residential Care External            ,W2KB55,Third Party Payments          ,Private Contractors           ,EH01,Miscellaneous Agency Services           ,"1,419.55",15/07/2013,R,AUTISM SUSSEX LTD             
2169,Adult Social Care,LD u65 Residentl Care Placemnt,LD Residential Care External            ,W2KB55,Third Party Payments          ,Private Contractors           ,EH01,Miscellaneous Agency Services           ,"1,419.55",15/07/2013,R,AUTISM SUSSEX LTD             
2170,Adult Social Care,LD u65 Residentl Care Placemnt,LD Residential Care External            ,W2KB55,Third Party Payments          ,Private Contractors           ,EH01,Miscellaneous Agency Services           ,"1,419.55",15/07/2013,R,AUTISM SUSSEX LTD             
2171,Adult Social Care,LD u65 Residentl Care Placemnt,LD Residential Care External            ,W2KB55,Third Party Payments          ,Private Contractors           ,EH01,Miscellaneous Agency Services           ,"1,419.55",10/09/2013,R,AUTISM SUSSEX LTD             
2292,Adult Social Care,LD u65 Residentl Care Placemnt,LD Residential Care External            ,W2KB55,Third Party Payments          ,Private Contractors           ,EH01,Miscellaneous Agency Services           ,"1,419.55",15/07/2013,R,AUTISM SUSSEX LTD             
737,Cultural Env Reg&Plan Services,Library DoS not split,Libraries Service-Civic Centre          ,L50001,Supplies & Services           ,Comms and Computing           ,DG04,Postage - General                       ,929,31/08/2013,R,AXIELL                        
205,,,Pelham School Expansion                 ,CS023AC,New Construction Conversion and Renovation,,B2,Site Surveys D&S Structure              ,"1,070.00",17/07/2013,C,BAILY GARNER                  
309,Central Services,GENERATED ACCOUNT,Parking Cash Collect'n Contrct          ,E06225,Third Party Payments          ,Private Contractors           ,EH02,Miscellaneous Hired Services            ,"1,167.71",31/07/2013,R,BANKING AUTOMATION LTD        
310,Central Services,GENERATED ACCOUNT,Parking Cash Collect'n Contrct          ,E06225,Third Party Payments          ,Private Contractors           ,EH02,Miscellaneous Hired Services            ,975,31/07/2013,R,BANKING AUTOMATION LTD        
311,Central Services,GENERATED ACCOUNT,Parking Cash Collect'n Contrct          ,E06225,Third Party Payments          ,Private Contractors           ,EH02,Miscellaneous Hired Services            ,"11,413.10",31/07/2013,R,BANKING AUTOMATION LTD        
535,CS -Oth Operating Inc & Expend,T/A Vehicle Maintenance etc,Transport-Workshop                      ,J01376,Transport Related Expenditure ,Contract Hire and Op Leasing  ,CC60,Vehicle Hire for LB Sutton              ,"4,712.00",30/08/2013,R,BARCLAYS ASSET & SALES FINANCE
808,Cultural Env Reg&Plan Services,Parks & Open Spaces,Mitcham Parks                           ,P05109,Premises Related Expenditure  ,Ground Maintenance Costs      ,BL03,Maintenance of Grounds                  ,640,02/08/2013,R,BARKLANDS TREE SPECIALISTS    
1777,Adult Social Care,LD u65 Nursing Care Placements,LD Nursing Care                         ,W2KB53,Third Party Payments          ,Private Contractors           ,EH01,Miscellaneous Agency Services           ,924.08,31/08/2013,R,BARONS LODGE NURSING HOME     
1778,Adult Social Care,LD u65 Nursing Care Placements,LD Nursing Care                         ,W2KB53,Third Party Payments          ,Private Contractors           ,EH01,Miscellaneous Agency Services           ,924.08,31/08/2013,R,BARONS LODGE NURSING HOME     
1784,Adult Social Care,LD u65 Nursing Care Placements,LD Nursing Care                         ,W2KB53,Third Party Payments          ,Private Contractors           ,EH01,Miscellaneous Agency Services           ,924.08,31/08/2013,R,BARONS LODGE NURSING HOME     
1789,Adult Social Care,LD u65 Nursing Care Placements,LD Nursing Care                         ,W2KB53,Third Party Payments          ,Private Contractors           ,EH01,Miscellaneous Agency Services           ,924.08,31/08/2013,R,BARONS LODGE NURSING HOME     
1819,Adult Social Care,LD u65 Residentl Care Placemnt,LD Residential Care External            ,W2KB55,Third Party Payments          ,Private Contractors           ,EH01,Miscellaneous Agency Services           ,650,31/08/2013,R,BARONS LODGE NURSING HOME     
1820,Adult Social Care,LD u65 Residentl Care Placemnt,LD Residential Care External            ,W2KB55,Third Party Payments          ,Private Contractors           ,EH01,Miscellaneous Agency Services           ,650,31/08/2013,R,BARONS LODGE NURSING HOME     
2082,Adult Social Care,LD u65 Residentl Care Placemnt,LD Residential Care External            ,W2KB55,Third Party Payments          ,Private Contractors           ,EH01,Miscellaneous Agency Services           ,650,31/08/2013,R,BARONS LODGE NURSING HOME     
2083,Adult Social Care,LD u65 Residentl Care Placemnt,LD Residential Care External            ,W2KB55,Third Party Payments          ,Private Contractors           ,EH01,Miscellaneous Agency Services           ,650,31/08/2013,R,BARONS LODGE NURSING HOME     
1709,Adult Social Care,LD u65 Home Care,LD Home Care External                   ,W2KB49,Third Party Payments          ,Private Contractors           ,EH01,Miscellaneous Agency Services           ,656.39,22/09/2013,R,BEECH HOME CARE SERVICES      
1727,Adult Social Care,LD u65 Home Care,LD Home Care External                   ,W2KB49,Third Party Payments          ,Private Contractors           ,EH01,Miscellaneous Agency Services           ,656.39,18/08/2013,R,BEECH HOME CARE SERVICES      
1728,Adult Social Care,LD u65 Home Care,LD Home Care External                   ,W2KB49,Third Party Payments          ,Private Contractors           ,EH01,Miscellaneous Agency Services           ,656.39,08/09/2013,R,BEECH HOME CARE SERVICES      
1747,Adult Social Care,LD u65 Home Care,LD Home Care External                   ,W2KB49,Third Party Payments          ,Private Contractors           ,EH01,Miscellaneous Agency Services           ,656.39,11/08/2013,R,BEECH HOME CARE SERVICES      
1748,Adult Social Care,LD u65 Home Care,LD Home Care External                   ,W2KB49,Third Party Payments          ,Private Contractors           ,EH01,Miscellaneous Agency Services           ,656.39,25/08/2013,R,BEECH HOME CARE SERVICES      
1749,Adult Social Care,LD u65 Home Care,LD Home Care External                   ,W2KB49,Third Party Payments          ,Private Contractors           ,EH01,Miscellaneous Agency Services           ,656.39,01/09/2013,R,BEECH HOME CARE SERVICES      
1770,Adult Social Care,LD u65 Home Care,LD Home Care External                   ,W2KB49,Third Party Payments          ,Private Contractors           ,EH01,Miscellaneous Agency Services           ,656.39,15/09/2013,R,BEECH HOME CARE SERVICES      
4009,Adult Social Care,OP 65&Over Resi Care Placement,OP R/Park-Residential Care Ext          ,W2LR55,Third Party Payments          ,Private Contractors           ,EH01,Miscellaneous Agency Services           ,500,01/09/2013,R,BEECHWOOD HOUSE               
4010,Adult Social Care,OP 65&Over Resi Care Placement,OP R/Park-Residential Care Ext          ,W2LR55,Third Party Payments          ,Private Contractors           ,EH01,Miscellaneous Agency Services           ,500,01/09/2013,R,BEECHWOOD HOUSE               
4034,Adult Social Care,OP 65&Over Resi Care Placement,OP R/Park-Residential Care Ext          ,W2LR55,Third Party Payments          ,Private Contractors           ,EH01,Miscellaneous Agency Services           ,500,01/09/2013,R,BEECHWOOD HOUSE               
4109,Adult Social Care,OP 65&Over Resi Care Placement,OP R/Park-Residential Care Ext          ,W2LR55,Third Party Payments          ,Private Contractors           ,EH01,Miscellaneous Agency Services           ,500,01/09/2013,R,BEECHWOOD HOUSE               
426,Cultural Env Reg&Plan Services,Street Clean - Not highways,Street Cleansing (Inc. Gully)           ,G00492,Supplies & Services           ,Equip Furniture/Materials     ,DA08,Tools-Purchase                          ,"1,562.20",23/08/2013,R,BELL BRUSH                    
273,Central Services,SupS Facilities,Facilities                              ,E02231,Supplies & Services           ,Services                      ,DF09,Miscellaneous Fees                      ,550,30/08/2013,R,BELL FLOW SYSTEMS LTD         
265,Central Services,SupS Facilities,Facilities                              ,E02231,Premises Related Expenditure  ,RepairsAlterations&MtceOfBldgs,BA02,ENERGY CONSERVATION                     ,"1,917.00",01/06/2013,R,BERGEN ENERGI                 
267,Central Services,SupS Facilities,Facilities                              ,E02231,Premises Related Expenditure  ,RepairsAlterations&MtceOfBldgs,BA02,ENERGY CONSERVATION                     ,"1,917.00",01/08/2013,R,BERGEN ENERGI                 
268,Central Services,SupS Facilities,Facilities                              ,E02231,Premises Related Expenditure  ,RepairsAlterations&MtceOfBldgs,BA02,ENERGY CONSERVATION                     ,"1,917.00",06/05/2013,R,BERGEN ENERGI                 
269,Central Services,SupS Facilities,Facilities                              ,E02231,Premises Related Expenditure  ,RepairsAlterations&MtceOfBldgs,BA02,ENERGY CONSERVATION                     ,"1,917.00",02/09/2013,R,BERGEN ENERGI                 
3666,Adult Social Care,OP 65&Over Resi Care Placement,OP East - Residential Care Ext          ,W2LH55,Third Party Payments          ,Private Contractors           ,EH01,Miscellaneous Agency Services           ,524.22,06/09/2013,R,BHAKTI SHYAMA CARE CENTRE     
3707,Adult Social Care,OP 65&Over Resi Care Placement,OP East - Residential Care Ext          ,W2LH55,Third Party Payments          ,Private Contractors           ,EH01,Miscellaneous Agency Services           ,524.22,06/09/2013,R,BHAKTI SHYAMA CARE CENTRE     
3708,Adult Social Care,OP 65&Over Resi Care Placement,OP East - Residential Care Ext          ,W2LH55,Third Party Payments          ,Private Contractors           ,EH01,Miscellaneous Agency Services           ,524.22,06/09/2013,R,BHAKTI SHYAMA CARE CENTRE     
3709,Adult Social Care,OP 65&Over Resi Care Placement,OP East - Residential Care Ext          ,W2LH55,Third Party Payments          ,Private Contractors           ,EH01,Miscellaneous Agency Services           ,524.22,06/09/2013,R,BHAKTI SHYAMA CARE CENTRE     
3749,Adult Social Care,OP 65&Over Resi Care Placement,OP East - Residential Care Ext          ,W2LH55,Third Party Payments          ,Private Contractors           ,EH01,Miscellaneous Agency Services           ,524.22,06/09/2013,R,BHAKTI SHYAMA CARE CENTRE     
3750,Adult Social Care,OP 65&Over Resi Care Placement,OP East - Residential Care Ext          ,W2LH55,Third Party Payments          ,Private Contractors           ,EH01,Miscellaneous Agency Services           ,524.22,06/09/2013,R,BHAKTI SHYAMA CARE CENTRE     
3785,Adult Social Care,OP 65&Over Resi Care Placement,OP East - Residential Care Ext          ,W2LH55,Third Party Payments          ,Private Contractors           ,EH01,Miscellaneous Agency Services           ,524.22,06/09/2013,R,BHAKTI SHYAMA CARE CENTRE     
3786,Adult Social Care,OP 65&Over Resi Care Placement,OP East - Residential Care Ext          ,W2LH55,Third Party Payments          ,Private Contractors           ,EH01,Miscellaneous Agency Services           ,524.22,06/09/2013,R,BHAKTI SHYAMA CARE CENTRE     
1348,Adult Social Care,MH u65 Residentl Care Placemnt,MH Res Care Ext- Mitcham West           ,W2HD55,Third Party Payments          ,Private Contractors           ,EH01,Miscellaneous Agency Services           ,500,05/09/2013,R,BIBBY FACTORS SLOUGH LTD      
1349,Adult Social Care,MH u65 Residentl Care Placemnt,MH Res Care Ext- Mitcham West           ,W2HD55,Third Party Payments          ,Private Contractors           ,EH01,Miscellaneous Agency Services           ,500,05/09/2013,R,BIBBY FACTORS SLOUGH LTD      
1352,Adult Social Care,MH u65 Residentl Care Placemnt,MH Res Care Ext- Mitcham West           ,W2HD55,Third Party Payments          ,Private Contractors           ,EH01,Miscellaneous Agency Services           ,500,05/09/2013,R,BIBBY FACTORS SLOUGH LTD      
1353,Adult Social Care,MH u65 Residentl Care Placemnt,MH Res Care Ext- Mitcham West           ,W2HD55,Third Party Payments          ,Private Contractors           ,EH01,Miscellaneous Agency Services           ,500,05/09/2013,R,BIBBY FACTORS SLOUGH LTD      
1354,Adult Social Care,MH u65 Residentl Care Placemnt,MH Res Care Ext- Mitcham West           ,W2HD55,Third Party Payments          ,Private Contractors           ,EH01,Miscellaneous Agency Services           ,500,05/09/2013,R,BIBBY FACTORS SLOUGH LTD      
432,Cultural Env Reg&Plan Services,Waste Disposal (not separated),Waste Disposal .                        ,G00550,Third Party Payments          ,Private Contractors           ,EH01,Dog Bin Disposal - Biffa                ,639.23,13/09/2013,R,BIFFA WASTE SERVICES LTD      
440,Cultural Env Reg&Plan Services,Recycling (Collection),Recycling Activities                    ,G00640,Premises Related Expenditure  ,Cleaning and Domestic Supplies,BH03,Cleaning Services                       ,"9,730.00",16/09/2013,R,BINWASHERS LLP                
441,Cultural Env Reg&Plan Services,Recycling (Collection),Recycling Activities                    ,G00640,Premises Related Expenditure  ,Cleaning and Domestic Supplies,BH03,Cleaning Services                       ,"1,500.00",16/09/2013,R,BINWASHERS LLP                
254,Central Services,SupS Facilities,Civic Centre                            ,E02222,Premises Related Expenditure  ,Cleaning and Domestic Supplies,BH03,Cleaning Services                       ,"3,035.93",01/09/2013,R,BIRKIN CLEANING SERVICES LTD  
255,Central Services,SupS Facilities,Civic Centre                            ,E02222,Premises Related Expenditure  ,Cleaning and Domestic Supplies,BH03,Cleaning Services                       ,"1,464.69",01/09/2013,R,BIRKIN CLEANING SERVICES LTD  
256,Central Services,SupS Facilities,Civic Centre                            ,E02222,Premises Related Expenditure  ,Cleaning and Domestic Supplies,BH03,Cleaning Services                       ,"6,473.18",01/09/2013,R,BIRKIN CLEANING SERVICES LTD  
257,Central Services,SupS Facilities,Civic Centre                            ,E02222,Premises Related Expenditure  ,Cleaning and Domestic Supplies,BH03,Cleaning Services                       ,"1,215.98",01/09/2013,R,BIRKIN CLEANING SERVICES LTD  
258,Central Services,SupS Facilities,Civic Centre                            ,E02222,Premises Related Expenditure  ,Cleaning and Domestic Supplies,BH03,Cleaning Services                       ,"1,511.31",01/09/2013,R,BIRKIN CLEANING SERVICES LTD  
259,Central Services,SupS Facilities,Civic Centre                            ,E02222,Premises Related Expenditure  ,Cleaning and Domestic Supplies,BH03,Cleaning Services                       ,"1,642.40",01/09/2013,R,BIRKIN CLEANING SERVICES LTD  
260,Central Services,SupS Facilities,Civic Centre                            ,E02222,Premises Related Expenditure  ,Cleaning and Domestic Supplies,BH03,Cleaning Services                       ,"1,199.41",01/09/2013,R,BIRKIN CLEANING SERVICES LTD  
261,Central Services,SupS Facilities,Civic Centre                            ,E02222,Premises Related Expenditure  ,Cleaning and Domestic Supplies,BH03,Cleaning Services                       ,"1,395.29",01/09/2013,R,BIRKIN CLEANING SERVICES LTD  
262,Central Services,SupS Facilities,Civic Centre                            ,E02222,Premises Related Expenditure  ,Cleaning and Domestic Supplies,BH03,Cleaning Services                       ,819.47,01/09/2013,R,BIRKIN CLEANING SERVICES LTD  
466,Central Services,Grants - Voluntary Groups,Vestry Hall                             ,G19290,Premises Related Expenditure  ,Cleaning and Domestic Supplies,BH03,Cleaning Services                       ,"1,357.76",01/09/2013,R,BIRKIN CLEANING SERVICES LTD  
585,Childrens & Education Services,GENERATED ACCOUNT,Mitcham MAT (Premises)                  ,K05412,Premises Related Expenditure  ,Cleaning and Domestic Supplies,BH03,Cleaning Services                       ,"1,186.24",01/09/2013,R,BIRKIN CLEANING SERVICES LTD  
586,Childrens & Education Services,Nursery schools,Lavender CC Non Childcare               ,K05415,Premises Related Expenditure  ,Cleaning and Domestic Supplies,BH03,Cleaning Services                       ,"1,189.54",01/09/2013,R,BIRKIN CLEANING SERVICES LTD  
588,Childrens & Education Services,Nursery schools,E.Years-Intergenerational Cntr          ,K05416,Premises Related Expenditure  ,Cleaning and Domestic Supplies,BH03,Cleaning Services                       ,796.82,01/09/2013,R,BIRKIN CLEANING SERVICES LTD  
739,Cultural Env Reg&Plan Services,Library DoS not split,Mitcham Library                         ,L83071,Premises Related Expenditure  ,Cleaning and Domestic Supplies,BH03,Cleaning Services                       ,973.81,01/09/2013,R,BIRKIN CLEANING SERVICES LTD  
743,Cultural Env Reg&Plan Services,Library DoS not split,Pollards Hill Library                   ,L83073,Premises Related Expenditure  ,Cleaning and Domestic Supplies,BH03,Cleaning Services                       ,943.91,01/09/2013,R,BIRKIN CLEANING SERVICES LTD  
746,Cultural Env Reg&Plan Services,Library DoS not split,Morden Library                          ,L84081,Premises Related Expenditure  ,Cleaning and Domestic Supplies,BH03,Cleaning Services                       ,964.35,01/09/2013,R,BIRKIN CLEANING SERVICES LTD  
747,Cultural Env Reg&Plan Services,Library DoS not split,Raynes Park Library                     ,L84083,Premises Related Expenditure  ,Cleaning and Domestic Supplies,BH03,Cleaning Services                       ,574.82,01/09/2013,R,BIRKIN CLEANING SERVICES LTD  
749,Cultural Env Reg&Plan Services,Library DoS not split,Wimbledon Library                       ,L85091,Premises Related Expenditure  ,Cleaning and Domestic Supplies,BH03,Cleaning Services                       ,"1,161.91",01/09/2013,R,BIRKIN CLEANING SERVICES LTD  
811,Cultural Env Reg&Plan Services,Parks & Open Spaces,Wimbledon Parks                         ,P05111,Premises Related Expenditure  ,Cleaning and Domestic Supplies,BH03,Cleaning Services                       ,"5,066.58",16/08/2013,R,BIRKIN CLEANING SERVICES LTD  
1363,Adult Social Care,PS u65 Day Care,PS All Saints DC                        ,W2JC00,Premises Related Expenditure  ,Cleaning and Domestic Supplies,BH03,Cleaning Services                       ,"1,150.26",01/09/2013,R,BIRKIN CLEANING SERVICES LTD  
4403,,,LD JMC                                  ,WPKB00,Premises Related Expenditure  ,Cleaning and Domestic Supplies,BH03,Cleaning Services                       ,"1,348.11",01/09/2013,R,BIRKIN CLEANING SERVICES LTD  
4406,,,LD High Path DC                         ,WPKB02,Premises Related Expenditure  ,Cleaning and Domestic Supplies,BH03,Cleaning Services                       ,"1,017.02",01/09/2013,R,BIRKIN CLEANING SERVICES LTD  
229,,,Merton Pk- Entrance adaptation          ,CS052AB,New Construction Conversion and Renovation,,B4,Contractor - Site works                 ,"8,816.01",06/09/2013,C,BLAKEDOWN LANDSCAPES (SE) LTD 
235,,,Crkt Grn - External Imprvmnts           ,CS091AB,New Construction Conversion and Renovation,,B4,Contractor - Site works                 ,"37,991.88",06/09/2013,C,BLAKEDOWN LANDSCAPES (SE) LTD 
603,Childrens & Education Services,Youth Centres (Residential),Youth Office Premises Cost              ,K06073,Premises Related Expenditure  ,RepairsAlterations&MtceOfBldgs,BA06,Repairs & Maintenance General           ,"3,417.00",08/07/2013,R,BLAKEDOWN LANDSCAPES (SE) LTD 
174,,,School & Road Safety Campaigns          ,CE104RC,Other Capital Expenditure,,E4,TFL Other                               ,650,11/09/2013,C,BLAKES DRIVER TRAINING        
820,Childrens & Education Services,CS - Commiss'ing & Social Work,SD Inde Review&Serv Qual                ,W1BD01,Supplies & Services           ,Services                      ,DF03,Consultants                             ,600,30/08/2013,R,BLAZIE                        
803,Cultural Env Reg&Plan Services,Sports Dev & Community Rec,Leisure Development                     ,P05068,Supplies & Services           ,Expenses                      ,DH50,Special Projects                        ,500,29/08/2013,R,BLENDAVENDA LTD               
645,Childrens & Education Services,Support for SEN Pupils,Non-Delegated Statements                ,K90024,Third Party Payments          ,Other Establishments          ,EG50,Ind Day Schs Payments                   ,"5,398.00",09/09/2013,R,BLOSSOM HOUSE SCHOOL          
646,Childrens & Education Services,Support for SEN Pupils,Non-Delegated Statements                ,K90024,Third Party Payments          ,Other Establishments          ,EG50,Ind Day Schs Payments                   ,"9,720.00",27/08/2013,R,BLOSSOM LOWER SCHOOL LTD      
648,Childrens & Education Services,Support for SEN Pupils,Non-Delegated Statements                ,K90024,Third Party Payments          ,Other Establishments          ,EG50,Ind Day Schs Payments                   ,"2,528.00",09/09/2013,R,BLOSSOM LOWER SCHOOL LTD      
649,Childrens & Education Services,Support for SEN Pupils,Non-Delegated Statements                ,K90024,Third Party Payments          ,Other Establishments          ,EG50,Ind Day Schs Payments                   ,"11,493.00",27/08/2013,R,BLOSSOM LOWER SCHOOL LTD      
665,Childrens & Education Services,Nursery schools,EARLY YEARS NURSERY GRANTS           ,K90042,Supplies & Services           ,Grants and Subscriptions      ,DJ01,Grants                                  ,"11,113.20",09/09/2013,R,BOW LANE PRE-SCHOOL           
33,Central Services,SupS Health & Safety,Learning and Development                ,B06146,Employees                     ,Indirect Employee Expenses    ,AB57,EXTERNAL TRAINING COSTS                 ,"1,125.00",23/08/2013,R,BPP PROFESSIONAL EDUCATION    
34,Central Services,SupS Health & Safety,Learning and Development                ,B06146,Employees                     ,Indirect Employee Expenses    ,AB57,EXTERNAL TRAINING COSTS                 ,"1,329.17",19/08/2013,R,BPP PROFESSIONAL EDUCATION    
1465,Adult Social Care,PS u65 Residentl Care Placemnt,PD EAST TEAM-Residential                ,W2JJ55,Third Party Payments          ,Private Contractors           ,EH01,Miscellaneous Agency Services           ,"1,500.00",12/09/2013,R,BRAMBLEDOWN CARE HOME         
1478,Adult Social Care,PS u65 Residentl Care Placemnt,PD EAST TEAM-Residential                ,W2JJ55,Third Party Payments          ,Private Contractors           ,EH01,Miscellaneous Agency Services           ,"1,500.00",12/09/2013,R,BRAMBLEDOWN CARE HOME         
1479,Adult Social Care,PS u65 Residentl Care Placemnt,PD EAST TEAM-Residential                ,W2JJ55,Third Party Payments          ,Private Contractors           ,EH01,Miscellaneous Agency Services           ,"1,500.00",12/09/2013,R,BRAMBLEDOWN CARE HOME         
1480,Adult Social Care,PS u65 Residentl Care Placemnt,PD EAST TEAM-Residential                ,W2JJ55,Third Party Payments          ,Private Contractors           ,EH01,Miscellaneous Agency Services           ,"1,500.00",12/09/2013,R,BRAMBLEDOWN CARE HOME         
934,Childrens & Education Services,Fostering Services,ART Independent Agency Foster           ,W1DE46,Supplies & Services           ,Services                      ,DF53,Task Based Fostering                    ,760,02/08/2013,R,BRIGHTER FUTURES FOSTER CARE  
935,Childrens & Education Services,Fostering Services,ART Independent Agency Foster           ,W1DE46,Supplies & Services           ,Services                      ,DF53,Task Based Fostering                    ,760,02/08/2013,R,BRIGHTER FUTURES FOSTER CARE  
936,Childrens & Education Services,Fostering Services,ART Independent Agency Foster           ,W1DE46,Supplies & Services           ,Services                      ,DF53,Task Based Fostering                    ,760,02/08/2013,R,BRIGHTER FUTURES FOSTER CARE  
937,Childrens & Education Services,Fostering Services,ART Independent Agency Foster           ,W1DE46,Supplies & Services           ,Services                      ,DF53,Task Based Fostering                    ,760,02/08/2013,R,BRIGHTER FUTURES FOSTER CARE  
1836,Adult Social Care,LD u65 Residentl Care Placemnt,LD Residential Care External            ,W2KB55,Third Party Payments          ,Private Contractors           ,EH01,Miscellaneous Agency Services           ,949.51,19/09/2013,R,BRIGSTOCK HOUSE               
2097,Adult Social Care,LD u65 Residentl Care Placemnt,LD Residential Care External            ,W2KB55,Third Party Payments          ,Private Contractors           ,EH01,Miscellaneous Agency Services           ,949.51,19/09/2013,R,BRIGSTOCK HOUSE               
2098,Adult Social Care,LD u65 Residentl Care Placemnt,LD Residential Care External            ,W2KB55,Third Party Payments          ,Private Contractors           ,EH01,Miscellaneous Agency Services           ,949.51,19/09/2013,R,BRIGSTOCK HOUSE               
2099,Adult Social Care,LD u65 Residentl Care Placemnt,LD Residential Care External            ,W2KB55,Third Party Payments          ,Private Contractors           ,EH01,Miscellaneous Agency Services           ,949.51,19/09/2013,R,BRIGSTOCK HOUSE               
2100,Adult Social Care,LD u65 Residentl Care Placemnt,LD Residential Care External            ,W2KB55,Third Party Payments          ,Private Contractors           ,EH01,Miscellaneous Agency Services           ,949.51,20/09/2013,R,BRIGSTOCK HOUSE               
2225,Adult Social Care,LD u65 Residentl Care Placemnt,LD Residential Care External            ,W2KB55,Third Party Payments          ,Private Contractors           ,EH01,Miscellaneous Agency Services           ,949.51,20/09/2013,R,BRIGSTOCK HOUSE               
2226,Adult Social Care,LD u65 Residentl Care Placemnt,LD Residential Care External            ,W2KB55,Third Party Payments          ,Private Contractors           ,EH01,Miscellaneous Agency Services           ,949.51,20/09/2013,R,BRIGSTOCK HOUSE               
2227,Adult Social Care,LD u65 Residentl Care Placemnt,LD Residential Care External            ,W2KB55,Third Party Payments          ,Private Contractors           ,EH01,Miscellaneous Agency Services           ,949.51,20/09/2013,R,BRIGSTOCK HOUSE               
1396,Adult Social Care,PS u65 Nursing Care Placements,PD EAST TEAM-Nursing                    ,W2JJ53,Third Party Payments          ,Private Contractors           ,EH01,Miscellaneous Agency Services           ,985,09/09/2013,R,BRITISH HOME                  
1415,Adult Social Care,PS u65 Nursing Care Placements,PD EAST TEAM-Nursing                    ,W2JJ53,Third Party Payments          ,Private Contractors           ,EH01,Miscellaneous Agency Services           ,985,09/09/2013,R,BRITISH HOME                  
1416,Adult Social Care,PS u65 Nursing Care Placements,PD EAST TEAM-Nursing                    ,W2JJ53,Third Party Payments          ,Private Contractors           ,EH01,Miscellaneous Agency Services           ,985,09/09/2013,R,BRITISH HOME                  
1426,Adult Social Care,PS u65 Nursing Care Placements,PD EAST TEAM-Nursing                    ,W2JJ53,Third Party Payments          ,Private Contractors           ,EH01,Miscellaneous Agency Services           ,985,09/09/2013,R,BRITISH HOME                  
3459,Adult Social Care,OP 65&Over NursingCarePlacemts,OP East - Nursing Care                  ,W2LH53,Third Party Payments          ,Private Contractors           ,EH01,Miscellaneous Agency Services           ,693.94,09/09/2013,R,BRITISH HOME                  
3517,Adult Social Care,OP 65&Over NursingCarePlacemts,OP East - Nursing Care                  ,W2LH53,Third Party Payments          ,Private Contractors           ,EH01,Miscellaneous Agency Services           ,693.94,09/09/2013,R,BRITISH HOME                  
3654,Adult Social Care,OP 65&Over NursingCarePlacemts,OP East - Nursing Care                  ,W2LH53,Third Party Payments          ,Private Contractors           ,EH01,Miscellaneous Agency Services           ,693.94,09/09/2013,R,BRITISH HOME                  
3655,Adult Social Care,OP 65&Over NursingCarePlacemts,OP East - Nursing Care                  ,W2LH53,Third Party Payments          ,Private Contractors           ,EH01,Miscellaneous Agency Services           ,693.94,09/09/2013,R,BRITISH HOME                  
358,Central Services,SupS IT,Operations & Telecomms                  ,E14367,Supplies & Services           ,Comms and Computing           ,DG54,Corporate Telephones                    ,"4,785.48",02/09/2013,R,BRITISH TELECOMMUNICATIONS PLC
360,Central Services,SupS IT,Operations & Telecomms                  ,E14367,Supplies & Services           ,Comms and Computing           ,DG54,Corporate Telephones                    ,"26,693.91",27/08/2013,R,BRITISH TELECOMMUNICATIONS PLC
3854,Adult Social Care,OP 65&Over NursingCarePlacemts,OP R/Park - Nursing Care                ,W2LR53,Third Party Payments          ,Private Contractors           ,EH01,Miscellaneous Agency Services           ,585.46,01/09/2013,R,BROADLANDS NURSING HOME       
3855,Adult Social Care,OP 65&Over NursingCarePlacemts,OP R/Park - Nursing Care                ,W2LR53,Third Party Payments          ,Private Contractors           ,EH01,Miscellaneous Agency Services           ,585.46,01/09/2013,R,BROADLANDS NURSING HOME       
3900,Adult Social Care,OP 65&Over NursingCarePlacemts,OP R/Park - Nursing Care                ,W2LR53,Third Party Payments          ,Private Contractors           ,EH01,Miscellaneous Agency Services           ,585.46,01/09/2013,R,BROADLANDS NURSING HOME       
3901,Adult Social Care,OP 65&Over NursingCarePlacemts,OP R/Park - Nursing Care                ,W2LR53,Third Party Payments          ,Private Contractors           ,EH01,Miscellaneous Agency Services           ,585.46,01/09/2013,R,BROADLANDS NURSING HOME       
3950,Adult Social Care,OP 65&Over NursingCarePlacemts,OP R/Park - Nursing Care                ,W2LR53,Third Party Payments          ,Private Contractors           ,EH01,Miscellaneous Agency Services           ,585.46,01/09/2013,R,BROADLANDS NURSING HOME       
3992,Adult Social Care,OP 65&Over NursingCarePlacemts,OP R/Park - Nursing Care                ,W2LR53,Third Party Payments          ,Private Contractors           ,EH01,Miscellaneous Agency Services           ,585.46,01/09/2013,R,BROADLANDS NURSING HOME       
3993,Adult Social Care,OP 65&Over NursingCarePlacemts,OP R/Park - Nursing Care                ,W2LR53,Third Party Payments          ,Private Contractors           ,EH01,Miscellaneous Agency Services           ,585.46,01/09/2013,R,BROADLANDS NURSING HOME       
3994,Adult Social Care,OP 65&Over NursingCarePlacemts,OP R/Park - Nursing Care                ,W2LR53,Third Party Payments          ,Private Contractors           ,EH01,Miscellaneous Agency Services           ,585.46,01/09/2013,R,BROADLANDS NURSING HOME       
764,Housing Services,Bed / breakfast accommodation,Homelessness Prevention                 ,N47171,Transfer Payments             ,Housing Benefits              ,FA12,Rent Deposits                           ,"1,200.00",11/09/2013,R,BROADWAY HOMELESS & SUPPORT   
765,Housing Services,Bed / breakfast accommodation,Homelessness Prevention                 ,N47171,Transfer Payments             ,Housing Benefits              ,FA12,Rent Deposits                           ,"1,200.00",06/09/2013,R,BROADWAY HOMELESS & SUPPORT   
768,Housing Services,Bed / breakfast accommodation,Homelessness Prevention                 ,N47171,Transfer Payments             ,Housing Benefits              ,FA12,Rent Deposits                           ,"1,200.00",11/09/2013,R,BROADWAY HOMELESS & SUPPORT   
3663,Adult Social Care,OP 65&Over Resi Care Placement,OP East - Residential Care Ext          ,W2LH55,Third Party Payments          ,Private Contractors           ,EH01,Miscellaneous Agency Services           ,500,20/09/2013,R,BROOK CARE HOMES LTD          
3702,Adult Social Care,OP 65&Over Resi Care Placement,OP East - Residential Care Ext          ,W2LH55,Third Party Payments          ,Private Contractors           ,EH01,Miscellaneous Agency Services           ,500,20/09/2013,R,BROOK CARE HOMES LTD          
3743,Adult Social Care,OP 65&Over Resi Care Placement,OP East - Residential Care Ext          ,W2LH55,Third Party Payments          ,Private Contractors           ,EH01,Miscellaneous Agency Services           ,500,20/09/2013,R,BROOK CARE HOMES LTD          
3744,Adult Social Care,OP 65&Over Resi Care Placement,OP East - Residential Care Ext          ,W2LH55,Third Party Payments          ,Private Contractors           ,EH01,Miscellaneous Agency Services           ,500,20/09/2013,R,BROOK CARE HOMES LTD          
1269,Adult Social Care,MH u65 Residentl Care Placemnt,MH ResidentialCare Ext-Morden           ,W2HB55,Third Party Payments          ,Private Contractors           ,EH01,Miscellaneous Agency Services           ,524.28,01/09/2013,R,BROOKDALE HEALTH CARE         
1270,Adult Social Care,MH u65 Residentl Care Placemnt,MH ResidentialCare Ext-Morden           ,W2HB55,Third Party Payments          ,Private Contractors           ,EH01,Miscellaneous Agency Services           ,524.28,01/10/2013,R,BROOKDALE HEALTH CARE         
1273,Adult Social Care,MH u65 Residentl Care Placemnt,MH ResidentialCare Ext-Morden           ,W2HB55,Third Party Payments          ,Private Contractors           ,EH01,Miscellaneous Agency Services           ,524.28,01/09/2013,R,BROOKDALE HEALTH CARE         
1274,Adult Social Care,MH u65 Residentl Care Placemnt,MH ResidentialCare Ext-Morden           ,W2HB55,Third Party Payments          ,Private Contractors           ,EH01,Miscellaneous Agency Services           ,524.28,01/09/2013,R,BROOKDALE HEALTH CARE         
1275,Adult Social Care,MH u65 Residentl Care Placemnt,MH ResidentialCare Ext-Morden           ,W2HB55,Third Party Payments          ,Private Contractors           ,EH01,Miscellaneous Agency Services           ,524.28,01/09/2013,R,BROOKDALE HEALTH CARE         
1276,Adult Social Care,MH u65 Residentl Care Placemnt,MH ResidentialCare Ext-Morden           ,W2HB55,Third Party Payments          ,Private Contractors           ,EH01,Miscellaneous Agency Services           ,524.28,01/09/2013,R,BROOKDALE HEALTH CARE         
1281,Adult Social Care,MH u65 Residentl Care Placemnt,MH ResidentialCare Ext-Morden           ,W2HB55,Third Party Payments          ,Private Contractors           ,EH01,Miscellaneous Agency Services           ,524.28,01/09/2013,R,BROOKDALE HEALTH CARE         
1287,Adult Social Care,MH u65 Residentl Care Placemnt,MH ResidentialCare Ext-Morden           ,W2HB55,Third Party Payments          ,Private Contractors           ,EH01,Miscellaneous Agency Services           ,524.28,01/10/2013,R,BROOKDALE HEALTH CARE         
1288,Adult Social Care,MH u65 Residentl Care Placemnt,MH ResidentialCare Ext-Morden           ,W2HB55,Third Party Payments          ,Private Contractors           ,EH01,Miscellaneous Agency Services           ,524.28,01/10/2013,R,BROOKDALE HEALTH CARE         
1289,Adult Social Care,MH u65 Residentl Care Placemnt,MH ResidentialCare Ext-Morden           ,W2HB55,Third Party Payments          ,Private Contractors           ,EH01,Miscellaneous Agency Services           ,524.28,01/10/2013,R,BROOKDALE HEALTH CARE         
140,,,Parks Investment                        ,CE013SA,New Construction Conversion and Renovation,,B5,Suppliers - Site works                  ,"2,871.60",02/09/2013,C,BROXAP LIMITED                
669,Childrens & Education Services,Nursery schools,EARLY YEARS NURSERY GRANTS           ,K90042,Supplies & Services           ,Grants and Subscriptions      ,DJ57,Nursery Grant Payment-4yr olds          ,"20,050.80",03/09/2013,R,BUILDING BLOCKS NURSERY       
660,Childrens & Education Services,Nursery schools,EARLY YEARS NURSERY GRANTS           ,K90042,Supplies & Services           ,Grants and Subscriptions      ,DJ01,Grants                                  ,"1,134.00",11/09/2013,R,BUMBLE BEES'S DAY NURSERY-COCC
1403,Adult Social Care,PS u65 Nursing Care Placements,PD EAST TEAM-Nursing                    ,W2JJ53,Third Party Payments          ,Private Contractors           ,EH01,Miscellaneous Agency Services           ,"1,450.00",12/09/2013,R,BUPA CARE HOMES               
1405,Adult Social Care,PS u65 Nursing Care Placements,PD EAST TEAM-Nursing                    ,W2JJ53,Third Party Payments          ,Private Contractors           ,EH01,Miscellaneous Agency Services           ,-680,27/08/2013,R,BUPA CARE HOMES               
1407,Adult Social Care,PS u65 Nursing Care Placements,PD EAST TEAM-Nursing                    ,W2JJ53,Third Party Payments          ,Private Contractors           ,EH01,Miscellaneous Agency Services           ,"1,450.00",16/08/2013,R,BUPA CARE HOMES               
1408,Adult Social Care,PS u65 Nursing Care Placements,PD EAST TEAM-Nursing                    ,W2JJ53,Third Party Payments          ,Private Contractors           ,EH01,Miscellaneous Agency Services           ,"1,450.00",16/08/2013,R,BUPA CARE HOMES               
1409,Adult Social Care,PS u65 Nursing Care Placements,PD EAST TEAM-Nursing                    ,W2JJ53,Third Party Payments          ,Private Contractors           ,EH01,Miscellaneous Agency Services           ,"1,450.00",12/09/2013,R,BUPA CARE HOMES               
1410,Adult Social Care,PS u65 Nursing Care Placements,PD EAST TEAM-Nursing                    ,W2JJ53,Third Party Payments          ,Private Contractors           ,EH01,Miscellaneous Agency Services           ,"1,450.00",12/09/2013,R,BUPA CARE HOMES               
1413,Adult Social Care,PS u65 Nursing Care Placements,PD EAST TEAM-Nursing                    ,W2JJ53,Third Party Payments          ,Private Contractors           ,EH01,Miscellaneous Agency Services           ,-680,27/08/2013,R,BUPA CARE HOMES               
1422,Adult Social Care,PS u65 Nursing Care Placements,PD EAST TEAM-Nursing                    ,W2JJ53,Third Party Payments          ,Private Contractors           ,EH01,Miscellaneous Agency Services           ,"1,450.00",16/08/2013,R,BUPA CARE HOMES               
1432,Adult Social Care,PS u65 Nursing Care Placements,PD EAST TEAM-Nursing                    ,W2JJ53,Third Party Payments          ,Private Contractors           ,EH01,Miscellaneous Agency Services           ,"1,450.00",16/08/2013,R,BUPA CARE HOMES               
1433,Adult Social Care,PS u65 Nursing Care Placements,PD EAST TEAM-Nursing                    ,W2JJ53,Third Party Payments          ,Private Contractors           ,EH01,Miscellaneous Agency Services           ,"1,450.00",12/09/2013,R,BUPA CARE HOMES               
1532,Adult Social Care,PS u65 Nursing Care Placements,PD WEST TEAM-Nursing                    ,W2JK53,Third Party Payments          ,Private Contractors           ,EH01,Miscellaneous Agency Services           ,680,27/08/2013,R,BUPA CARE HOMES               
1533,Adult Social Care,PS u65 Nursing Care Placements,PD WEST TEAM-Nursing                    ,W2JK53,Third Party Payments          ,Private Contractors           ,EH01,Miscellaneous Agency Services           ,680,27/08/2013,R,BUPA CARE HOMES               
1534,Adult Social Care,PS u65 Nursing Care Placements,PD WEST TEAM-Nursing                    ,W2JK53,Third Party Payments          ,Private Contractors           ,EH01,Miscellaneous Agency Services           ,680,23/09/2013,R,BUPA CARE HOMES               
1537,Adult Social Care,PS u65 Nursing Care Placements,PD WEST TEAM-Nursing                    ,W2JK53,Third Party Payments          ,Private Contractors           ,EH01,Miscellaneous Agency Services           ,680,23/09/2013,R,BUPA CARE HOMES               
1541,Adult Social Care,PS u65 Nursing Care Placements,PD WEST TEAM-Nursing                    ,W2JK53,Third Party Payments          ,Private Contractors           ,EH01,Miscellaneous Agency Services           ,680,27/08/2013,R,BUPA CARE HOMES               
1542,Adult Social Care,PS u65 Nursing Care Placements,PD WEST TEAM-Nursing                    ,W2JK53,Third Party Payments          ,Private Contractors           ,EH01,Miscellaneous Agency Services           ,680,27/08/2013,R,BUPA CARE HOMES               
1543,Adult Social Care,PS u65 Nursing Care Placements,PD WEST TEAM-Nursing                    ,W2JK53,Third Party Payments          ,Private Contractors           ,EH01,Miscellaneous Agency Services           ,680,23/09/2013,R,BUPA CARE HOMES               
1544,Adult Social Care,PS u65 Nursing Care Placements,PD WEST TEAM-Nursing                    ,W2JK53,Third Party Payments          ,Private Contractors           ,EH01,Miscellaneous Agency Services           ,680,23/09/2013,R,BUPA CARE HOMES               
1547,Adult Social Care,PS u65 Nursing Care Placements,PD WEST TEAM-Nursing                    ,W2JK53,Third Party Payments          ,Private Contractors           ,EH01,Miscellaneous Agency Services           ,680,27/08/2013,R,BUPA CARE HOMES               
1548,Adult Social Care,PS u65 Nursing Care Placements,PD WEST TEAM-Nursing                    ,W2JK53,Third Party Payments          ,Private Contractors           ,EH01,Miscellaneous Agency Services           ,680,27/08/2013,R,BUPA CARE HOMES               
1610,Adult Social Care,PS u65 Nursing Care Placements,PD R/Park-Nursing                       ,W2JM53,Third Party Payments          ,Private Contractors           ,EH01,Miscellaneous Contrct Services          ,825,27/08/2013,R,BUPA CARE HOMES               
1611,Adult Social Care,PS u65 Nursing Care Placements,PD R/Park-Nursing                       ,W2JM53,Third Party Payments          ,Private Contractors           ,EH01,Miscellaneous Contrct Services          ,825,23/09/2013,R,BUPA CARE HOMES               
1615,Adult Social Care,PS u65 Nursing Care Placements,PD R/Park-Nursing                       ,W2JM53,Third Party Payments          ,Private Contractors           ,EH01,Miscellaneous Contrct Services          ,825,27/08/2013,R,BUPA CARE HOMES               
1616,Adult Social Care,PS u65 Nursing Care Placements,PD R/Park-Nursing                       ,W2JM53,Third Party Payments          ,Private Contractors           ,EH01,Miscellaneous Contrct Services          ,825,27/08/2013,R,BUPA CARE HOMES               
1625,Adult Social Care,PS u65 Nursing Care Placements,PD R/Park-Nursing                       ,W2JM53,Third Party Payments          ,Private Contractors           ,EH01,Miscellaneous Contrct Services          ,825,23/09/2013,R,BUPA CARE HOMES               
1626,Adult Social Care,PS u65 Nursing Care Placements,PD R/Park-Nursing                       ,W2JM53,Third Party Payments          ,Private Contractors           ,EH01,Miscellaneous Contrct Services          ,825,23/09/2013,R,BUPA CARE HOMES               
1632,Adult Social Care,PS u65 Nursing Care Placements,PD R/Park-Nursing                       ,W2JM53,Third Party Payments          ,Private Contractors           ,EH01,Miscellaneous Contrct Services          ,825,27/08/2013,R,BUPA CARE HOMES               
1633,Adult Social Care,PS u65 Nursing Care Placements,PD R/Park-Nursing                       ,W2JM53,Third Party Payments          ,Private Contractors           ,EH01,Miscellaneous Contrct Services          ,825,23/09/2013,R,BUPA CARE HOMES               
2571,Adult Social Care,OP 65&Over NursingCarePlacemts,OP Hosp - Nursing Care                  ,W2LF53,Third Party Payments          ,Private Contractors           ,EH01,Miscellaneous Agency Services           ,601.65,23/05/2013,R,BUPA CARE HOMES               
2572,Adult Social Care,OP 65&Over NursingCarePlacemts,OP Hosp - Nursing Care                  ,W2LF53,Third Party Payments          ,Private Contractors           ,EH01,Miscellaneous Agency Services           ,602.74,31/07/2013,R,BUPA CARE HOMES               
2573,Adult Social Care,OP 65&Over NursingCarePlacemts,OP Hosp - Nursing Care                  ,W2LF53,Third Party Payments          ,Private Contractors           ,EH01,Miscellaneous Agency Services           ,602.74,07/08/2013,R,BUPA CARE HOMES               
2574,Adult Social Care,OP 65&Over NursingCarePlacemts,OP Hosp - Nursing Care                  ,W2LF53,Third Party Payments          ,Private Contractors           ,EH01,Miscellaneous Agency Services           ,602.74,12/09/2013,R,BUPA CARE HOMES               
2575,Adult Social Care,OP 65&Over NursingCarePlacemts,OP Hosp - Nursing Care                  ,W2LF53,Third Party Payments          ,Private Contractors           ,EH01,Miscellaneous Agency Services           ,602.74,12/09/2013,R,BUPA CARE HOMES               
2576,Adult Social Care,OP 65&Over NursingCarePlacemts,OP Hosp - Nursing Care                  ,W2LF53,Third Party Payments          ,Private Contractors           ,EH01,Miscellaneous Agency Services           ,602.74,12/09/2013,R,BUPA CARE HOMES               
2577,Adult Social Care,OP 65&Over NursingCarePlacemts,OP Hosp - Nursing Care                  ,W2LF53,Third Party Payments          ,Private Contractors           ,EH01,Miscellaneous Agency Services           ,602.74,12/09/2013,R,BUPA CARE HOMES               
2591,Adult Social Care,OP 65&Over NursingCarePlacemts,OP Hosp - Nursing Care                  ,W2LF53,Third Party Payments          ,Private Contractors           ,EH01,Miscellaneous Agency Services           ,650,27/08/2013,R,BUPA CARE HOMES               
2598,Adult Social Care,OP 65&Over NursingCarePlacemts,OP Hosp - Nursing Care                  ,W2LF53,Third Party Payments          ,Private Contractors           ,EH01,Miscellaneous Agency Services           ,650,23/09/2013,R,BUPA CARE HOMES               
2667,Adult Social Care,OP 65&Over NursingCarePlacemts,OP Hosp - Nursing Care                  ,W2LF53,Third Party Payments          ,Private Contractors           ,EH01,Miscellaneous Agency Services           ,601.65,23/05/2013,R,BUPA CARE HOMES               
2668,Adult Social Care,OP 65&Over NursingCarePlacemts,OP Hosp - Nursing Care                  ,W2LF53,Third Party Payments          ,Private Contractors           ,EH01,Miscellaneous Agency Services           ,602.74,04/07/2013,R,BUPA CARE HOMES               
2669,Adult Social Care,OP 65&Over NursingCarePlacemts,OP Hosp - Nursing Care                  ,W2LF53,Third Party Payments          ,Private Contractors           ,EH01,Miscellaneous Agency Services           ,602.74,04/07/2013,R,BUPA CARE HOMES               
2670,Adult Social Care,OP 65&Over NursingCarePlacemts,OP Hosp - Nursing Care                  ,W2LF53,Third Party Payments          ,Private Contractors           ,EH01,Miscellaneous Agency Services           ,602.74,07/08/2013,R,BUPA CARE HOMES               
2671,Adult Social Care,OP 65&Over NursingCarePlacemts,OP Hosp - Nursing Care                  ,W2LF53,Third Party Payments          ,Private Contractors           ,EH01,Miscellaneous Agency Services           ,602.74,12/09/2013,R,BUPA CARE HOMES               
2672,Adult Social Care,OP 65&Over NursingCarePlacemts,OP Hosp - Nursing Care                  ,W2LF53,Third Party Payments          ,Private Contractors           ,EH01,Miscellaneous Agency Services           ,602.74,12/09/2013,R,BUPA CARE HOMES               
2673,Adult Social Care,OP 65&Over NursingCarePlacemts,OP Hosp - Nursing Care                  ,W2LF53,Third Party Payments          ,Private Contractors           ,EH01,Miscellaneous Agency Services           ,602.74,12/09/2013,R,BUPA CARE HOMES               
2674,Adult Social Care,OP 65&Over NursingCarePlacemts,OP Hosp - Nursing Care                  ,W2LF53,Third Party Payments          ,Private Contractors           ,EH01,Miscellaneous Agency Services           ,602.74,12/09/2013,R,BUPA CARE HOMES               
2675,Adult Social Care,OP 65&Over NursingCarePlacemts,OP Hosp - Nursing Care                  ,W2LF53,Third Party Payments          ,Private Contractors           ,EH01,Miscellaneous Agency Services           ,602.74,12/09/2013,R,BUPA CARE HOMES               
2688,Adult Social Care,OP 65&Over NursingCarePlacemts,OP Hosp - Nursing Care                  ,W2LF53,Third Party Payments          ,Private Contractors           ,EH01,Miscellaneous Agency Services           ,650,27/08/2013,R,BUPA CARE HOMES               
2696,Adult Social Care,OP 65&Over NursingCarePlacemts,OP Hosp - Nursing Care                  ,W2LF53,Third Party Payments          ,Private Contractors           ,EH01,Miscellaneous Agency Services           ,650,23/09/2013,R,BUPA CARE HOMES               
2697,Adult Social Care,OP 65&Over NursingCarePlacemts,OP Hosp - Nursing Care                  ,W2LF53,Third Party Payments          ,Private Contractors           ,EH01,Miscellaneous Agency Services           ,650,23/09/2013,R,BUPA CARE HOMES               
2773,Adult Social Care,OP 65&Over NursingCarePlacemts,OP Hosp - Nursing Care                  ,W2LF53,Third Party Payments          ,Private Contractors           ,EH01,Miscellaneous Agency Services           ,601.65,23/05/2013,R,BUPA CARE HOMES               
2774,Adult Social Care,OP 65&Over NursingCarePlacemts,OP Hosp - Nursing Care                  ,W2LF53,Third Party Payments          ,Private Contractors           ,EH01,Miscellaneous Agency Services           ,602.74,31/07/2013,R,BUPA CARE HOMES               
2775,Adult Social Care,OP 65&Over NursingCarePlacemts,OP Hosp - Nursing Care                  ,W2LF53,Third Party Payments          ,Private Contractors           ,EH01,Miscellaneous Agency Services           ,602.74,07/08/2013,R,BUPA CARE HOMES               
2776,Adult Social Care,OP 65&Over NursingCarePlacemts,OP Hosp - Nursing Care                  ,W2LF53,Third Party Payments          ,Private Contractors           ,EH01,Miscellaneous Agency Services           ,602.74,12/09/2013,R,BUPA CARE HOMES               
2777,Adult Social Care,OP 65&Over NursingCarePlacemts,OP Hosp - Nursing Care                  ,W2LF53,Third Party Payments          ,Private Contractors           ,EH01,Miscellaneous Agency Services           ,602.74,12/09/2013,R,BUPA CARE HOMES               
2789,Adult Social Care,OP 65&Over NursingCarePlacemts,OP Hosp - Nursing Care                  ,W2LF53,Third Party Payments          ,Private Contractors           ,EH01,Miscellaneous Agency Services           ,650,27/08/2013,R,BUPA CARE HOMES               
2790,Adult Social Care,OP 65&Over NursingCarePlacemts,OP Hosp - Nursing Care                  ,W2LF53,Third Party Payments          ,Private Contractors           ,EH01,Miscellaneous Agency Services           ,650,27/08/2013,R,BUPA CARE HOMES               
2851,Adult Social Care,OP 65&Over NursingCarePlacemts,OP Hosp - Nursing Care                  ,W2LF53,Third Party Payments          ,Private Contractors           ,EH01,Miscellaneous Agency Services           ,601.65,23/05/2013,R,BUPA CARE HOMES               
2852,Adult Social Care,OP 65&Over NursingCarePlacemts,OP Hosp - Nursing Care                  ,W2LF53,Third Party Payments          ,Private Contractors           ,EH01,Miscellaneous Agency Services           ,602.74,31/07/2013,R,BUPA CARE HOMES               
2853,Adult Social Care,OP 65&Over NursingCarePlacemts,OP Hosp - Nursing Care                  ,W2LF53,Third Party Payments          ,Private Contractors           ,EH01,Miscellaneous Agency Services           ,602.74,31/07/2013,R,BUPA CARE HOMES               
2854,Adult Social Care,OP 65&Over NursingCarePlacemts,OP Hosp - Nursing Care                  ,W2LF53,Third Party Payments          ,Private Contractors           ,EH01,Miscellaneous Agency Services           ,602.74,07/08/2013,R,BUPA CARE HOMES               
2855,Adult Social Care,OP 65&Over NursingCarePlacemts,OP Hosp - Nursing Care                  ,W2LF53,Third Party Payments          ,Private Contractors           ,EH01,Miscellaneous Agency Services           ,602.74,12/09/2013,R,BUPA CARE HOMES               
2856,Adult Social Care,OP 65&Over NursingCarePlacemts,OP Hosp - Nursing Care                  ,W2LF53,Third Party Payments          ,Private Contractors           ,EH01,Miscellaneous Agency Services           ,602.74,12/09/2013,R,BUPA CARE HOMES               
2857,Adult Social Care,OP 65&Over NursingCarePlacemts,OP Hosp - Nursing Care                  ,W2LF53,Third Party Payments          ,Private Contractors           ,EH01,Miscellaneous Agency Services           ,602.74,12/09/2013,R,BUPA CARE HOMES               
2858,Adult Social Care,OP 65&Over NursingCarePlacemts,OP Hosp - Nursing Care                  ,W2LF53,Third Party Payments          ,Private Contractors           ,EH01,Miscellaneous Agency Services           ,602.74,12/09/2013,R,BUPA CARE HOMES               
2859,Adult Social Care,OP 65&Over NursingCarePlacemts,OP Hosp - Nursing Care                  ,W2LF53,Third Party Payments          ,Private Contractors           ,EH01,Miscellaneous Agency Services           ,602.74,12/09/2013,R,BUPA CARE HOMES               
2878,Adult Social Care,OP 65&Over NursingCarePlacemts,OP Hosp - Nursing Care                  ,W2LF53,Third Party Payments          ,Private Contractors           ,EH01,Miscellaneous Agency Services           ,650,23/09/2013,R,BUPA CARE HOMES               
2908,Adult Social Care,OP 65&Over Resi Care Placement,OP Hosp - Residential Care Ext          ,W2LF55,Third Party Payments          ,Private Contractors           ,EH01,Miscellaneous Agency Services           ,521.99,12/09/2013,R,BUPA CARE HOMES               
2909,Adult Social Care,OP 65&Over Resi Care Placement,OP Hosp - Residential Care Ext          ,W2LF55,Third Party Payments          ,Private Contractors           ,EH01,Miscellaneous Agency Services           ,521.99,12/09/2013,R,BUPA CARE HOMES               
2910,Adult Social Care,OP 65&Over Resi Care Placement,OP Hosp - Residential Care Ext          ,W2LF55,Third Party Payments          ,Private Contractors           ,EH01,Miscellaneous Agency Services           ,521.99,12/09/2013,R,BUPA CARE HOMES               
2911,Adult Social Care,OP 65&Over Resi Care Placement,OP Hosp - Residential Care Ext          ,W2LF55,Third Party Payments          ,Private Contractors           ,EH01,Miscellaneous Agency Services           ,521.99,12/09/2013,R,BUPA CARE HOMES               
2912,Adult Social Care,OP 65&Over Resi Care Placement,OP Hosp - Residential Care Ext          ,W2LF55,Third Party Payments          ,Private Contractors           ,EH01,Miscellaneous Agency Services           ,521.99,12/09/2013,R,BUPA CARE HOMES               
2913,Adult Social Care,OP 65&Over Resi Care Placement,OP Hosp - Residential Care Ext          ,W2LF55,Third Party Payments          ,Private Contractors           ,EH01,Miscellaneous Agency Services           ,521.99,16/09/2013,R,BUPA CARE HOMES               
2937,Adult Social Care,OP 65&Over Resi Care Placement,OP Hosp - Residential Care Ext          ,W2LF55,Third Party Payments          ,Private Contractors           ,EH01,Miscellaneous Agency Services           ,521.99,12/09/2013,R,BUPA CARE HOMES               
2938,Adult Social Care,OP 65&Over Resi Care Placement,OP Hosp - Residential Care Ext          ,W2LF55,Third Party Payments          ,Private Contractors           ,EH01,Miscellaneous Agency Services           ,521.99,12/09/2013,R,BUPA CARE HOMES               
2939,Adult Social Care,OP 65&Over Resi Care Placement,OP Hosp - Residential Care Ext          ,W2LF55,Third Party Payments          ,Private Contractors           ,EH01,Miscellaneous Agency Services           ,521.99,12/09/2013,R,BUPA CARE HOMES               
2940,Adult Social Care,OP 65&Over Resi Care Placement,OP Hosp - Residential Care Ext          ,W2LF55,Third Party Payments          ,Private Contractors           ,EH01,Miscellaneous Agency Services           ,521.99,16/09/2013,R,BUPA CARE HOMES               
2941,Adult Social Care,OP 65&Over Resi Care Placement,OP Hosp - Residential Care Ext          ,W2LF55,Third Party Payments          ,Private Contractors           ,EH01,Miscellaneous Agency Services           ,521.99,16/09/2013,R,BUPA CARE HOMES               
2967,Adult Social Care,OP 65&Over Resi Care Placement,OP Hosp - Residential Care Ext          ,W2LF55,Third Party Payments          ,Private Contractors           ,EH01,Miscellaneous Agency Services           ,521.99,12/09/2013,R,BUPA CARE HOMES               
2968,Adult Social Care,OP 65&Over Resi Care Placement,OP Hosp - Residential Care Ext          ,W2LF55,Third Party Payments          ,Private Contractors           ,EH01,Miscellaneous Agency Services           ,521.99,12/09/2013,R,BUPA CARE HOMES               
2969,Adult Social Care,OP 65&Over Resi Care Placement,OP Hosp - Residential Care Ext          ,W2LF55,Third Party Payments          ,Private Contractors           ,EH01,Miscellaneous Agency Services           ,521.99,12/09/2013,R,BUPA CARE HOMES               
2970,Adult Social Care,OP 65&Over Resi Care Placement,OP Hosp - Residential Care Ext          ,W2LF55,Third Party Payments          ,Private Contractors           ,EH01,Miscellaneous Agency Services           ,521.99,12/09/2013,R,BUPA CARE HOMES               
2971,Adult Social Care,OP 65&Over Resi Care Placement,OP Hosp - Residential Care Ext          ,W2LF55,Third Party Payments          ,Private Contractors           ,EH01,Miscellaneous Agency Services           ,521.99,12/09/2013,R,BUPA CARE HOMES               
2972,Adult Social Care,OP 65&Over Resi Care Placement,OP Hosp - Residential Care Ext          ,W2LF55,Third Party Payments          ,Private Contractors           ,EH01,Miscellaneous Agency Services           ,521.99,12/09/2013,R,BUPA CARE HOMES               
2973,Adult Social Care,OP 65&Over Resi Care Placement,OP Hosp - Residential Care Ext          ,W2LF55,Third Party Payments          ,Private Contractors           ,EH01,Miscellaneous Agency Services           ,521.99,12/09/2013,R,BUPA CARE HOMES               
2974,Adult Social Care,OP 65&Over Resi Care Placement,OP Hosp - Residential Care Ext          ,W2LF55,Third Party Payments          ,Private Contractors           ,EH01,Miscellaneous Agency Services           ,521.99,12/09/2013,R,BUPA CARE HOMES               
2975,Adult Social Care,OP 65&Over Resi Care Placement,OP Hosp - Residential Care Ext          ,W2LF55,Third Party Payments          ,Private Contractors           ,EH01,Miscellaneous Agency Services           ,521.99,12/09/2013,R,BUPA CARE HOMES               
2976,Adult Social Care,OP 65&Over Resi Care Placement,OP Hosp - Residential Care Ext          ,W2LF55,Third Party Payments          ,Private Contractors           ,EH01,Miscellaneous Agency Services           ,521.99,12/09/2013,R,BUPA CARE HOMES               
2977,Adult Social Care,OP 65&Over Resi Care Placement,OP Hosp - Residential Care Ext          ,W2LF55,Third Party Payments          ,Private Contractors           ,EH01,Miscellaneous Agency Services           ,521.99,16/09/2013,R,BUPA CARE HOMES               
3003,Adult Social Care,OP 65&Over Resi Care Placement,OP Hosp - Residential Care Ext          ,W2LF55,Third Party Payments          ,Private Contractors           ,EH01,Miscellaneous Agency Services           ,521.99,27/08/2013,R,BUPA CARE HOMES               
3004,Adult Social Care,OP 65&Over Resi Care Placement,OP Hosp - Residential Care Ext          ,W2LF55,Third Party Payments          ,Private Contractors           ,EH01,Miscellaneous Agency Services           ,521.99,27/08/2013,R,BUPA CARE HOMES               
3005,Adult Social Care,OP 65&Over Resi Care Placement,OP Hosp - Residential Care Ext          ,W2LF55,Third Party Payments          ,Private Contractors           ,EH01,Miscellaneous Agency Services           ,521.99,27/08/2013,R,BUPA CARE HOMES               
3006,Adult Social Care,OP 65&Over Resi Care Placement,OP Hosp - Residential Care Ext          ,W2LF55,Third Party Payments          ,Private Contractors           ,EH01,Miscellaneous Agency Services           ,521.99,27/08/2013,R,BUPA CARE HOMES               
3007,Adult Social Care,OP 65&Over Resi Care Placement,OP Hosp - Residential Care Ext          ,W2LF55,Third Party Payments          ,Private Contractors           ,EH01,Miscellaneous Agency Services           ,521.99,12/09/2013,R,BUPA CARE HOMES               
3008,Adult Social Care,OP 65&Over Resi Care Placement,OP Hosp - Residential Care Ext          ,W2LF55,Third Party Payments          ,Private Contractors           ,EH01,Miscellaneous Agency Services           ,521.99,12/09/2013,R,BUPA CARE HOMES               
3009,Adult Social Care,OP 65&Over Resi Care Placement,OP Hosp - Residential Care Ext          ,W2LF55,Third Party Payments          ,Private Contractors           ,EH01,Miscellaneous Agency Services           ,521.99,12/09/2013,R,BUPA CARE HOMES               
3010,Adult Social Care,OP 65&Over Resi Care Placement,OP Hosp - Residential Care Ext          ,W2LF55,Third Party Payments          ,Private Contractors           ,EH01,Miscellaneous Agency Services           ,521.99,12/09/2013,R,BUPA CARE HOMES               
3011,Adult Social Care,OP 65&Over Resi Care Placement,OP Hosp - Residential Care Ext          ,W2LF55,Third Party Payments          ,Private Contractors           ,EH01,Miscellaneous Agency Services           ,521.99,12/09/2013,R,BUPA CARE HOMES               
3012,Adult Social Care,OP 65&Over Resi Care Placement,OP Hosp - Residential Care Ext          ,W2LF55,Third Party Payments          ,Private Contractors           ,EH01,Miscellaneous Agency Services           ,521.99,12/09/2013,R,BUPA CARE HOMES               
3013,Adult Social Care,OP 65&Over Resi Care Placement,OP Hosp - Residential Care Ext          ,W2LF55,Third Party Payments          ,Private Contractors           ,EH01,Miscellaneous Agency Services           ,521.99,12/09/2013,R,BUPA CARE HOMES               
3014,Adult Social Care,OP 65&Over Resi Care Placement,OP Hosp - Residential Care Ext          ,W2LF55,Third Party Payments          ,Private Contractors           ,EH01,Miscellaneous Agency Services           ,521.99,12/09/2013,R,BUPA CARE HOMES               
3015,Adult Social Care,OP 65&Over Resi Care Placement,OP Hosp - Residential Care Ext          ,W2LF55,Third Party Payments          ,Private Contractors           ,EH01,Miscellaneous Agency Services           ,521.99,12/09/2013,R,BUPA CARE HOMES               
3016,Adult Social Care,OP 65&Over Resi Care Placement,OP Hosp - Residential Care Ext          ,W2LF55,Third Party Payments          ,Private Contractors           ,EH01,Miscellaneous Agency Services           ,521.99,12/09/2013,R,BUPA CARE HOMES               
3110,Adult Social Care,OP 65&Over NursingCarePlacemts,OP West - Nursing Care                  ,W2LG53,Third Party Payments          ,Private Contractors           ,EH01,Miscellaneous Agency Services           ,601.65,23/09/2013,R,BUPA CARE HOMES               
3119,Adult Social Care,OP 65&Over NursingCarePlacemts,OP West - Nursing Care                  ,W2LG53,Third Party Payments          ,Private Contractors           ,EH01,Miscellaneous Agency Services           ,650,27/08/2013,R,BUPA CARE HOMES               
3120,Adult Social Care,OP 65&Over NursingCarePlacemts,OP West - Nursing Care                  ,W2LG53,Third Party Payments          ,Private Contractors           ,EH01,Miscellaneous Agency Services           ,650,23/09/2013,R,BUPA CARE HOMES               
3212,Adult Social Care,OP 65&Over NursingCarePlacemts,OP West - Nursing Care                  ,W2LG53,Third Party Payments          ,Private Contractors           ,EH01,Miscellaneous Agency Services           ,601.65,27/08/2013,R,BUPA CARE HOMES               
3213,Adult Social Care,OP 65&Over NursingCarePlacemts,OP West - Nursing Care                  ,W2LG53,Third Party Payments          ,Private Contractors           ,EH01,Miscellaneous Agency Services           ,601.65,27/08/2013,R,BUPA CARE HOMES               
3214,Adult Social Care,OP 65&Over NursingCarePlacemts,OP West - Nursing Care                  ,W2LG53,Third Party Payments          ,Private Contractors           ,EH01,Miscellaneous Agency Services           ,601.65,23/09/2013,R,BUPA CARE HOMES               
3215,Adult Social Care,OP 65&Over NursingCarePlacemts,OP West - Nursing Care                  ,W2LG53,Third Party Payments          ,Private Contractors           ,EH01,Miscellaneous Agency Services           ,602.74,12/09/2013,R,BUPA CARE HOMES               
3216,Adult Social Care,OP 65&Over NursingCarePlacemts,OP West - Nursing Care                  ,W2LG53,Third Party Payments          ,Private Contractors           ,EH01,Miscellaneous Agency Services           ,602.74,12/09/2013,R,BUPA CARE HOMES               
3228,Adult Social Care,OP 65&Over NursingCarePlacemts,OP West - Nursing Care                  ,W2LG53,Third Party Payments          ,Private Contractors           ,EH01,Miscellaneous Agency Services           ,650,27/08/2013,R,BUPA CARE HOMES               
3229,Adult Social Care,OP 65&Over NursingCarePlacemts,OP West - Nursing Care                  ,W2LG53,Third Party Payments          ,Private Contractors           ,EH01,Miscellaneous Agency Services           ,650,27/08/2013,R,BUPA CARE HOMES               
3230,Adult Social Care,OP 65&Over NursingCarePlacemts,OP West - Nursing Care                  ,W2LG53,Third Party Payments          ,Private Contractors           ,EH01,Miscellaneous Agency Services           ,650,23/09/2013,R,BUPA CARE HOMES               
3275,Adult Social Care,OP 65&Over NursingCarePlacemts,OP West - Nursing Care                  ,W2LG53,Third Party Payments          ,Private Contractors           ,EH01,Miscellaneous Agency Services           ,601.65,27/08/2013,R,BUPA CARE HOMES               
3276,Adult Social Care,OP 65&Over NursingCarePlacemts,OP West - Nursing Care                  ,W2LG53,Third Party Payments          ,Private Contractors           ,EH01,Miscellaneous Agency Services           ,601.65,27/08/2013,R,BUPA CARE HOMES               
3277,Adult Social Care,OP 65&Over NursingCarePlacemts,OP West - Nursing Care                  ,W2LG53,Third Party Payments          ,Private Contractors           ,EH01,Miscellaneous Agency Services           ,601.65,23/09/2013,R,BUPA CARE HOMES               
3278,Adult Social Care,OP 65&Over NursingCarePlacemts,OP West - Nursing Care                  ,W2LG53,Third Party Payments          ,Private Contractors           ,EH01,Miscellaneous Agency Services           ,601.65,23/09/2013,R,BUPA CARE HOMES               
3279,Adult Social Care,OP 65&Over NursingCarePlacemts,OP West - Nursing Care                  ,W2LG53,Third Party Payments          ,Private Contractors           ,EH01,Miscellaneous Agency Services           ,602.74,12/09/2013,R,BUPA CARE HOMES               
3280,Adult Social Care,OP 65&Over NursingCarePlacemts,OP West - Nursing Care                  ,W2LG53,Third Party Payments          ,Private Contractors           ,EH01,Miscellaneous Agency Services           ,602.74,12/09/2013,R,BUPA CARE HOMES               
3287,Adult Social Care,OP 65&Over NursingCarePlacemts,OP West - Nursing Care                  ,W2LG53,Third Party Payments          ,Private Contractors           ,EH01,Miscellaneous Agency Services           ,650,27/08/2013,R,BUPA CARE HOMES               
3288,Adult Social Care,OP 65&Over NursingCarePlacemts,OP West - Nursing Care                  ,W2LG53,Third Party Payments          ,Private Contractors           ,EH01,Miscellaneous Agency Services           ,650,23/09/2013,R,BUPA CARE HOMES               
3289,Adult Social Care,OP 65&Over NursingCarePlacemts,OP West - Nursing Care                  ,W2LG53,Third Party Payments          ,Private Contractors           ,EH01,Miscellaneous Agency Services           ,650,23/09/2013,R,BUPA CARE HOMES               
3298,Adult Social Care,OP 65&Over Resi Care Placement,OP West - Residential Care Ext          ,W2LG55,Third Party Payments          ,Private Contractors           ,EH01,Miscellaneous Agency Services           ,521.99,12/09/2013,R,BUPA CARE HOMES               
3320,Adult Social Care,OP 65&Over Resi Care Placement,OP West - Residential Care Ext          ,W2LG55,Third Party Payments          ,Private Contractors           ,EH01,Miscellaneous Agency Services           ,521.99,12/09/2013,R,BUPA CARE HOMES               
3321,Adult Social Care,OP 65&Over Resi Care Placement,OP West - Residential Care Ext          ,W2LG55,Third Party Payments          ,Private Contractors           ,EH01,Miscellaneous Agency Services           ,521.99,12/09/2013,R,BUPA CARE HOMES               
3333,Adult Social Care,OP 65&Over Resi Care Placement,OP West - Residential Care Ext          ,W2LG55,Third Party Payments          ,Private Contractors           ,EH01,Miscellaneous Agency Services           ,521.99,12/09/2013,R,BUPA CARE HOMES               
3334,Adult Social Care,OP 65&Over Resi Care Placement,OP West - Residential Care Ext          ,W2LG55,Third Party Payments          ,Private Contractors           ,EH01,Miscellaneous Agency Services           ,521.99,12/09/2013,R,BUPA CARE HOMES               
3352,Adult Social Care,OP 65&Over Resi Care Placement,OP West - Residential Care Ext          ,W2LG55,Third Party Payments          ,Private Contractors           ,EH01,Miscellaneous Agency Services           ,521.99,12/09/2013,R,BUPA CARE HOMES               
3353,Adult Social Care,OP 65&Over Resi Care Placement,OP West - Residential Care Ext          ,W2LG55,Third Party Payments          ,Private Contractors           ,EH01,Miscellaneous Agency Services           ,521.99,12/09/2013,R,BUPA CARE HOMES               
3354,Adult Social Care,OP 65&Over Resi Care Placement,OP West - Residential Care Ext          ,W2LG55,Third Party Payments          ,Private Contractors           ,EH01,Miscellaneous Agency Services           ,521.99,12/09/2013,R,BUPA CARE HOMES               
3439,Adult Social Care,OP 65&Over NursingCarePlacemts,OP East - Nursing Care                  ,W2LH53,Third Party Payments          ,Private Contractors           ,EH01,Miscellaneous Agency Services           ,601.65,27/08/2013,R,BUPA CARE HOMES               
3440,Adult Social Care,OP 65&Over NursingCarePlacemts,OP East - Nursing Care                  ,W2LH53,Third Party Payments          ,Private Contractors           ,EH01,Miscellaneous Agency Services           ,601.65,23/09/2013,R,BUPA CARE HOMES               
3441,Adult Social Care,OP 65&Over NursingCarePlacemts,OP East - Nursing Care                  ,W2LH53,Third Party Payments          ,Private Contractors           ,EH01,Miscellaneous Agency Services           ,601.65,23/09/2013,R,BUPA CARE HOMES               
3442,Adult Social Care,OP 65&Over NursingCarePlacemts,OP East - Nursing Care                  ,W2LH53,Third Party Payments          ,Private Contractors           ,EH01,Miscellaneous Agency Services           ,602.74,18/06/2013,R,BUPA CARE HOMES               
3443,Adult Social Care,OP 65&Over NursingCarePlacemts,OP East - Nursing Care                  ,W2LH53,Third Party Payments          ,Private Contractors           ,EH01,Miscellaneous Agency Services           ,602.74,12/09/2013,R,BUPA CARE HOMES               
3444,Adult Social Care,OP 65&Over NursingCarePlacemts,OP East - Nursing Care                  ,W2LH53,Third Party Payments          ,Private Contractors           ,EH01,Miscellaneous Agency Services           ,602.74,12/09/2013,R,BUPA CARE HOMES               
3445,Adult Social Care,OP 65&Over NursingCarePlacemts,OP East - Nursing Care                  ,W2LH53,Third Party Payments          ,Private Contractors           ,EH01,Miscellaneous Agency Services           ,602.74,12/09/2013,R,BUPA CARE HOMES               
3446,Adult Social Care,OP 65&Over NursingCarePlacemts,OP East - Nursing Care                  ,W2LH53,Third Party Payments          ,Private Contractors           ,EH01,Miscellaneous Agency Services           ,602.74,12/09/2013,R,BUPA CARE HOMES               
3447,Adult Social Care,OP 65&Over NursingCarePlacemts,OP East - Nursing Care                  ,W2LH53,Third Party Payments          ,Private Contractors           ,EH01,Miscellaneous Agency Services           ,602.74,12/09/2013,R,BUPA CARE HOMES               
3448,Adult Social Care,OP 65&Over NursingCarePlacemts,OP East - Nursing Care                  ,W2LH53,Third Party Payments          ,Private Contractors           ,EH01,Miscellaneous Agency Services           ,602.74,12/09/2013,R,BUPA CARE HOMES               
3449,Adult Social Care,OP 65&Over NursingCarePlacemts,OP East - Nursing Care                  ,W2LH53,Third Party Payments          ,Private Contractors           ,EH01,Miscellaneous Agency Services           ,602.74,12/09/2013,R,BUPA CARE HOMES               
3450,Adult Social Care,OP 65&Over NursingCarePlacemts,OP East - Nursing Care                  ,W2LH53,Third Party Payments          ,Private Contractors           ,EH01,Miscellaneous Agency Services           ,602.74,18/07/2013,R,BUPA CARE HOMES               
3461,Adult Social Care,OP 65&Over NursingCarePlacemts,OP East - Nursing Care                  ,W2LH53,Third Party Payments          ,Private Contractors           ,EH01,Miscellaneous Agency Services           ,705.55,12/09/2013,R,BUPA CARE HOMES               
3466,Adult Social Care,OP 65&Over NursingCarePlacemts,OP East - Nursing Care                  ,W2LH53,Third Party Payments          ,Private Contractors           ,EH01,Miscellaneous Agency Services           ,518.67,27/08/2013,R,BUPA CARE HOMES               
3467,Adult Social Care,OP 65&Over NursingCarePlacemts,OP East - Nursing Care                  ,W2LH53,Third Party Payments          ,Private Contractors           ,EH01,Miscellaneous Agency Services           ,518.67,27/08/2013,R,BUPA CARE HOMES               
3468,Adult Social Care,OP 65&Over NursingCarePlacemts,OP East - Nursing Care                  ,W2LH53,Third Party Payments          ,Private Contractors           ,EH01,Miscellaneous Agency Services           ,518.67,27/08/2013,R,BUPA CARE HOMES               
3469,Adult Social Care,OP 65&Over NursingCarePlacemts,OP East - Nursing Care                  ,W2LH53,Third Party Payments          ,Private Contractors           ,EH01,Miscellaneous Agency Services           ,518.67,27/08/2013,R,BUPA CARE HOMES               
3497,Adult Social Care,OP 65&Over NursingCarePlacemts,OP East - Nursing Care                  ,W2LH53,Third Party Payments          ,Private Contractors           ,EH01,Miscellaneous Agency Services           ,601.65,27/08/2013,R,BUPA CARE HOMES               
3498,Adult Social Care,OP 65&Over NursingCarePlacemts,OP East - Nursing Care                  ,W2LH53,Third Party Payments          ,Private Contractors           ,EH01,Miscellaneous Agency Services           ,602.74,12/09/2013,R,BUPA CARE HOMES               
3499,Adult Social Care,OP 65&Over NursingCarePlacemts,OP East - Nursing Care                  ,W2LH53,Third Party Payments          ,Private Contractors           ,EH01,Miscellaneous Agency Services           ,602.74,12/09/2013,R,BUPA CARE HOMES               
3500,Adult Social Care,OP 65&Over NursingCarePlacemts,OP East - Nursing Care                  ,W2LH53,Third Party Payments          ,Private Contractors           ,EH01,Miscellaneous Agency Services           ,602.74,12/09/2013,R,BUPA CARE HOMES               
3501,Adult Social Care,OP 65&Over NursingCarePlacemts,OP East - Nursing Care                  ,W2LH53,Third Party Payments          ,Private Contractors           ,EH01,Miscellaneous Agency Services           ,602.74,12/09/2013,R,BUPA CARE HOMES               
3502,Adult Social Care,OP 65&Over NursingCarePlacemts,OP East - Nursing Care                  ,W2LH53,Third Party Payments          ,Private Contractors           ,EH01,Miscellaneous Agency Services           ,602.74,12/09/2013,R,BUPA CARE HOMES               
3503,Adult Social Care,OP 65&Over NursingCarePlacemts,OP East - Nursing Care                  ,W2LH53,Third Party Payments          ,Private Contractors           ,EH01,Miscellaneous Agency Services           ,602.74,12/09/2013,R,BUPA CARE HOMES               
3522,Adult Social Care,OP 65&Over NursingCarePlacemts,OP East - Nursing Care                  ,W2LH53,Third Party Payments          ,Private Contractors           ,EH01,Miscellaneous Agency Services           ,705.55,12/09/2013,R,BUPA CARE HOMES               
3523,Adult Social Care,OP 65&Over NursingCarePlacemts,OP East - Nursing Care                  ,W2LH53,Third Party Payments          ,Private Contractors           ,EH01,Miscellaneous Agency Services           ,705.55,12/09/2013,R,BUPA CARE HOMES               
3524,Adult Social Care,OP 65&Over NursingCarePlacemts,OP East - Nursing Care                  ,W2LH53,Third Party Payments          ,Private Contractors           ,EH01,Miscellaneous Agency Services           ,705.55,12/09/2013,R,BUPA CARE HOMES               
3525,Adult Social Care,OP 65&Over NursingCarePlacemts,OP East - Nursing Care                  ,W2LH53,Third Party Payments          ,Private Contractors           ,EH01,Miscellaneous Agency Services           ,705.55,12/09/2013,R,BUPA CARE HOMES               
3532,Adult Social Care,OP 65&Over NursingCarePlacemts,OP East - Nursing Care                  ,W2LH53,Third Party Payments          ,Private Contractors           ,EH01,Miscellaneous Agency Services           ,-602.74,18/07/2013,R,BUPA CARE HOMES               
3535,Adult Social Care,OP 65&Over NursingCarePlacemts,OP East - Nursing Care                  ,W2LH53,Third Party Payments          ,Private Contractors           ,EH01,Miscellaneous Agency Services           ,518.67,23/09/2013,R,BUPA CARE HOMES               
3536,Adult Social Care,OP 65&Over NursingCarePlacemts,OP East - Nursing Care                  ,W2LH53,Third Party Payments          ,Private Contractors           ,EH01,Miscellaneous Agency Services           ,518.67,23/09/2013,R,BUPA CARE HOMES               
3577,Adult Social Care,OP 65&Over NursingCarePlacemts,OP East - Nursing Care                  ,W2LH53,Third Party Payments          ,Private Contractors           ,EH01,Miscellaneous Agency Services           ,601.65,27/08/2013,R,BUPA CARE HOMES               
3578,Adult Social Care,OP 65&Over NursingCarePlacemts,OP East - Nursing Care                  ,W2LH53,Third Party Payments          ,Private Contractors           ,EH01,Miscellaneous Agency Services           ,601.65,27/08/2013,R,BUPA CARE HOMES               
3579,Adult Social Care,OP 65&Over NursingCarePlacemts,OP East - Nursing Care                  ,W2LH53,Third Party Payments          ,Private Contractors           ,EH01,Miscellaneous Agency Services           ,601.65,23/09/2013,R,BUPA CARE HOMES               
3580,Adult Social Care,OP 65&Over NursingCarePlacemts,OP East - Nursing Care                  ,W2LH53,Third Party Payments          ,Private Contractors           ,EH01,Miscellaneous Agency Services           ,601.65,23/09/2013,R,BUPA CARE HOMES               
3581,Adult Social Care,OP 65&Over NursingCarePlacemts,OP East - Nursing Care                  ,W2LH53,Third Party Payments          ,Private Contractors           ,EH01,Miscellaneous Agency Services           ,602.74,18/06/2013,R,BUPA CARE HOMES               
3582,Adult Social Care,OP 65&Over NursingCarePlacemts,OP East - Nursing Care                  ,W2LH53,Third Party Payments          ,Private Contractors           ,EH01,Miscellaneous Agency Services           ,602.74,18/06/2013,R,BUPA CARE HOMES               
3583,Adult Social Care,OP 65&Over NursingCarePlacemts,OP East - Nursing Care                  ,W2LH53,Third Party Payments          ,Private Contractors           ,EH01,Miscellaneous Agency Services           ,602.74,12/09/2013,R,BUPA CARE HOMES               
3584,Adult Social Care,OP 65&Over NursingCarePlacemts,OP East - Nursing Care                  ,W2LH53,Third Party Payments          ,Private Contractors           ,EH01,Miscellaneous Agency Services           ,602.74,12/09/2013,R,BUPA CARE HOMES               
3585,Adult Social Care,OP 65&Over NursingCarePlacemts,OP East - Nursing Care                  ,W2LH53,Third Party Payments          ,Private Contractors           ,EH01,Miscellaneous Agency Services           ,602.74,12/09/2013,R,BUPA CARE HOMES               
3586,Adult Social Care,OP 65&Over NursingCarePlacemts,OP East - Nursing Care                  ,W2LH53,Third Party Payments          ,Private Contractors           ,EH01,Miscellaneous Agency Services           ,602.74,12/09/2013,R,BUPA CARE HOMES               
3587,Adult Social Care,OP 65&Over NursingCarePlacemts,OP East - Nursing Care                  ,W2LH53,Third Party Payments          ,Private Contractors           ,EH01,Miscellaneous Agency Services           ,602.74,12/09/2013,R,BUPA CARE HOMES               
3588,Adult Social Care,OP 65&Over NursingCarePlacemts,OP East - Nursing Care                  ,W2LH53,Third Party Payments          ,Private Contractors           ,EH01,Miscellaneous Agency Services           ,602.74,12/09/2013,R,BUPA CARE HOMES               
3589,Adult Social Care,OP 65&Over NursingCarePlacemts,OP East - Nursing Care                  ,W2LH53,Third Party Payments          ,Private Contractors           ,EH01,Miscellaneous Agency Services           ,602.74,04/07/2013,R,BUPA CARE HOMES               
3590,Adult Social Care,OP 65&Over NursingCarePlacemts,OP East - Nursing Care                  ,W2LH53,Third Party Payments          ,Private Contractors           ,EH01,Miscellaneous Agency Services           ,602.74,18/07/2013,R,BUPA CARE HOMES               
3599,Adult Social Care,OP 65&Over NursingCarePlacemts,OP East - Nursing Care                  ,W2LH53,Third Party Payments          ,Private Contractors           ,EH01,Miscellaneous Agency Services           ,705.55,12/09/2013,R,BUPA CARE HOMES               
3605,Adult Social Care,OP 65&Over NursingCarePlacemts,OP East - Nursing Care                  ,W2LH53,Third Party Payments          ,Private Contractors           ,EH01,Miscellaneous Agency Services           ,518.67,23/09/2013,R,BUPA CARE HOMES               
3606,Adult Social Care,OP 65&Over NursingCarePlacemts,OP East - Nursing Care                  ,W2LH53,Third Party Payments          ,Private Contractors           ,EH01,Miscellaneous Agency Services           ,518.67,23/09/2013,R,BUPA CARE HOMES               
3635,Adult Social Care,OP 65&Over NursingCarePlacemts,OP East - Nursing Care                  ,W2LH53,Third Party Payments          ,Private Contractors           ,EH01,Miscellaneous Agency Services           ,602.74,12/09/2013,R,BUPA CARE HOMES               
3636,Adult Social Care,OP 65&Over NursingCarePlacemts,OP East - Nursing Care                  ,W2LH53,Third Party Payments          ,Private Contractors           ,EH01,Miscellaneous Agency Services           ,602.74,12/09/2013,R,BUPA CARE HOMES               
3637,Adult Social Care,OP 65&Over NursingCarePlacemts,OP East - Nursing Care                  ,W2LH53,Third Party Payments          ,Private Contractors           ,EH01,Miscellaneous Agency Services           ,602.74,12/09/2013,R,BUPA CARE HOMES               
3638,Adult Social Care,OP 65&Over NursingCarePlacemts,OP East - Nursing Care                  ,W2LH53,Third Party Payments          ,Private Contractors           ,EH01,Miscellaneous Agency Services           ,602.74,12/09/2013,R,BUPA CARE HOMES               
3639,Adult Social Care,OP 65&Over NursingCarePlacemts,OP East - Nursing Care                  ,W2LH53,Third Party Payments          ,Private Contractors           ,EH01,Miscellaneous Agency Services           ,602.74,12/09/2013,R,BUPA CARE HOMES               
3660,Adult Social Care,OP 65&Over NursingCarePlacemts,OP East - Nursing Care                  ,W2LH53,Third Party Payments          ,Private Contractors           ,EH01,Miscellaneous Agency Services           ,705.55,12/09/2013,R,BUPA CARE HOMES               
3661,Adult Social Care,OP 65&Over NursingCarePlacemts,OP East - Nursing Care                  ,W2LH53,Third Party Payments          ,Private Contractors           ,EH01,Miscellaneous Agency Services           ,705.55,12/09/2013,R,BUPA CARE HOMES               
3664,Adult Social Care,OP 65&Over Resi Care Placement,OP East - Residential Care Ext          ,W2LH55,Third Party Payments          ,Private Contractors           ,EH01,Miscellaneous Agency Services           ,521.99,27/08/2013,R,BUPA CARE HOMES               
3704,Adult Social Care,OP 65&Over Resi Care Placement,OP East - Residential Care Ext          ,W2LH55,Third Party Payments          ,Private Contractors           ,EH01,Miscellaneous Agency Services           ,521.99,12/09/2013,R,BUPA CARE HOMES               
3705,Adult Social Care,OP 65&Over Resi Care Placement,OP East - Residential Care Ext          ,W2LH55,Third Party Payments          ,Private Contractors           ,EH01,Miscellaneous Agency Services           ,521.99,12/09/2013,R,BUPA CARE HOMES               
3747,Adult Social Care,OP 65&Over Resi Care Placement,OP East - Residential Care Ext          ,W2LH55,Third Party Payments          ,Private Contractors           ,EH01,Miscellaneous Agency Services           ,521.99,12/09/2013,R,BUPA CARE HOMES               
3748,Adult Social Care,OP 65&Over Resi Care Placement,OP East - Residential Care Ext          ,W2LH55,Third Party Payments          ,Private Contractors           ,EH01,Miscellaneous Agency Services           ,521.99,12/09/2013,R,BUPA CARE HOMES               
3868,Adult Social Care,OP 65&Over NursingCarePlacemts,OP R/Park - Nursing Care                ,W2LR53,Third Party Payments          ,Private Contractors           ,EH01,Miscellaneous Agency Services           ,601.65,27/08/2013,R,BUPA CARE HOMES               
3869,Adult Social Care,OP 65&Over NursingCarePlacemts,OP R/Park - Nursing Care                ,W2LR53,Third Party Payments          ,Private Contractors           ,EH01,Miscellaneous Agency Services           ,601.65,23/09/2013,R,BUPA CARE HOMES               
3876,Adult Social Care,OP 65&Over NursingCarePlacemts,OP R/Park - Nursing Care                ,W2LR53,Third Party Payments          ,Private Contractors           ,EH01,Miscellaneous Agency Services           ,908.9,27/08/2013,R,BUPA CARE HOMES               
3877,Adult Social Care,OP 65&Over NursingCarePlacemts,OP R/Park - Nursing Care                ,W2LR53,Third Party Payments          ,Private Contractors           ,EH01,Miscellaneous Agency Services           ,908.9,27/08/2013,R,BUPA CARE HOMES               
3878,Adult Social Care,OP 65&Over NursingCarePlacemts,OP R/Park - Nursing Care                ,W2LR53,Third Party Payments          ,Private Contractors           ,EH01,Miscellaneous Agency Services           ,908.9,23/09/2013,R,BUPA CARE HOMES               
3911,Adult Social Care,OP 65&Over NursingCarePlacemts,OP R/Park - Nursing Care                ,W2LR53,Third Party Payments          ,Private Contractors           ,EH01,Miscellaneous Agency Services           ,601.65,23/09/2013,R,BUPA CARE HOMES               
3912,Adult Social Care,OP 65&Over NursingCarePlacemts,OP R/Park - Nursing Care                ,W2LR53,Third Party Payments          ,Private Contractors           ,EH01,Miscellaneous Agency Services           ,601.65,23/09/2013,R,BUPA CARE HOMES               
3913,Adult Social Care,OP 65&Over NursingCarePlacemts,OP R/Park - Nursing Care                ,W2LR53,Third Party Payments          ,Private Contractors           ,EH01,Miscellaneous Agency Services           ,602.74,12/09/2013,R,BUPA CARE HOMES               
3958,Adult Social Care,OP 65&Over NursingCarePlacemts,OP R/Park - Nursing Care                ,W2LR53,Third Party Payments          ,Private Contractors           ,EH01,Miscellaneous Agency Services           ,601.65,27/08/2013,R,BUPA CARE HOMES               
3959,Adult Social Care,OP 65&Over NursingCarePlacemts,OP R/Park - Nursing Care                ,W2LR53,Third Party Payments          ,Private Contractors           ,EH01,Miscellaneous Agency Services           ,601.65,27/08/2013,R,BUPA CARE HOMES               
3960,Adult Social Care,OP 65&Over NursingCarePlacemts,OP R/Park - Nursing Care                ,W2LR53,Third Party Payments          ,Private Contractors           ,EH01,Miscellaneous Agency Services           ,601.65,27/08/2013,R,BUPA CARE HOMES               
3961,Adult Social Care,OP 65&Over NursingCarePlacemts,OP R/Park - Nursing Care                ,W2LR53,Third Party Payments          ,Private Contractors           ,EH01,Miscellaneous Agency Services           ,601.65,27/08/2013,R,BUPA CARE HOMES               
3962,Adult Social Care,OP 65&Over NursingCarePlacemts,OP R/Park - Nursing Care                ,W2LR53,Third Party Payments          ,Private Contractors           ,EH01,Miscellaneous Agency Services           ,601.65,27/08/2013,R,BUPA CARE HOMES               
3963,Adult Social Care,OP 65&Over NursingCarePlacemts,OP R/Park - Nursing Care                ,W2LR53,Third Party Payments          ,Private Contractors           ,EH01,Miscellaneous Agency Services           ,601.65,23/09/2013,R,BUPA CARE HOMES               
3964,Adult Social Care,OP 65&Over NursingCarePlacemts,OP R/Park - Nursing Care                ,W2LR53,Third Party Payments          ,Private Contractors           ,EH01,Miscellaneous Agency Services           ,601.65,23/09/2013,R,BUPA CARE HOMES               
3965,Adult Social Care,OP 65&Over NursingCarePlacemts,OP R/Park - Nursing Care                ,W2LR53,Third Party Payments          ,Private Contractors           ,EH01,Miscellaneous Agency Services           ,601.65,23/09/2013,R,BUPA CARE HOMES               
3966,Adult Social Care,OP 65&Over NursingCarePlacemts,OP R/Park - Nursing Care                ,W2LR53,Third Party Payments          ,Private Contractors           ,EH01,Miscellaneous Agency Services           ,601.65,23/09/2013,R,BUPA CARE HOMES               
3967,Adult Social Care,OP 65&Over NursingCarePlacemts,OP R/Park - Nursing Care                ,W2LR53,Third Party Payments          ,Private Contractors           ,EH01,Miscellaneous Agency Services           ,602.74,12/09/2013,R,BUPA CARE HOMES               
3968,Adult Social Care,OP 65&Over NursingCarePlacemts,OP R/Park - Nursing Care                ,W2LR53,Third Party Payments          ,Private Contractors           ,EH01,Miscellaneous Agency Services           ,602.74,12/09/2013,R,BUPA CARE HOMES               
3977,Adult Social Care,OP 65&Over NursingCarePlacemts,OP R/Park - Nursing Care                ,W2LR53,Third Party Payments          ,Private Contractors           ,EH01,Miscellaneous Agency Services           ,908.9,27/08/2013,R,BUPA CARE HOMES               
3978,Adult Social Care,OP 65&Over NursingCarePlacemts,OP R/Park - Nursing Care                ,W2LR53,Third Party Payments          ,Private Contractors           ,EH01,Miscellaneous Agency Services           ,908.9,23/09/2013,R,BUPA CARE HOMES               
3979,Adult Social Care,OP 65&Over NursingCarePlacemts,OP R/Park - Nursing Care                ,W2LR53,Third Party Payments          ,Private Contractors           ,EH01,Miscellaneous Agency Services           ,908.9,23/09/2013,R,BUPA CARE HOMES               
3999,Adult Social Care,OP 65&Over NursingCarePlacemts,OP R/Park - Nursing Care                ,W2LR53,Third Party Payments          ,Private Contractors           ,EH01,Miscellaneous Agency Services           ,601.65,27/08/2013,R,BUPA CARE HOMES               
4000,Adult Social Care,OP 65&Over NursingCarePlacemts,OP R/Park - Nursing Care                ,W2LR53,Third Party Payments          ,Private Contractors           ,EH01,Miscellaneous Agency Services           ,601.65,27/08/2013,R,BUPA CARE HOMES               
4001,Adult Social Care,OP 65&Over NursingCarePlacemts,OP R/Park - Nursing Care                ,W2LR53,Third Party Payments          ,Private Contractors           ,EH01,Miscellaneous Agency Services           ,601.65,23/09/2013,R,BUPA CARE HOMES               
4002,Adult Social Care,OP 65&Over NursingCarePlacemts,OP R/Park - Nursing Care                ,W2LR53,Third Party Payments          ,Private Contractors           ,EH01,Miscellaneous Agency Services           ,602.74,12/09/2013,R,BUPA CARE HOMES               
4007,Adult Social Care,OP 65&Over NursingCarePlacemts,OP R/Park - Nursing Care                ,W2LR53,Third Party Payments          ,Private Contractors           ,EH01,Miscellaneous Agency Services           ,908.9,27/08/2013,R,BUPA CARE HOMES               
4008,Adult Social Care,OP 65&Over NursingCarePlacemts,OP R/Park - Nursing Care                ,W2LR53,Third Party Payments          ,Private Contractors           ,EH01,Miscellaneous Agency Services           ,908.9,23/09/2013,R,BUPA CARE HOMES               
4071,Adult Social Care,OP 65&Over Resi Care Placement,OP R/Park-Residential Care Ext          ,W2LR55,Third Party Payments          ,Private Contractors           ,EH01,Miscellaneous Agency Services           ,521.99,12/09/2013,R,BUPA CARE HOMES               
4072,Adult Social Care,OP 65&Over Resi Care Placement,OP R/Park-Residential Care Ext          ,W2LR55,Third Party Payments          ,Private Contractors           ,EH01,Miscellaneous Agency Services           ,521.99,12/09/2013,R,BUPA CARE HOMES               
4111,Adult Social Care,OP 65&Over Resi Care Placement,OP R/Park-Residential Care Ext          ,W2LR55,Third Party Payments          ,Private Contractors           ,EH01,Miscellaneous Agency Services           ,521.99,12/09/2013,R,BUPA CARE HOMES               
4112,Adult Social Care,OP 65&Over Resi Care Placement,OP R/Park-Residential Care Ext          ,W2LR55,Third Party Payments          ,Private Contractors           ,EH01,Miscellaneous Agency Services           ,521.99,12/09/2013,R,BUPA CARE HOMES               
4383,Adult Social Care,MH u65 Nursing Care Placements,OP Nursing Care - NRTPF                 ,W7AE53,Third Party Payments          ,Private Contractors           ,EH01,Miscellaneous Agency Services           ,601.65,27/08/2013,R,BUPA CARE HOMES               
4384,Adult Social Care,MH u65 Nursing Care Placements,OP Nursing Care - NRTPF                 ,W7AE53,Third Party Payments          ,Private Contractors           ,EH01,Miscellaneous Agency Services           ,601.65,23/09/2013,R,BUPA CARE HOMES               
4385,Adult Social Care,MH u65 Nursing Care Placements,OP Nursing Care - NRTPF                 ,W7AE53,Third Party Payments          ,Private Contractors           ,EH01,Miscellaneous Agency Services           ,601.65,23/09/2013,R,BUPA CARE HOMES               
4386,Adult Social Care,MH u65 Nursing Care Placements,OP Nursing Care - NRTPF                 ,W7AE53,Third Party Payments          ,Private Contractors           ,EH01,Miscellaneous Agency Services           ,601.65,27/08/2013,R,BUPA CARE HOMES               
4387,Adult Social Care,MH u65 Nursing Care Placements,OP Nursing Care - NRTPF                 ,W7AE53,Third Party Payments          ,Private Contractors           ,EH01,Miscellaneous Agency Services           ,601.65,23/09/2013,R,BUPA CARE HOMES               
4388,Adult Social Care,MH u65 Nursing Care Placements,OP Nursing Care - NRTPF                 ,W7AE53,Third Party Payments          ,Private Contractors           ,EH01,Miscellaneous Agency Services           ,601.65,27/08/2013,R,BUPA CARE HOMES               
4389,Adult Social Care,MH u65 Nursing Care Placements,OP Nursing Care - NRTPF                 ,W7AE53,Third Party Payments          ,Private Contractors           ,EH01,Miscellaneous Agency Services           ,601.65,27/08/2013,R,BUPA CARE HOMES               
4390,Adult Social Care,MH u65 Nursing Care Placements,OP Nursing Care - NRTPF                 ,W7AE53,Third Party Payments          ,Private Contractors           ,EH01,Miscellaneous Agency Services           ,601.65,23/09/2013,R,BUPA CARE HOMES               
1381,Adult Social Care,PS u65 Home Care,PD EAST TEAM-Homecare                   ,W2JJ49,Third Party Payments          ,Private Contractors           ,EH01,Miscellaneous Agency Services           ,552.72,23/08/2013,R,BUPA CARE HOMES (ANS) LTD     
1382,Adult Social Care,PS u65 Home Care,PD EAST TEAM-Homecare                   ,W2JJ49,Third Party Payments          ,Private Contractors           ,EH01,Miscellaneous Agency Services           ,552.72,18/09/2013,R,BUPA CARE HOMES (ANS) LTD     
1383,Adult Social Care,PS u65 Home Care,PD EAST TEAM-Homecare                   ,W2JJ49,Third Party Payments          ,Private Contractors           ,EH01,Miscellaneous Agency Services           ,552.72,23/08/2013,R,BUPA CARE HOMES (ANS) LTD     
1384,Adult Social Care,PS u65 Home Care,PD EAST TEAM-Homecare                   ,W2JJ49,Third Party Payments          ,Private Contractors           ,EH01,Miscellaneous Agency Services           ,552.72,18/09/2013,R,BUPA CARE HOMES (ANS) LTD     
1385,Adult Social Care,PS u65 Home Care,PD EAST TEAM-Homecare                   ,W2JJ49,Third Party Payments          ,Private Contractors           ,EH01,Miscellaneous Agency Services           ,552.72,18/09/2013,R,BUPA CARE HOMES (ANS) LTD     
1387,Adult Social Care,PS u65 Home Care,PD EAST TEAM-Homecare                   ,W2JJ49,Third Party Payments          ,Private Contractors           ,EH01,Miscellaneous Agency Services           ,552.72,23/08/2013,R,BUPA CARE HOMES (ANS) LTD     
1390,Adult Social Care,PS u65 Home Care,PD EAST TEAM-Homecare                   ,W2JJ49,Third Party Payments          ,Private Contractors           ,EH01,Miscellaneous Agency Services           ,552.72,23/08/2013,R,BUPA CARE HOMES (ANS) LTD     
1391,Adult Social Care,PS u65 Home Care,PD EAST TEAM-Homecare                   ,W2JJ49,Third Party Payments          ,Private Contractors           ,EH01,Miscellaneous Agency Services           ,552.72,18/09/2013,R,BUPA CARE HOMES (ANS) LTD     
1397,Adult Social Care,PS u65 Nursing Care Placements,PD EAST TEAM-Nursing                    ,W2JJ53,Third Party Payments          ,Private Contractors           ,EH01,Miscellaneous Agency Services           ,"1,000.00",23/08/2013,R,BUPA CARE HOMES (ANS) LTD     
1398,Adult Social Care,PS u65 Nursing Care Placements,PD EAST TEAM-Nursing                    ,W2JJ53,Third Party Payments          ,Private Contractors           ,EH01,Miscellaneous Agency Services           ,"1,000.00",23/08/2013,R,BUPA CARE HOMES (ANS) LTD     
1406,Adult Social Care,PS u65 Nursing Care Placements,PD EAST TEAM-Nursing                    ,W2JJ53,Third Party Payments          ,Private Contractors           ,EH01,Miscellaneous Agency Services           ,"1,000.00",23/08/2013,R,BUPA CARE HOMES (ANS) LTD     
1417,Adult Social Care,PS u65 Nursing Care Placements,PD EAST TEAM-Nursing                    ,W2JJ53,Third Party Payments          ,Private Contractors           ,EH01,Miscellaneous Agency Services           ,"1,000.00",23/08/2013,R,BUPA CARE HOMES (ANS) LTD     
1418,Adult Social Care,PS u65 Nursing Care Placements,PD EAST TEAM-Nursing                    ,W2JJ53,Third Party Payments          ,Private Contractors           ,EH01,Miscellaneous Agency Services           ,"1,000.00",18/09/2013,R,BUPA CARE HOMES (ANS) LTD     
1419,Adult Social Care,PS u65 Nursing Care Placements,PD EAST TEAM-Nursing                    ,W2JJ53,Third Party Payments          ,Private Contractors           ,EH01,Miscellaneous Agency Services           ,"1,000.00",18/09/2013,R,BUPA CARE HOMES (ANS) LTD     
1427,Adult Social Care,PS u65 Nursing Care Placements,PD EAST TEAM-Nursing                    ,W2JJ53,Third Party Payments          ,Private Contractors           ,EH01,Miscellaneous Agency Services           ,"1,000.00",18/09/2013,R,BUPA CARE HOMES (ANS) LTD     
1428,Adult Social Care,PS u65 Nursing Care Placements,PD EAST TEAM-Nursing                    ,W2JJ53,Third Party Payments          ,Private Contractors           ,EH01,Miscellaneous Agency Services           ,"1,000.00",18/09/2013,R,BUPA CARE HOMES (ANS) LTD     
1550,Adult Social Care,PS u65 Residentl Care Placemnt,PD WEST TEAM-Residential Care           ,W2JK55,Third Party Payments          ,Private Contractors           ,EH01,Miscellaneous Agency Services           ,504,23/08/2013,R,BUPA CARE HOMES (ANS) LTD     
1551,Adult Social Care,PS u65 Residentl Care Placemnt,PD WEST TEAM-Residential Care           ,W2JK55,Third Party Payments          ,Private Contractors           ,EH01,Miscellaneous Agency Services           ,504,18/09/2013,R,BUPA CARE HOMES (ANS) LTD     
1557,Adult Social Care,PS u65 Residentl Care Placemnt,PD WEST TEAM-Residential Care           ,W2JK55,Third Party Payments          ,Private Contractors           ,EH01,Miscellaneous Agency Services           ,504,23/08/2013,R,BUPA CARE HOMES (ANS) LTD     
1558,Adult Social Care,PS u65 Residentl Care Placemnt,PD WEST TEAM-Residential Care           ,W2JK55,Third Party Payments          ,Private Contractors           ,EH01,Miscellaneous Agency Services           ,504,23/08/2013,R,BUPA CARE HOMES (ANS) LTD     
1559,Adult Social Care,PS u65 Residentl Care Placemnt,PD WEST TEAM-Residential Care           ,W2JK55,Third Party Payments          ,Private Contractors           ,EH01,Miscellaneous Agency Services           ,504,18/09/2013,R,BUPA CARE HOMES (ANS) LTD     
1565,Adult Social Care,PS u65 Residentl Care Placemnt,PD WEST TEAM-Residential Care           ,W2JK55,Third Party Payments          ,Private Contractors           ,EH01,Miscellaneous Agency Services           ,504,23/08/2013,R,BUPA CARE HOMES (ANS) LTD     
1566,Adult Social Care,PS u65 Residentl Care Placemnt,PD WEST TEAM-Residential Care           ,W2JK55,Third Party Payments          ,Private Contractors           ,EH01,Miscellaneous Agency Services           ,504,18/09/2013,R,BUPA CARE HOMES (ANS) LTD     
1567,Adult Social Care,PS u65 Residentl Care Placemnt,PD WEST TEAM-Residential Care           ,W2JK55,Third Party Payments          ,Private Contractors           ,EH01,Miscellaneous Agency Services           ,504,18/09/2013,R,BUPA CARE HOMES (ANS) LTD     
4371,Adult Social Care,PS u65 Nursing Care Placements,PS Nursing Care - NRTPF                 ,W7AD53,Third Party Payments          ,Private Contractors           ,EH01,Miscellaneous Agency Services           ,900,18/09/2013,R,BUPA CARE HOMES (ANS) LTD     
4372,Adult Social Care,PS u65 Nursing Care Placements,PS Nursing Care - NRTPF                 ,W7AD53,Third Party Payments          ,Private Contractors           ,EH01,Miscellaneous Agency Services           ,900,23/08/2013,R,BUPA CARE HOMES (ANS) LTD     
4373,Adult Social Care,PS u65 Nursing Care Placements,PS Nursing Care - NRTPF                 ,W7AD53,Third Party Payments          ,Private Contractors           ,EH01,Miscellaneous Agency Services           ,900,18/09/2013,R,BUPA CARE HOMES (ANS) LTD     
4374,Adult Social Care,PS u65 Nursing Care Placements,PS Nursing Care - NRTPF                 ,W7AD53,Third Party Payments          ,Private Contractors           ,EH01,Miscellaneous Agency Services           ,900,23/08/2013,R,BUPA CARE HOMES (ANS) LTD     
4375,Adult Social Care,PS u65 Nursing Care Placements,PS Nursing Care - NRTPF                 ,W7AD53,Third Party Payments          ,Private Contractors           ,EH01,Miscellaneous Agency Services           ,900,23/08/2013,R,BUPA CARE HOMES (ANS) LTD     
4376,Adult Social Care,PS u65 Nursing Care Placements,PS Nursing Care - NRTPF                 ,W7AD53,Third Party Payments          ,Private Contractors           ,EH01,Miscellaneous Agency Services           ,900,18/09/2013,R,BUPA CARE HOMES (ANS) LTD     
4377,Adult Social Care,PS u65 Nursing Care Placements,PS Nursing Care - NRTPF                 ,W7AD53,Third Party Payments          ,Private Contractors           ,EH01,Miscellaneous Agency Services           ,900,23/08/2013,R,BUPA CARE HOMES (ANS) LTD     
4378,Adult Social Care,PS u65 Nursing Care Placements,PS Nursing Care - NRTPF                 ,W7AD53,Third Party Payments          ,Private Contractors           ,EH01,Miscellaneous Agency Services           ,900,18/09/2013,R,BUPA CARE HOMES (ANS) LTD     
1404,Adult Social Care,PS u65 Nursing Care Placements,PD EAST TEAM-Nursing                    ,W2JJ53,Third Party Payments          ,Private Contractors           ,EH01,Miscellaneous Agency Services           ,"1,890.36",09/09/2013,R,BUPA CARE SERVICES BACS RECEIP
1411,Adult Social Care,PS u65 Nursing Care Placements,PD EAST TEAM-Nursing                    ,W2JJ53,Third Party Payments          ,Private Contractors           ,EH01,Miscellaneous Agency Services           ,"1,890.36",09/09/2013,R,BUPA CARE SERVICES BACS RECEIP
1412,Adult Social Care,PS u65 Nursing Care Placements,PD EAST TEAM-Nursing                    ,W2JJ53,Third Party Payments          ,Private Contractors           ,EH01,Miscellaneous Agency Services           ,"1,890.36",09/09/2013,R,BUPA CARE SERVICES BACS RECEIP
1434,Adult Social Care,PS u65 Nursing Care Placements,PD EAST TEAM-Nursing                    ,W2JJ53,Third Party Payments          ,Private Contractors           ,EH01,Miscellaneous Agency Services           ,"1,890.36",09/09/2013,R,BUPA CARE SERVICES BACS RECEIP
506,CS -Oth Operating Inc & Expend,T/A Vehicle Maintenance etc,Transport-Contract Hire                 ,J01374,Transport Related Expenditure ,Contract Hire and Op Leasing  ,CC59,HIRING TRANSPORT OPERATIONS             ,"1,452.00",30/08/2013,R,BURNT TREE VEHICLE RENTAL     
508,CS -Oth Operating Inc & Expend,T/A Vehicle Maintenance etc,Transport-Contract Hire                 ,J01374,Transport Related Expenditure ,Contract Hire and Op Leasing  ,CC59,HIRING TRANSPORT OPERATIONS             ,"1,452.00",30/08/2013,R,BURNT TREE VEHICLE RENTAL     
509,CS -Oth Operating Inc & Expend,T/A Vehicle Maintenance etc,Transport-Contract Hire                 ,J01374,Transport Related Expenditure ,Contract Hire and Op Leasing  ,CC59,HIRING TRANSPORT OPERATIONS             ,"1,452.00",30/08/2013,R,BURNT TREE VEHICLE RENTAL     
694,Childrens & Education Services,Nursery schools,EARLY YEARS NURSERY GRANTS           ,K90042,Supplies & Services           ,Grants and Subscriptions      ,DJ57,Nursery Grant Payment-4yr olds          ,"3,234.00",09/09/2013,R,BUTTERFLIES CHILDCARE LIMITED 
812,Cultural Env Reg&Plan Services,Parks & Open Spaces,Wimbledon Parks                         ,P05111,Supplies & Services           ,Equip Furniture/Materials     ,DA53,Specialist Equipment                    ,728.4,17/09/2013,R,C WILSON ENGINEERS LTD        
577,Childrens & Education Services,Oth U5s Provn Not Prim or Spec,Provider Support                        ,K05078,Supplies & Services           ,Comms and Computing           ,DG02,Software Licences                       ,"1,065.54",04/09/2013,R,CACI LIMITED                  
1812,Adult Social Care,LD u65 Residentl Care Placemnt,LD Residential Care External            ,W2KB55,Third Party Payments          ,Private Contractors           ,EH01,Miscellaneous Agency Services           ,617.9,01/09/2013,R,CANTERBURY OAST TRUST LTD     
1813,Adult Social Care,LD u65 Residentl Care Placemnt,LD Residential Care External            ,W2KB55,Third Party Payments          ,Private Contractors           ,EH01,Miscellaneous Agency Services           ,617.9,01/09/2013,R,CANTERBURY OAST TRUST LTD     
1814,Adult Social Care,LD u65 Residentl Care Placemnt,LD Residential Care External            ,W2KB55,Third Party Payments          ,Private Contractors           ,EH01,Miscellaneous Agency Services           ,617.9,01/09/2013,R,CANTERBURY OAST TRUST LTD     
1941,Adult Social Care,LD u65 Residentl Care Placemnt,LD Residential Care External            ,W2KB55,Third Party Payments          ,Private Contractors           ,EH01,Miscellaneous Agency Services           ,617.9,01/09/2013,R,CANTERBURY OAST TRUST LTD     
2074,Adult Social Care,LD u65 Residentl Care Placemnt,LD Residential Care External            ,W2KB55,Third Party Payments          ,Private Contractors           ,EH01,Miscellaneous Agency Services           ,617.9,01/09/2013,R,CANTERBURY OAST TRUST LTD     
2201,Adult Social Care,LD u65 Residentl Care Placemnt,LD Residential Care External            ,W2KB55,Third Party Payments          ,Private Contractors           ,EH01,Miscellaneous Agency Services           ,617.9,01/09/2013,R,CANTERBURY OAST TRUST LTD     
2202,Adult Social Care,LD u65 Residentl Care Placemnt,LD Residential Care External            ,W2KB55,Third Party Payments          ,Private Contractors           ,EH01,Miscellaneous Agency Services           ,617.9,01/09/2013,R,CANTERBURY OAST TRUST LTD     
2203,Adult Social Care,LD u65 Residentl Care Placemnt,LD Residential Care External            ,W2KB55,Third Party Payments          ,Private Contractors           ,EH01,Miscellaneous Agency Services           ,617.9,01/09/2013,R,CANTERBURY OAST TRUST LTD     
287,Central Services,SupS Facilities,Corporate Services Buildings            ,E02240,Premises Related Expenditure  ,Ground Maintenance Costs      ,BL03,Maintenance of Grounds                  ,920,10/09/2013,R,CAPABILITY GARDEN SERVICES    
408,Highways & Transport Services,Off-street parking,Coombe Lane                             ,G00292,Premises Related Expenditure  ,Rents                         ,BC01,Miscellaneous Rents                     ,"9,562.50",21/08/2013,R,CAPITA SYMONDS LTD            
527,CS -Oth Operating Inc & Expend,T/A Vehicle Maintenance etc,Transport-Contract Hire                 ,J01374,Transport Related Expenditure ,Contract Hire and Op Leasing  ,CC67,HIRING TRANSPORT H&SS CAB ADULTS        ,944,31/08/2013,R,CAPITAL CARS                  
531,CS -Oth Operating Inc & Expend,T/A Vehicle Maintenance etc,Transport-Contract Hire                 ,J01374,Transport Related Expenditure ,Contract Hire and Op Leasing  ,CC67,HIRING TRANSPORT H&SS CAB ADULTS        ,940,31/08/2013,R,CAPITAL CARS                  
779,Housing Services,Bed / breakfast accommodation,Homelessness Prevention                 ,N47171,Transfer Payments             ,Housing Benefits              ,FA12,Rent Deposits                           ,"1,920.00",26/09/2013,R,CAPITOL HOMES MANAGEMENT LTD  
1919,Adult Social Care,LD u65 Residentl Care Placemnt,LD Residential Care External            ,W2KB55,Third Party Payments          ,Private Contractors           ,EH01,Miscellaneous Agency Services           ,"1,795.54",06/09/2013,R,CARE ASPIRATIONS LIMITED      
1933,Adult Social Care,LD u65 Residentl Care Placemnt,LD Residential Care External            ,W2KB55,Third Party Payments          ,Private Contractors           ,EH01,Miscellaneous Agency Services           ,-769.51,06/09/2013,R,CARE ASPIRATIONS LIMITED      
2177,Adult Social Care,LD u65 Residentl Care Placemnt,LD Residential Care External            ,W2KB55,Third Party Payments          ,Private Contractors           ,EH01,Miscellaneous Agency Services           ,"1,539.01",06/09/2013,R,CARE ASPIRATIONS LIMITED      
2187,Adult Social Care,LD u65 Residentl Care Placemnt,LD Residential Care External            ,W2KB55,Third Party Payments          ,Private Contractors           ,EH01,Miscellaneous Agency Services           ,"1,795.54",06/09/2013,R,CARE ASPIRATIONS LIMITED      
2303,Adult Social Care,LD u65 Residentl Care Placemnt,LD Residential Care External            ,W2KB55,Third Party Payments          ,Private Contractors           ,EH01,Miscellaneous Agency Services           ,"1,795.54",06/09/2013,R,CARE ASPIRATIONS LIMITED      
2304,Adult Social Care,LD u65 Residentl Care Placemnt,LD Residential Care External            ,W2KB55,Third Party Payments          ,Private Contractors           ,EH01,Miscellaneous Agency Services           ,"1,795.54",06/09/2013,R,CARE ASPIRATIONS LIMITED      
1306,Adult Social Care,MH u65 Residentl Care Placemnt,MH ResidentialCare Ext - Wim            ,W2HC55,Third Party Payments          ,Private Contractors           ,EH01,Miscellaneous Agency Services           ,908,13/09/2013,R,CARE MANAGEMENT GROUP         
1307,Adult Social Care,MH u65 Residentl Care Placemnt,MH ResidentialCare Ext - Wim            ,W2HC55,Third Party Payments          ,Private Contractors           ,EH01,Miscellaneous Agency Services           ,908,13/09/2013,R,CARE MANAGEMENT GROUP         
1308,Adult Social Care,MH u65 Residentl Care Placemnt,MH ResidentialCare Ext - Wim            ,W2HC55,Third Party Payments          ,Private Contractors           ,EH01,Miscellaneous Agency Services           ,908,01/10/2013,R,CARE MANAGEMENT GROUP         
1309,Adult Social Care,MH u65 Residentl Care Placemnt,MH ResidentialCare Ext - Wim            ,W2HC55,Third Party Payments          ,Private Contractors           ,EH01,Miscellaneous Agency Services           ,908,01/10/2013,R,CARE MANAGEMENT GROUP         
1319,Adult Social Care,MH u65 Residentl Care Placemnt,MH ResidentialCare Ext - Wim            ,W2HC55,Third Party Payments          ,Private Contractors           ,EH01,Miscellaneous Agency Services           ,908,01/09/2013,R,CARE MANAGEMENT GROUP         
1320,Adult Social Care,MH u65 Residentl Care Placemnt,MH ResidentialCare Ext - Wim            ,W2HC55,Third Party Payments          ,Private Contractors           ,EH01,Miscellaneous Agency Services           ,908,01/09/2013,R,CARE MANAGEMENT GROUP         
1321,Adult Social Care,MH u65 Residentl Care Placemnt,MH ResidentialCare Ext - Wim            ,W2HC55,Third Party Payments          ,Private Contractors           ,EH01,Miscellaneous Agency Services           ,908,01/10/2013,R,CARE MANAGEMENT GROUP         
1322,Adult Social Care,MH u65 Residentl Care Placemnt,MH ResidentialCare Ext - Wim            ,W2HC55,Third Party Payments          ,Private Contractors           ,EH01,Miscellaneous Agency Services           ,908,01/10/2013,R,CARE MANAGEMENT GROUP         
1334,Adult Social Care,MH u65 Residentl Care Placemnt,MH ResidentialCare Ext - Wim            ,W2HC55,Third Party Payments          ,Private Contractors           ,EH01,Miscellaneous Agency Services           ,908,01/09/2013,R,CARE MANAGEMENT GROUP         
1343,Adult Social Care,MH u65 Residentl Care Placemnt,MH ResidentialCare Ext - Wim            ,W2HC55,Third Party Payments          ,Private Contractors           ,EH01,Miscellaneous Agency Services           ,908,01/09/2013,R,CARE MANAGEMENT GROUP         
1344,Adult Social Care,MH u65 Residentl Care Placemnt,MH ResidentialCare Ext - Wim            ,W2HC55,Third Party Payments          ,Private Contractors           ,EH01,Miscellaneous Agency Services           ,908,13/09/2013,R,CARE MANAGEMENT GROUP         
1345,Adult Social Care,MH u65 Residentl Care Placemnt,MH ResidentialCare Ext - Wim            ,W2HC55,Third Party Payments          ,Private Contractors           ,EH01,Miscellaneous Agency Services           ,908,13/09/2013,R,CARE MANAGEMENT GROUP         
1441,Adult Social Care,PS u65 Residentl Care Placemnt,PD EAST TEAM-Residential                ,W2JJ55,Third Party Payments          ,Private Contractors           ,EH01,Miscellaneous Agency Services           ,"1,774.00",01/09/2013,R,CARE MANAGEMENT GROUP         
1442,Adult Social Care,PS u65 Residentl Care Placemnt,PD EAST TEAM-Residential                ,W2JJ55,Third Party Payments          ,Private Contractors           ,EH01,Miscellaneous Agency Services           ,"1,774.00",13/09/2013,R,CARE MANAGEMENT GROUP         
1443,Adult Social Care,PS u65 Residentl Care Placemnt,PD EAST TEAM-Residential                ,W2JJ55,Third Party Payments          ,Private Contractors           ,EH01,Miscellaneous Agency Services           ,"1,774.00",01/10/2013,R,CARE MANAGEMENT GROUP         
1444,Adult Social Care,PS u65 Residentl Care Placemnt,PD EAST TEAM-Residential                ,W2JJ55,Third Party Payments          ,Private Contractors           ,EH01,Miscellaneous Agency Services           ,"1,774.00",01/10/2013,R,CARE MANAGEMENT GROUP         
1453,Adult Social Care,PS u65 Residentl Care Placemnt,PD EAST TEAM-Residential                ,W2JJ55,Third Party Payments          ,Private Contractors           ,EH01,Miscellaneous Agency Services           ,"1,774.00",13/09/2013,R,CARE MANAGEMENT GROUP         
1454,Adult Social Care,PS u65 Residentl Care Placemnt,PD EAST TEAM-Residential                ,W2JJ55,Third Party Payments          ,Private Contractors           ,EH01,Miscellaneous Agency Services           ,"1,774.00",01/10/2013,R,CARE MANAGEMENT GROUP         
1466,Adult Social Care,PS u65 Residentl Care Placemnt,PD EAST TEAM-Residential                ,W2JJ55,Third Party Payments          ,Private Contractors           ,EH01,Miscellaneous Agency Services           ,"1,774.00",01/09/2013,R,CARE MANAGEMENT GROUP         
1467,Adult Social Care,PS u65 Residentl Care Placemnt,PD EAST TEAM-Residential                ,W2JJ55,Third Party Payments          ,Private Contractors           ,EH01,Miscellaneous Agency Services           ,"1,774.00",13/09/2013,R,CARE MANAGEMENT GROUP         
1468,Adult Social Care,PS u65 Residentl Care Placemnt,PD EAST TEAM-Residential                ,W2JJ55,Third Party Payments          ,Private Contractors           ,EH01,Miscellaneous Agency Services           ,"1,774.00",13/09/2013,R,CARE MANAGEMENT GROUP         
1481,Adult Social Care,PS u65 Residentl Care Placemnt,PD EAST TEAM-Residential                ,W2JJ55,Third Party Payments          ,Private Contractors           ,EH01,Miscellaneous Agency Services           ,"1,774.00",01/09/2013,R,CARE MANAGEMENT GROUP         
1482,Adult Social Care,PS u65 Residentl Care Placemnt,PD EAST TEAM-Residential                ,W2JJ55,Third Party Payments          ,Private Contractors           ,EH01,Miscellaneous Agency Services           ,"1,774.00",01/09/2013,R,CARE MANAGEMENT GROUP         
1483,Adult Social Care,PS u65 Residentl Care Placemnt,PD EAST TEAM-Residential                ,W2JJ55,Third Party Payments          ,Private Contractors           ,EH01,Miscellaneous Agency Services           ,"1,774.00",01/10/2013,R,CARE MANAGEMENT GROUP         
1596,Adult Social Care,PS u65 Home Care,PD R/Park-Homecare                      ,W2JM49,Third Party Payments          ,Private Contractors           ,EH01,Miscellaneous Contrct Services          ,664.62,10/09/2013,R,CARE MANAGEMENT GROUP         
1597,Adult Social Care,PS u65 Home Care,PD R/Park-Homecare                      ,W2JM49,Third Party Payments          ,Private Contractors           ,EH01,Miscellaneous Contrct Services          ,664.62,18/09/2013,R,CARE MANAGEMENT GROUP         
1598,Adult Social Care,PS u65 Home Care,PD R/Park-Homecare                      ,W2JM49,Third Party Payments          ,Private Contractors           ,EH01,Miscellaneous Contrct Services          ,849.49,18/09/2013,R,CARE MANAGEMENT GROUP         
1599,Adult Social Care,PS u65 Home Care,PD R/Park-Homecare                      ,W2JM49,Third Party Payments          ,Private Contractors           ,EH01,Miscellaneous Contrct Services          ,664.62,08/07/2013,R,CARE MANAGEMENT GROUP         
1600,Adult Social Care,PS u65 Home Care,PD R/Park-Homecare                      ,W2JM49,Third Party Payments          ,Private Contractors           ,EH01,Miscellaneous Contrct Services          ,664.62,18/09/2013,R,CARE MANAGEMENT GROUP         
1601,Adult Social Care,PS u65 Home Care,PD R/Park-Homecare                      ,W2JM49,Third Party Payments          ,Private Contractors           ,EH01,Miscellaneous Contrct Services          ,849.49,16/07/2013,R,CARE MANAGEMENT GROUP         
1602,Adult Social Care,PS u65 Home Care,PD R/Park-Homecare                      ,W2JM49,Third Party Payments          ,Private Contractors           ,EH01,Miscellaneous Contrct Services          ,849.49,10/09/2013,R,CARE MANAGEMENT GROUP         
1603,Adult Social Care,PS u65 Home Care,PD R/Park-Homecare                      ,W2JM49,Third Party Payments          ,Private Contractors           ,EH01,Miscellaneous Contrct Services          ,664.62,10/09/2013,R,CARE MANAGEMENT GROUP         
1604,Adult Social Care,PS u65 Home Care,PD R/Park-Homecare                      ,W2JM49,Third Party Payments          ,Private Contractors           ,EH01,Miscellaneous Contrct Services          ,849.49,10/09/2013,R,CARE MANAGEMENT GROUP         
1605,Adult Social Care,PS u65 Home Care,PD R/Park-Homecare                      ,W2JM49,Third Party Payments          ,Private Contractors           ,EH01,Miscellaneous Contrct Services          ,849.49,18/09/2013,R,CARE MANAGEMENT GROUP         
1733,Adult Social Care,LD u65 Home Care,LD Home Care External                   ,W2KB49,Third Party Payments          ,Private Contractors           ,EH01,Miscellaneous Agency Services           ,"1,010.00",01/09/2013,R,CARE MANAGEMENT GROUP         
1734,Adult Social Care,LD u65 Home Care,LD Home Care External                   ,W2KB49,Third Party Payments          ,Private Contractors           ,EH01,Miscellaneous Agency Services           ,"1,010.00",01/09/2013,R,CARE MANAGEMENT GROUP         
1735,Adult Social Care,LD u65 Home Care,LD Home Care External                   ,W2KB49,Third Party Payments          ,Private Contractors           ,EH01,Miscellaneous Agency Services           ,"1,010.00",13/09/2013,R,CARE MANAGEMENT GROUP         
1736,Adult Social Care,LD u65 Home Care,LD Home Care External                   ,W2KB49,Third Party Payments          ,Private Contractors           ,EH01,Miscellaneous Agency Services           ,"1,010.00",13/09/2013,R,CARE MANAGEMENT GROUP         
1737,Adult Social Care,LD u65 Home Care,LD Home Care External                   ,W2KB49,Third Party Payments          ,Private Contractors           ,EH01,Miscellaneous Agency Services           ,"1,010.00",13/09/2013,R,CARE MANAGEMENT GROUP         
1738,Adult Social Care,LD u65 Home Care,LD Home Care External                   ,W2KB49,Third Party Payments          ,Private Contractors           ,EH01,Miscellaneous Agency Services           ,"1,010.00",06/10/2013,R,CARE MANAGEMENT GROUP         
1739,Adult Social Care,LD u65 Home Care,LD Home Care External                   ,W2KB49,Third Party Payments          ,Private Contractors           ,EH01,Miscellaneous Agency Services           ,"1,010.00",06/10/2013,R,CARE MANAGEMENT GROUP         
1757,Adult Social Care,LD u65 Home Care,LD Home Care External                   ,W2KB49,Third Party Payments          ,Private Contractors           ,EH01,Miscellaneous Agency Services           ,"1,010.00",01/09/2013,R,CARE MANAGEMENT GROUP         
1758,Adult Social Care,LD u65 Home Care,LD Home Care External                   ,W2KB49,Third Party Payments          ,Private Contractors           ,EH01,Miscellaneous Agency Services           ,"1,010.00",13/09/2013,R,CARE MANAGEMENT GROUP         
1759,Adult Social Care,LD u65 Home Care,LD Home Care External                   ,W2KB49,Third Party Payments          ,Private Contractors           ,EH01,Miscellaneous Agency Services           ,"1,010.00",06/10/2013,R,CARE MANAGEMENT GROUP         
1760,Adult Social Care,LD u65 Home Care,LD Home Care External                   ,W2KB49,Third Party Payments          ,Private Contractors           ,EH01,Miscellaneous Agency Services           ,"1,010.00",06/10/2013,R,CARE MANAGEMENT GROUP         
1775,Adult Social Care,LD u65 Home Care,LD Home Care External                   ,W2KB49,Third Party Payments          ,Private Contractors           ,EH01,Miscellaneous Agency Services           ,"1,010.00",01/09/2013,R,CARE MANAGEMENT GROUP         
1829,Adult Social Care,LD u65 Residentl Care Placemnt,LD Residential Care External            ,W2KB55,Third Party Payments          ,Private Contractors           ,EH01,Miscellaneous Agency Services           ,834,01/09/2013,R,CARE MANAGEMENT GROUP         
1830,Adult Social Care,LD u65 Residentl Care Placemnt,LD Residential Care External            ,W2KB55,Third Party Payments          ,Private Contractors           ,EH01,Miscellaneous Agency Services           ,834,01/10/2013,R,CARE MANAGEMENT GROUP         
1868,Adult Social Care,LD u65 Residentl Care Placemnt,LD Residential Care External            ,W2KB55,Third Party Payments          ,Private Contractors           ,EH01,Miscellaneous Agency Services           ,"1,190.00",01/09/2013,R,CARE MANAGEMENT GROUP         
1869,Adult Social Care,LD u65 Residentl Care Placemnt,LD Residential Care External            ,W2KB55,Third Party Payments          ,Private Contractors           ,EH01,Miscellaneous Agency Services           ,"1,190.00",13/09/2013,R,CARE MANAGEMENT GROUP         
1870,Adult Social Care,LD u65 Residentl Care Placemnt,LD Residential Care External            ,W2KB55,Third Party Payments          ,Private Contractors           ,EH01,Miscellaneous Agency Services           ,"1,190.00",01/10/2013,R,CARE MANAGEMENT GROUP         
1880,Adult Social Care,LD u65 Residentl Care Placemnt,LD Residential Care External            ,W2KB55,Third Party Payments          ,Private Contractors           ,EH01,Miscellaneous Agency Services           ,"1,261.00",01/09/2013,R,CARE MANAGEMENT GROUP         
1881,Adult Social Care,LD u65 Residentl Care Placemnt,LD Residential Care External            ,W2KB55,Third Party Payments          ,Private Contractors           ,EH01,Miscellaneous Agency Services           ,"1,261.00",13/09/2013,R,CARE MANAGEMENT GROUP         
1882,Adult Social Care,LD u65 Residentl Care Placemnt,LD Residential Care External            ,W2KB55,Third Party Payments          ,Private Contractors           ,EH01,Miscellaneous Agency Services           ,"1,261.00",01/10/2013,R,CARE MANAGEMENT GROUP         
1887,Adult Social Care,LD u65 Residentl Care Placemnt,LD Residential Care External            ,W2KB55,Third Party Payments          ,Private Contractors           ,EH01,Miscellaneous Agency Services           ,"1,345.00",01/09/2013,R,CARE MANAGEMENT GROUP         
1888,Adult Social Care,LD u65 Residentl Care Placemnt,LD Residential Care External            ,W2KB55,Third Party Payments          ,Private Contractors           ,EH01,Miscellaneous Agency Services           ,"1,345.00",13/09/2013,R,CARE MANAGEMENT GROUP         
1889,Adult Social Care,LD u65 Residentl Care Placemnt,LD Residential Care External            ,W2KB55,Third Party Payments          ,Private Contractors           ,EH01,Miscellaneous Agency Services           ,"1,345.00",01/10/2013,R,CARE MANAGEMENT GROUP         
1890,Adult Social Care,LD u65 Residentl Care Placemnt,LD Residential Care External            ,W2KB55,Third Party Payments          ,Private Contractors           ,EH01,Miscellaneous Agency Services           ,"1,375.00",01/10/2013,R,CARE MANAGEMENT GROUP         
1891,Adult Social Care,LD u65 Residentl Care Placemnt,LD Residential Care External            ,W2KB55,Third Party Payments          ,Private Contractors           ,EH01,Miscellaneous Agency Services           ,"1,375.00",01/10/2013,R,CARE MANAGEMENT GROUP         
1903,Adult Social Care,LD u65 Residentl Care Placemnt,LD Residential Care External            ,W2KB55,Third Party Payments          ,Private Contractors           ,EH01,Miscellaneous Agency Services           ,"1,495.00",01/09/2013,R,CARE MANAGEMENT GROUP         
1904,Adult Social Care,LD u65 Residentl Care Placemnt,LD Residential Care External            ,W2KB55,Third Party Payments          ,Private Contractors           ,EH01,Miscellaneous Agency Services           ,"1,495.00",13/09/2013,R,CARE MANAGEMENT GROUP         
1905,Adult Social Care,LD u65 Residentl Care Placemnt,LD Residential Care External            ,W2KB55,Third Party Payments          ,Private Contractors           ,EH01,Miscellaneous Agency Services           ,"1,495.00",13/09/2013,R,CARE MANAGEMENT GROUP         
1906,Adult Social Care,LD u65 Residentl Care Placemnt,LD Residential Care External            ,W2KB55,Third Party Payments          ,Private Contractors           ,EH01,Miscellaneous Agency Services           ,"1,495.00",01/10/2013,R,CARE MANAGEMENT GROUP         
1907,Adult Social Care,LD u65 Residentl Care Placemnt,LD Residential Care External            ,W2KB55,Third Party Payments          ,Private Contractors           ,EH01,Miscellaneous Agency Services           ,"1,495.31",13/09/2013,R,CARE MANAGEMENT GROUP         
1908,Adult Social Care,LD u65 Residentl Care Placemnt,LD Residential Care External            ,W2KB55,Third Party Payments          ,Private Contractors           ,EH01,Miscellaneous Agency Services           ,"1,495.31",13/09/2013,R,CARE MANAGEMENT GROUP         
1909,Adult Social Care,LD u65 Residentl Care Placemnt,LD Residential Care External            ,W2KB55,Third Party Payments          ,Private Contractors           ,EH01,Miscellaneous Agency Services           ,"1,495.31",01/10/2013,R,CARE MANAGEMENT GROUP         
1910,Adult Social Care,LD u65 Residentl Care Placemnt,LD Residential Care External            ,W2KB55,Third Party Payments          ,Private Contractors           ,EH01,Miscellaneous Agency Services           ,"1,495.31",01/10/2013,R,CARE MANAGEMENT GROUP         
1911,Adult Social Care,LD u65 Residentl Care Placemnt,LD Residential Care External            ,W2KB55,Third Party Payments          ,Private Contractors           ,EH01,Miscellaneous Agency Services           ,"1,495.31",01/10/2013,R,CARE MANAGEMENT GROUP         
1951,Adult Social Care,LD u65 Residentl Care Placemnt,LD Residential Care External            ,W2KB55,Third Party Payments          ,Private Contractors           ,EH01,Miscellaneous Agency Services           ,834,01/09/2013,R,CARE MANAGEMENT GROUP         
1985,Adult Social Care,LD u65 Residentl Care Placemnt,LD Residential Care External            ,W2KB55,Third Party Payments          ,Private Contractors           ,EH01,Miscellaneous Agency Services           ,"1,190.00",01/09/2013,R,CARE MANAGEMENT GROUP         
1986,Adult Social Care,LD u65 Residentl Care Placemnt,LD Residential Care External            ,W2KB55,Third Party Payments          ,Private Contractors           ,EH01,Miscellaneous Agency Services           ,"1,190.00",13/09/2013,R,CARE MANAGEMENT GROUP         
1987,Adult Social Care,LD u65 Residentl Care Placemnt,LD Residential Care External            ,W2KB55,Third Party Payments          ,Private Contractors           ,EH01,Miscellaneous Agency Services           ,"1,190.00",13/09/2013,R,CARE MANAGEMENT GROUP         
1988,Adult Social Care,LD u65 Residentl Care Placemnt,LD Residential Care External            ,W2KB55,Third Party Payments          ,Private Contractors           ,EH01,Miscellaneous Agency Services           ,"1,190.00",01/10/2013,R,CARE MANAGEMENT GROUP         
1997,Adult Social Care,LD u65 Residentl Care Placemnt,LD Residential Care External            ,W2KB55,Third Party Payments          ,Private Contractors           ,EH01,Miscellaneous Agency Services           ,"1,261.00",01/09/2013,R,CARE MANAGEMENT GROUP         
1998,Adult Social Care,LD u65 Residentl Care Placemnt,LD Residential Care External            ,W2KB55,Third Party Payments          ,Private Contractors           ,EH01,Miscellaneous Agency Services           ,"1,261.00",13/09/2013,R,CARE MANAGEMENT GROUP         
1999,Adult Social Care,LD u65 Residentl Care Placemnt,LD Residential Care External            ,W2KB55,Third Party Payments          ,Private Contractors           ,EH01,Miscellaneous Agency Services           ,"1,261.00",13/09/2013,R,CARE MANAGEMENT GROUP         
2000,Adult Social Care,LD u65 Residentl Care Placemnt,LD Residential Care External            ,W2KB55,Third Party Payments          ,Private Contractors           ,EH01,Miscellaneous Agency Services           ,"1,261.00",13/09/2013,R,CARE MANAGEMENT GROUP         
2001,Adult Social Care,LD u65 Residentl Care Placemnt,LD Residential Care External            ,W2KB55,Third Party Payments          ,Private Contractors           ,EH01,Miscellaneous Agency Services           ,"1,261.00",01/10/2013,R,CARE MANAGEMENT GROUP         
2013,Adult Social Care,LD u65 Residentl Care Placemnt,LD Residential Care External            ,W2KB55,Third Party Payments          ,Private Contractors           ,EH01,Miscellaneous Agency Services           ,"1,345.00",01/09/2013,R,CARE MANAGEMENT GROUP         
2014,Adult Social Care,LD u65 Residentl Care Placemnt,LD Residential Care External            ,W2KB55,Third Party Payments          ,Private Contractors           ,EH01,Miscellaneous Agency Services           ,"1,345.00",01/09/2013,R,CARE MANAGEMENT GROUP         
2015,Adult Social Care,LD u65 Residentl Care Placemnt,LD Residential Care External            ,W2KB55,Third Party Payments          ,Private Contractors           ,EH01,Miscellaneous Agency Services           ,"1,345.00",01/09/2013,R,CARE MANAGEMENT GROUP         
2016,Adult Social Care,LD u65 Residentl Care Placemnt,LD Residential Care External            ,W2KB55,Third Party Payments          ,Private Contractors           ,EH01,Miscellaneous Agency Services           ,"1,345.00",13/09/2013,R,CARE MANAGEMENT GROUP         
2017,Adult Social Care,LD u65 Residentl Care Placemnt,LD Residential Care External            ,W2KB55,Third Party Payments          ,Private Contractors           ,EH01,Miscellaneous Agency Services           ,"1,345.00",01/10/2013,R,CARE MANAGEMENT GROUP         
2019,Adult Social Care,LD u65 Residentl Care Placemnt,LD Residential Care External            ,W2KB55,Third Party Payments          ,Private Contractors           ,EH01,Miscellaneous Agency Services           ,"1,375.00",01/09/2013,R,CARE MANAGEMENT GROUP         
2020,Adult Social Care,LD u65 Residentl Care Placemnt,LD Residential Care External            ,W2KB55,Third Party Payments          ,Private Contractors           ,EH01,Miscellaneous Agency Services           ,"1,375.00",13/09/2013,R,CARE MANAGEMENT GROUP         
2021,Adult Social Care,LD u65 Residentl Care Placemnt,LD Residential Care External            ,W2KB55,Third Party Payments          ,Private Contractors           ,EH01,Miscellaneous Agency Services           ,"1,375.00",01/10/2013,R,CARE MANAGEMENT GROUP         
2035,Adult Social Care,LD u65 Residentl Care Placemnt,LD Residential Care External            ,W2KB55,Third Party Payments          ,Private Contractors           ,EH01,Miscellaneous Agency Services           ,"1,495.00",01/09/2013,R,CARE MANAGEMENT GROUP         
2036,Adult Social Care,LD u65 Residentl Care Placemnt,LD Residential Care External            ,W2KB55,Third Party Payments          ,Private Contractors           ,EH01,Miscellaneous Agency Services           ,"1,495.00",13/09/2013,R,CARE MANAGEMENT GROUP         
2037,Adult Social Care,LD u65 Residentl Care Placemnt,LD Residential Care External            ,W2KB55,Third Party Payments          ,Private Contractors           ,EH01,Miscellaneous Agency Services           ,"1,495.00",01/10/2013,R,CARE MANAGEMENT GROUP         
2038,Adult Social Care,LD u65 Residentl Care Placemnt,LD Residential Care External            ,W2KB55,Third Party Payments          ,Private Contractors           ,EH01,Miscellaneous Agency Services           ,"1,495.00",01/10/2013,R,CARE MANAGEMENT GROUP         
2039,Adult Social Care,LD u65 Residentl Care Placemnt,LD Residential Care External            ,W2KB55,Third Party Payments          ,Private Contractors           ,EH01,Miscellaneous Agency Services           ,"1,495.31",01/09/2013,R,CARE MANAGEMENT GROUP         
2040,Adult Social Care,LD u65 Residentl Care Placemnt,LD Residential Care External            ,W2KB55,Third Party Payments          ,Private Contractors           ,EH01,Miscellaneous Agency Services           ,"1,495.31",13/09/2013,R,CARE MANAGEMENT GROUP         
2093,Adult Social Care,LD u65 Residentl Care Placemnt,LD Residential Care External            ,W2KB55,Third Party Payments          ,Private Contractors           ,EH01,Miscellaneous Agency Services           ,834,01/09/2013,R,CARE MANAGEMENT GROUP         
2094,Adult Social Care,LD u65 Residentl Care Placemnt,LD Residential Care External            ,W2KB55,Third Party Payments          ,Private Contractors           ,EH01,Miscellaneous Agency Services           ,834,13/09/2013,R,CARE MANAGEMENT GROUP         
2095,Adult Social Care,LD u65 Residentl Care Placemnt,LD Residential Care External            ,W2KB55,Third Party Payments          ,Private Contractors           ,EH01,Miscellaneous Agency Services           ,834,01/10/2013,R,CARE MANAGEMENT GROUP         
2139,Adult Social Care,LD u65 Residentl Care Placemnt,LD Residential Care External            ,W2KB55,Third Party Payments          ,Private Contractors           ,EH01,Miscellaneous Agency Services           ,"1,190.00",01/09/2013,R,CARE MANAGEMENT GROUP         
2140,Adult Social Care,LD u65 Residentl Care Placemnt,LD Residential Care External            ,W2KB55,Third Party Payments          ,Private Contractors           ,EH01,Miscellaneous Agency Services           ,"1,190.00",01/09/2013,R,CARE MANAGEMENT GROUP         
2141,Adult Social Care,LD u65 Residentl Care Placemnt,LD Residential Care External            ,W2KB55,Third Party Payments          ,Private Contractors           ,EH01,Miscellaneous Agency Services           ,"1,190.00",13/09/2013,R,CARE MANAGEMENT GROUP         
2149,Adult Social Care,LD u65 Residentl Care Placemnt,LD Residential Care External            ,W2KB55,Third Party Payments          ,Private Contractors           ,EH01,Miscellaneous Agency Services           ,"1,261.00",01/09/2013,R,CARE MANAGEMENT GROUP         
2150,Adult Social Care,LD u65 Residentl Care Placemnt,LD Residential Care External            ,W2KB55,Third Party Payments          ,Private Contractors           ,EH01,Miscellaneous Agency Services           ,"1,261.00",01/10/2013,R,CARE MANAGEMENT GROUP         
2159,Adult Social Care,LD u65 Residentl Care Placemnt,LD Residential Care External            ,W2KB55,Third Party Payments          ,Private Contractors           ,EH01,Miscellaneous Agency Services           ,"1,345.00",13/09/2013,R,CARE MANAGEMENT GROUP         
2160,Adult Social Care,LD u65 Residentl Care Placemnt,LD Residential Care External            ,W2KB55,Third Party Payments          ,Private Contractors           ,EH01,Miscellaneous Agency Services           ,"1,345.00",01/10/2013,R,CARE MANAGEMENT GROUP         
2161,Adult Social Care,LD u65 Residentl Care Placemnt,LD Residential Care External            ,W2KB55,Third Party Payments          ,Private Contractors           ,EH01,Miscellaneous Agency Services           ,"1,375.00",01/09/2013,R,CARE MANAGEMENT GROUP         
2162,Adult Social Care,LD u65 Residentl Care Placemnt,LD Residential Care External            ,W2KB55,Third Party Payments          ,Private Contractors           ,EH01,Miscellaneous Agency Services           ,"1,375.00",13/09/2013,R,CARE MANAGEMENT GROUP         
2173,Adult Social Care,LD u65 Residentl Care Placemnt,LD Residential Care External            ,W2KB55,Third Party Payments          ,Private Contractors           ,EH01,Miscellaneous Agency Services           ,"1,495.00",13/09/2013,R,CARE MANAGEMENT GROUP         
2174,Adult Social Care,LD u65 Residentl Care Placemnt,LD Residential Care External            ,W2KB55,Third Party Payments          ,Private Contractors           ,EH01,Miscellaneous Agency Services           ,"1,495.00",01/10/2013,R,CARE MANAGEMENT GROUP         
2175,Adult Social Care,LD u65 Residentl Care Placemnt,LD Residential Care External            ,W2KB55,Third Party Payments          ,Private Contractors           ,EH01,Miscellaneous Agency Services           ,"1,495.31",01/09/2013,R,CARE MANAGEMENT GROUP         
2176,Adult Social Care,LD u65 Residentl Care Placemnt,LD Residential Care External            ,W2KB55,Third Party Payments          ,Private Contractors           ,EH01,Miscellaneous Agency Services           ,"1,495.31",01/09/2013,R,CARE MANAGEMENT GROUP         
2215,Adult Social Care,LD u65 Residentl Care Placemnt,LD Residential Care External            ,W2KB55,Third Party Payments          ,Private Contractors           ,EH01,Miscellaneous Agency Services           ,834,01/09/2013,R,CARE MANAGEMENT GROUP         
2216,Adult Social Care,LD u65 Residentl Care Placemnt,LD Residential Care External            ,W2KB55,Third Party Payments          ,Private Contractors           ,EH01,Miscellaneous Agency Services           ,834,13/09/2013,R,CARE MANAGEMENT GROUP         
2217,Adult Social Care,LD u65 Residentl Care Placemnt,LD Residential Care External            ,W2KB55,Third Party Payments          ,Private Contractors           ,EH01,Miscellaneous Agency Services           ,834,13/09/2013,R,CARE MANAGEMENT GROUP         
2218,Adult Social Care,LD u65 Residentl Care Placemnt,LD Residential Care External            ,W2KB55,Third Party Payments          ,Private Contractors           ,EH01,Miscellaneous Agency Services           ,834,13/09/2013,R,CARE MANAGEMENT GROUP         
2219,Adult Social Care,LD u65 Residentl Care Placemnt,LD Residential Care External            ,W2KB55,Third Party Payments          ,Private Contractors           ,EH01,Miscellaneous Agency Services           ,834,01/10/2013,R,CARE MANAGEMENT GROUP         
2220,Adult Social Care,LD u65 Residentl Care Placemnt,LD Residential Care External            ,W2KB55,Third Party Payments          ,Private Contractors           ,EH01,Miscellaneous Agency Services           ,834,01/10/2013,R,CARE MANAGEMENT GROUP         
2253,Adult Social Care,LD u65 Residentl Care Placemnt,LD Residential Care External            ,W2KB55,Third Party Payments          ,Private Contractors           ,EH01,Miscellaneous Agency Services           ,"1,190.00",01/10/2013,R,CARE MANAGEMENT GROUP         
2254,Adult Social Care,LD u65 Residentl Care Placemnt,LD Residential Care External            ,W2KB55,Third Party Payments          ,Private Contractors           ,EH01,Miscellaneous Agency Services           ,"1,190.00",01/10/2013,R,CARE MANAGEMENT GROUP         
2263,Adult Social Care,LD u65 Residentl Care Placemnt,LD Residential Care External            ,W2KB55,Third Party Payments          ,Private Contractors           ,EH01,Miscellaneous Agency Services           ,"1,261.00",01/09/2013,R,CARE MANAGEMENT GROUP         
2264,Adult Social Care,LD u65 Residentl Care Placemnt,LD Residential Care External            ,W2KB55,Third Party Payments          ,Private Contractors           ,EH01,Miscellaneous Agency Services           ,"1,261.00",01/10/2013,R,CARE MANAGEMENT GROUP         
2278,Adult Social Care,LD u65 Residentl Care Placemnt,LD Residential Care External            ,W2KB55,Third Party Payments          ,Private Contractors           ,EH01,Miscellaneous Agency Services           ,"1,345.00",13/09/2013,R,CARE MANAGEMENT GROUP         
2279,Adult Social Care,LD u65 Residentl Care Placemnt,LD Residential Care External            ,W2KB55,Third Party Payments          ,Private Contractors           ,EH01,Miscellaneous Agency Services           ,"1,345.00",01/10/2013,R,CARE MANAGEMENT GROUP         
2280,Adult Social Care,LD u65 Residentl Care Placemnt,LD Residential Care External            ,W2KB55,Third Party Payments          ,Private Contractors           ,EH01,Miscellaneous Agency Services           ,"1,375.00",01/09/2013,R,CARE MANAGEMENT GROUP         
2281,Adult Social Care,LD u65 Residentl Care Placemnt,LD Residential Care External            ,W2KB55,Third Party Payments          ,Private Contractors           ,EH01,Miscellaneous Agency Services           ,"1,375.00",01/09/2013,R,CARE MANAGEMENT GROUP         
2282,Adult Social Care,LD u65 Residentl Care Placemnt,LD Residential Care External            ,W2KB55,Third Party Payments          ,Private Contractors           ,EH01,Miscellaneous Agency Services           ,"1,375.00",13/09/2013,R,CARE MANAGEMENT GROUP         
2283,Adult Social Care,LD u65 Residentl Care Placemnt,LD Residential Care External            ,W2KB55,Third Party Payments          ,Private Contractors           ,EH01,Miscellaneous Agency Services           ,"1,375.00",13/09/2013,R,CARE MANAGEMENT GROUP         
2284,Adult Social Care,LD u65 Residentl Care Placemnt,LD Residential Care External            ,W2KB55,Third Party Payments          ,Private Contractors           ,EH01,Miscellaneous Agency Services           ,"1,375.00",01/10/2013,R,CARE MANAGEMENT GROUP         
2295,Adult Social Care,LD u65 Residentl Care Placemnt,LD Residential Care External            ,W2KB55,Third Party Payments          ,Private Contractors           ,EH01,Miscellaneous Agency Services           ,"1,495.00",01/09/2013,R,CARE MANAGEMENT GROUP         
2296,Adult Social Care,LD u65 Residentl Care Placemnt,LD Residential Care External            ,W2KB55,Third Party Payments          ,Private Contractors           ,EH01,Miscellaneous Agency Services           ,"1,495.00",01/09/2013,R,CARE MANAGEMENT GROUP         
2297,Adult Social Care,LD u65 Residentl Care Placemnt,LD Residential Care External            ,W2KB55,Third Party Payments          ,Private Contractors           ,EH01,Miscellaneous Agency Services           ,"1,495.31",01/09/2013,R,CARE MANAGEMENT GROUP         
2298,Adult Social Care,LD u65 Residentl Care Placemnt,LD Residential Care External            ,W2KB55,Third Party Payments          ,Private Contractors           ,EH01,Miscellaneous Agency Services           ,"1,495.31",13/09/2013,R,CARE MANAGEMENT GROUP         
2299,Adult Social Care,LD u65 Residentl Care Placemnt,LD Residential Care External            ,W2KB55,Third Party Payments          ,Private Contractors           ,EH01,Miscellaneous Agency Services           ,"1,495.31",01/10/2013,R,CARE MANAGEMENT GROUP         
2512,Adult Social Care,OP 65&Over NursingCarePlacemts,OP Hosp - Nursing Care                  ,W2LF53,Third Party Payments          ,Private Contractors           ,EH01,Miscellaneous Agency Services           ,-633.43,11/06/2013,R,CARE UK                       
2513,Adult Social Care,OP 65&Over NursingCarePlacemts,OP Hosp - Nursing Care                  ,W2LF53,Third Party Payments          ,Private Contractors           ,EH01,Miscellaneous Agency Services           ,-633.43,11/06/2013,R,CARE UK                       
2583,Adult Social Care,OP 65&Over NursingCarePlacemts,OP Hosp - Nursing Care                  ,W2LF53,Third Party Payments          ,Private Contractors           ,EH01,Miscellaneous Agency Services           ,633.43,03/09/2013,R,CARE UK                       
2584,Adult Social Care,OP 65&Over NursingCarePlacemts,OP Hosp - Nursing Care                  ,W2LF53,Third Party Payments          ,Private Contractors           ,EH01,Miscellaneous Agency Services           ,633.43,03/09/2013,R,CARE UK                       
2585,Adult Social Care,OP 65&Over NursingCarePlacemts,OP Hosp - Nursing Care                  ,W2LF53,Third Party Payments          ,Private Contractors           ,EH01,Miscellaneous Agency Services           ,633.43,03/09/2013,R,CARE UK                       
2586,Adult Social Care,OP 65&Over NursingCarePlacemts,OP Hosp - Nursing Care                  ,W2LF53,Third Party Payments          ,Private Contractors           ,EH01,Miscellaneous Agency Services           ,633.43,03/09/2013,R,CARE UK                       
2587,Adult Social Care,OP 65&Over NursingCarePlacemts,OP Hosp - Nursing Care                  ,W2LF53,Third Party Payments          ,Private Contractors           ,EH01,Miscellaneous Agency Services           ,633.43,03/09/2013,R,CARE UK                       
2588,Adult Social Care,OP 65&Over NursingCarePlacemts,OP Hosp - Nursing Care                  ,W2LF53,Third Party Payments          ,Private Contractors           ,EH01,Miscellaneous Agency Services           ,633.43,03/09/2013,R,CARE UK                       
2589,Adult Social Care,OP 65&Over NursingCarePlacemts,OP Hosp - Nursing Care                  ,W2LF53,Third Party Payments          ,Private Contractors           ,EH01,Miscellaneous Agency Services           ,633.43,03/09/2013,R,CARE UK                       
2590,Adult Social Care,OP 65&Over NursingCarePlacemts,OP Hosp - Nursing Care                  ,W2LF53,Third Party Payments          ,Private Contractors           ,EH01,Miscellaneous Agency Services           ,633.43,03/09/2013,R,CARE UK                       
2622,Adult Social Care,OP 65&Over NursingCarePlacemts,OP Hosp - Nursing Care                  ,W2LF53,Third Party Payments          ,Private Contractors           ,EH01,Miscellaneous Agency Services           ,-542.94,03/09/2013,R,CARE UK                       
2681,Adult Social Care,OP 65&Over NursingCarePlacemts,OP Hosp - Nursing Care                  ,W2LF53,Third Party Payments          ,Private Contractors           ,EH01,Miscellaneous Agency Services           ,633.43,03/09/2013,R,CARE UK                       
2682,Adult Social Care,OP 65&Over NursingCarePlacemts,OP Hosp - Nursing Care                  ,W2LF53,Third Party Payments          ,Private Contractors           ,EH01,Miscellaneous Agency Services           ,633.43,03/09/2013,R,CARE UK                       
2683,Adult Social Care,OP 65&Over NursingCarePlacemts,OP Hosp - Nursing Care                  ,W2LF53,Third Party Payments          ,Private Contractors           ,EH01,Miscellaneous Agency Services           ,633.43,03/09/2013,R,CARE UK                       
2684,Adult Social Care,OP 65&Over NursingCarePlacemts,OP Hosp - Nursing Care                  ,W2LF53,Third Party Payments          ,Private Contractors           ,EH01,Miscellaneous Agency Services           ,633.43,03/09/2013,R,CARE UK                       
2685,Adult Social Care,OP 65&Over NursingCarePlacemts,OP Hosp - Nursing Care                  ,W2LF53,Third Party Payments          ,Private Contractors           ,EH01,Miscellaneous Agency Services           ,633.43,03/09/2013,R,CARE UK                       
2686,Adult Social Care,OP 65&Over NursingCarePlacemts,OP Hosp - Nursing Care                  ,W2LF53,Third Party Payments          ,Private Contractors           ,EH01,Miscellaneous Agency Services           ,633.43,09/05/2011,R,CARE UK                       
2687,Adult Social Care,OP 65&Over NursingCarePlacemts,OP Hosp - Nursing Care                  ,W2LF53,Third Party Payments          ,Private Contractors           ,EH01,Miscellaneous Agency Services           ,633.43,09/05/2011,R,CARE UK                       
2724,Adult Social Care,OP 65&Over NursingCarePlacemts,OP Hosp - Nursing Care                  ,W2LF53,Third Party Payments          ,Private Contractors           ,EH01,Miscellaneous Agency Services           ,-542.94,03/09/2013,R,CARE UK                       
2783,Adult Social Care,OP 65&Over NursingCarePlacemts,OP Hosp - Nursing Care                  ,W2LF53,Third Party Payments          ,Private Contractors           ,EH01,Miscellaneous Agency Services           ,633.43,03/09/2013,R,CARE UK                       
2784,Adult Social Care,OP 65&Over NursingCarePlacemts,OP Hosp - Nursing Care                  ,W2LF53,Third Party Payments          ,Private Contractors           ,EH01,Miscellaneous Agency Services           ,633.43,03/09/2013,R,CARE UK                       
2785,Adult Social Care,OP 65&Over NursingCarePlacemts,OP Hosp - Nursing Care                  ,W2LF53,Third Party Payments          ,Private Contractors           ,EH01,Miscellaneous Agency Services           ,633.43,03/09/2013,R,CARE UK                       
2786,Adult Social Care,OP 65&Over NursingCarePlacemts,OP Hosp - Nursing Care                  ,W2LF53,Third Party Payments          ,Private Contractors           ,EH01,Miscellaneous Agency Services           ,633.43,03/09/2013,R,CARE UK                       
2787,Adult Social Care,OP 65&Over NursingCarePlacemts,OP Hosp - Nursing Care                  ,W2LF53,Third Party Payments          ,Private Contractors           ,EH01,Miscellaneous Agency Services           ,633.43,09/05/2011,R,CARE UK                       
2788,Adult Social Care,OP 65&Over NursingCarePlacemts,OP Hosp - Nursing Care                  ,W2LF53,Third Party Payments          ,Private Contractors           ,EH01,Miscellaneous Agency Services           ,633.43,09/05/2011,R,CARE UK                       
2815,Adult Social Care,OP 65&Over NursingCarePlacemts,OP Hosp - Nursing Care                  ,W2LF53,Third Party Payments          ,Private Contractors           ,EH01,Miscellaneous Agency Services           ,-633.43,11/06/2013,R,CARE UK                       
2819,Adult Social Care,OP 65&Over NursingCarePlacemts,OP Hosp - Nursing Care                  ,W2LF53,Third Party Payments          ,Private Contractors           ,EH01,Miscellaneous Agency Services           ,-542.94,03/09/2013,R,CARE UK                       
2865,Adult Social Care,OP 65&Over NursingCarePlacemts,OP Hosp - Nursing Care                  ,W2LF53,Third Party Payments          ,Private Contractors           ,EH01,Miscellaneous Agency Services           ,633.43,05/06/2013,R,CARE UK                       
2873,Adult Social Care,OP 65&Over NursingCarePlacemts,OP Hosp - Nursing Care                  ,W2LF53,Third Party Payments          ,Private Contractors           ,EH01,Miscellaneous Agency Services           ,633.43,11/06/2013,R,CARE UK                       
2874,Adult Social Care,OP 65&Over NursingCarePlacemts,OP Hosp - Nursing Care                  ,W2LF53,Third Party Payments          ,Private Contractors           ,EH01,Miscellaneous Agency Services           ,633.43,03/09/2013,R,CARE UK                       
2875,Adult Social Care,OP 65&Over NursingCarePlacemts,OP Hosp - Nursing Care                  ,W2LF53,Third Party Payments          ,Private Contractors           ,EH01,Miscellaneous Agency Services           ,633.43,03/09/2013,R,CARE UK                       
2876,Adult Social Care,OP 65&Over NursingCarePlacemts,OP Hosp - Nursing Care                  ,W2LF53,Third Party Payments          ,Private Contractors           ,EH01,Miscellaneous Agency Services           ,633.43,03/09/2013,R,CARE UK                       
2877,Adult Social Care,OP 65&Over NursingCarePlacemts,OP Hosp - Nursing Care                  ,W2LF53,Third Party Payments          ,Private Contractors           ,EH01,Miscellaneous Agency Services           ,633.43,03/09/2013,R,CARE UK                       
3080,Adult Social Care,OP 65&Over NursingCarePlacemts,OP West - Nursing Care                  ,W2LG53,Third Party Payments          ,Private Contractors           ,EH01,Miscellaneous Agency Services           ,-542.94,03/09/2013,R,CARE UK                       
3111,Adult Social Care,OP 65&Over NursingCarePlacemts,OP West - Nursing Care                  ,W2LG53,Third Party Payments          ,Private Contractors           ,EH01,Miscellaneous Agency Services           ,633.43,03/09/2013,R,CARE UK                       
3112,Adult Social Care,OP 65&Over NursingCarePlacemts,OP West - Nursing Care                  ,W2LG53,Third Party Payments          ,Private Contractors           ,EH01,Miscellaneous Agency Services           ,633.43,03/09/2013,R,CARE UK                       
3113,Adult Social Care,OP 65&Over NursingCarePlacemts,OP West - Nursing Care                  ,W2LG53,Third Party Payments          ,Private Contractors           ,EH01,Miscellaneous Agency Services           ,633.43,03/09/2013,R,CARE UK                       
3114,Adult Social Care,OP 65&Over NursingCarePlacemts,OP West - Nursing Care                  ,W2LG53,Third Party Payments          ,Private Contractors           ,EH01,Miscellaneous Agency Services           ,633.43,03/09/2013,R,CARE UK                       
3115,Adult Social Care,OP 65&Over NursingCarePlacemts,OP West - Nursing Care                  ,W2LG53,Third Party Payments          ,Private Contractors           ,EH01,Miscellaneous Agency Services           ,633.43,03/09/2013,R,CARE UK                       
3167,Adult Social Care,OP 65&Over NursingCarePlacemts,OP West - Nursing Care                  ,W2LG53,Third Party Payments          ,Private Contractors           ,EH01,Miscellaneous Agency Services           ,633.43,03/09/2013,R,CARE UK                       
3168,Adult Social Care,OP 65&Over NursingCarePlacemts,OP West - Nursing Care                  ,W2LG53,Third Party Payments          ,Private Contractors           ,EH01,Miscellaneous Agency Services           ,633.43,03/09/2013,R,CARE UK                       
3169,Adult Social Care,OP 65&Over NursingCarePlacemts,OP West - Nursing Care                  ,W2LG53,Third Party Payments          ,Private Contractors           ,EH01,Miscellaneous Agency Services           ,633.43,03/09/2013,R,CARE UK                       
3170,Adult Social Care,OP 65&Over NursingCarePlacemts,OP West - Nursing Care                  ,W2LG53,Third Party Payments          ,Private Contractors           ,EH01,Miscellaneous Agency Services           ,633.43,03/09/2013,R,CARE UK                       
3186,Adult Social Care,OP 65&Over NursingCarePlacemts,OP West - Nursing Care                  ,W2LG53,Third Party Payments          ,Private Contractors           ,EH01,Miscellaneous Agency Services           ,-542.94,03/09/2013,R,CARE UK                       
3217,Adult Social Care,OP 65&Over NursingCarePlacemts,OP West - Nursing Care                  ,W2LG53,Third Party Payments          ,Private Contractors           ,EH01,Miscellaneous Agency Services           ,633.43,03/09/2013,R,CARE UK                       
3218,Adult Social Care,OP 65&Over NursingCarePlacemts,OP West - Nursing Care                  ,W2LG53,Third Party Payments          ,Private Contractors           ,EH01,Miscellaneous Agency Services           ,633.43,03/09/2013,R,CARE UK                       
3219,Adult Social Care,OP 65&Over NursingCarePlacemts,OP West - Nursing Care                  ,W2LG53,Third Party Payments          ,Private Contractors           ,EH01,Miscellaneous Agency Services           ,633.43,03/09/2013,R,CARE UK                       
3220,Adult Social Care,OP 65&Over NursingCarePlacemts,OP West - Nursing Care                  ,W2LG53,Third Party Payments          ,Private Contractors           ,EH01,Miscellaneous Agency Services           ,633.43,03/09/2013,R,CARE UK                       
3221,Adult Social Care,OP 65&Over NursingCarePlacemts,OP West - Nursing Care                  ,W2LG53,Third Party Payments          ,Private Contractors           ,EH01,Miscellaneous Agency Services           ,633.43,03/09/2013,R,CARE UK                       
3222,Adult Social Care,OP 65&Over NursingCarePlacemts,OP West - Nursing Care                  ,W2LG53,Third Party Payments          ,Private Contractors           ,EH01,Miscellaneous Agency Services           ,633.43,03/09/2013,R,CARE UK                       
3223,Adult Social Care,OP 65&Over NursingCarePlacemts,OP West - Nursing Care                  ,W2LG53,Third Party Payments          ,Private Contractors           ,EH01,Miscellaneous Agency Services           ,633.43,03/09/2013,R,CARE UK                       
3281,Adult Social Care,OP 65&Over NursingCarePlacemts,OP West - Nursing Care                  ,W2LG53,Third Party Payments          ,Private Contractors           ,EH01,Miscellaneous Agency Services           ,633.43,03/09/2013,R,CARE UK                       
3282,Adult Social Care,OP 65&Over NursingCarePlacemts,OP West - Nursing Care                  ,W2LG53,Third Party Payments          ,Private Contractors           ,EH01,Miscellaneous Agency Services           ,633.43,03/09/2013,R,CARE UK                       
3283,Adult Social Care,OP 65&Over NursingCarePlacemts,OP West - Nursing Care                  ,W2LG53,Third Party Payments          ,Private Contractors           ,EH01,Miscellaneous Agency Services           ,633.43,03/09/2013,R,CARE UK                       
3284,Adult Social Care,OP 65&Over NursingCarePlacemts,OP West - Nursing Care                  ,W2LG53,Third Party Payments          ,Private Contractors           ,EH01,Miscellaneous Agency Services           ,633.43,03/09/2013,R,CARE UK                       
3407,Adult Social Care,OP 65&Over NursingCarePlacemts,OP East - Nursing Care                  ,W2LH53,Third Party Payments          ,Private Contractors           ,EH01,Miscellaneous Agency Services           ,-542.94,04/09/2013,R,CARE UK                       
3451,Adult Social Care,OP 65&Over NursingCarePlacemts,OP East - Nursing Care                  ,W2LH53,Third Party Payments          ,Private Contractors           ,EH01,Miscellaneous Agency Services           ,633.43,03/09/2013,R,CARE UK                       
3452,Adult Social Care,OP 65&Over NursingCarePlacemts,OP East - Nursing Care                  ,W2LH53,Third Party Payments          ,Private Contractors           ,EH01,Miscellaneous Agency Services           ,633.43,03/09/2013,R,CARE UK                       
